{"text_format":"1","workbook":"xlsx","n_sheets":15,"sheets":["Anleitung","Erfassung","Berechnungen","Festwerte","Gartenlaube","Anbau-Nebengeb.- Freisitz","Dauerkulturen","Zierpflanzen und Sträucher","Nebenanlagen","Bemerkungen","Skizze","Zusatztext","Gesamtausdruck","Mängelliste","Raster"],"not_rendered":{"charts":0,"images":30,"macros":1,"external_links":0,"defined_names":17,"comments":0,"pivot_tables":0},"unopened":[],"bounds":{"document_bytes":16777216,"sheet_cells":100000,"rows_first":2000,"rows_last":500,"rows_between":2000,"halvings":0,"cell_chars":16384,"cell_head_chars":4096},"cells_cut":0,"cells_raw":0,"read":"whole","date_system":"1900"}

{"sheet":"Anleitung","index":0,"n_rows":36,"n_cols":2,"rows_kept":36,"cut":false,"hidden":false,"merged":[[0,1,0,9],[16,1,16,9],[30,1,30,5],[6,1,6,9],[11,1,11,9],[12,1,12,9],[10,1,10,9],[24,1,24,9],[25,1,25,9],[3,1,3,9],[4,1,4,9],[1,1,1,9],[23,1,23,9],[20,1,20,4],[20,6,20,9],[8,1,8,9],[35,1,35,9],[13,1,13,9],[14,1,14,9],[15,1,15,9],[26,1,26,5],[29,1,29,5],[27,1,27,5],[18,1,18,9],[31,1,31,5],[31,6,31,9],[32,1,32,5],[33,1,33,5],[28,1,28,5],[9,1,9,9],[7,1,7,9],[21,1,21,9],[22,1,22,9],[19,1,19,9]]}
[null,"Wertabschätzung Version April 2019"]
[null,"der kleingärtnerischen Anlagen und Bestände nach den Richtlinien des Landesverbandes der Gartenfreunde Bremen e.V."]
[]
[null,"Ab der Version September 2014 können Rankgerüst und Abwasserbehälter gemäß der Richtlinien für die Wert-"]
[null,"abschätzung erfasst werden. Die Eingaben erfolgen auf dem Registerblatt \"Nebenanlagen\"."]
[]
[null,"Bitte zuerst auf dem Tabellenblatt \"Erfassung\" die Schaltfläche \"Festwerte ändern\" anwählen und dort die benötigten Daten ein-"]
[null,"geben. Diese Daten werden auf dem Tabellenblatt \"Festwerte\" hinterlegt. Wenn Ihr den Namen Eures Kleingartenvereins,"]
[null,"Vorsitzende(n), Kassierer(in), Schätzer und den zur Zeit gültigen Bauindex eintragt und dann diese Datei als Vorlage speichert,"]
[null,"braucht Ihr diese Daten nicht immer wieder neu einzugeben. Bei der Erfassung werden außer den eben genannten Daten noch"]
[null,"Name, Gartenadresse und Anschrift des Pächters und das Datum der Schätzung erfasst. Die Namen der beiden Schätzer und"]
[null,"der / des Vorsitzernden sowie der / des Kassiererin / Kassierers werden, wenn Ihr diese Daten eingegeben habt, auf der letzten"]
[null,"Seite der Schätzung ausgedruckt."]
[null,"Die errechneten Werte könnt Ihr im Überblick auf dem Tabellenblatt \"Berechnungen\" einsehen. Vom Blatt \"Erfassung\" aus könnt Ihr"]
[null,"den Ausdruck starten. Wenn Ihr Euch die auszudruckenden Seiten vorher noch ansehen wollt, könnt Ihr das auf dem Tabellen-"]
[null,"blatt \"Gesamtausdruck\". Um die Skizze in den Gesamtausdruck zu übertragen, Ausdruck starten und bei der Druckerauswahl"]
[null,"abbrechen. Nach Änderungen in der Skizze muss der Vorgang wiederholt werden."]
[]
[null,"Bitte lest Euch die Bedienungsanleitung durch, auch wenn Ihr schon länger mit dem Programm arbeitet!"]
[]
[null,"So - und nun viel Spaß beim Ausfüllen!"]
[]
[]
[]
[]
[]
[null,"Noch ein ganz wichtiger Hinweis:"]
[null,"In dieser Datei werden eine Menge Berechnungen angestellt."]
[null,"Wenn Ihr eine Meldung wie nebenstehend abgebildet bekommt,"]
[null,"müsst Ihr den mittleren Knopf \"Makros aktivieren\" anklicken, sonst"]
[null,"funktionieren die Berechnungen nicht!"]
[null,"Bei den neueren Versionen von Excel erscheint"]
[null,"eine Meldung in der Mitteilungszeile. Da muss"]
[null,"\"Inhalt aktivieren\" angeklickt werden."]
[]
[null,"© 2005-2019 Landesverband der Gartenfreunde Bremen e.V. - erstellt von Ewald Kuntze -Anregungen und Ideen an m.kleeberg@gartenfreunde-bremen.de "]

{"sheet":"Erfassung","index":1,"n_rows":27,"n_cols":6,"rows_kept":27,"cut":false,"hidden":false,"merged":[[0,0,0,8],[4,5,4,7],[5,5,5,7],[17,5,17,7],[15,5,15,7],[16,5,16,7],[6,5,6,7],[7,5,7,7],[8,5,8,7],[9,5,9,7],[20,5,20,7],[21,5,21,7],[22,5,22,7],[1,0,1,8],[10,5,10,7],[12,5,12,7],[18,5,18,7],[13,5,13,7],[14,5,14,7],[19,5,19,7]]}
["Wertabschätzung"]
["der kleingärtnerischen Anlagen und Bestände nach den Richtlinien des Landesverbandes der Gartenfreunde Bremen e.V."]
[]
[]
[null,null,null,null,null,"Über die nebenstehenden Schaltflächen"]
[null,null,null,null,null,"werden die einzelnen Dialoge zur Ein-"]
[null,null,null,null,null,"gabe der entsprechenden Werte aufge-"]
[null,null,null,null,null,"rufen."]
[null,null,null,null,null,"Auf jedem Blatt gibt es die Schaltfläche"]
[null,null,null,null,null,"\"Zurück zur Erfassung\", die hierher"]
[null,null,null,null,null,"zurückführt."]
[null,null,null,null,null,"Wenn alle benötigten Dialoge abgearbei-"]
[null,null,null,null,null,"tet wurden, geht es über die gleichnami-"]
[null,null,null,null,null,"ge Schaltfläche links weiter zur Seite"]
[null,null,null,null,null,"\"Berechnungen\". Dort könnt Ihr Euch die"]
[null,null,null,null,null,"errechneten Werte ansehen."]
[null,null,null,null,null,"Tipp: Zuerst die Festwerte eintragen und"]
[null,null,null,null,null,"dann über die gleichnamige Schaltfläche"]
[null,null,null,null,null,"die Schätzung abspeichern."]
[null,null,null,null,null,"Beim weiteren Arbeiten immmer mal"]
[null,null,null,null,null,"auf das Diskettensymbol klicken, um "]
[null,null,null,null,null,"den aktuellen Stand zu speichern."]
[null,null,null,null,null,"Bevor Ihr die Schätzung ausdruckt, soll-"]
[null,null,null,null,null,"tet Ihr über die Druckvoransicht kontrol-"]
[null,null,null,null,null,"lieren, ob der Seitenumbruch \"passt\"."]
[null,null,null,null,null,"Wenn alles ok ist, könnt Ihr den endgül-"]
[null,null,null,null,null,"tigen Ausdruck starten..."]

{"sheet":"Berechnungen","index":2,"n_rows":30,"n_cols":7,"rows_kept":30,"cut":false,"hidden":false,"merged":[[29,0,30,2],[1,0,1,8],[11,2,11,4],[13,2,13,4],[15,2,15,4],[9,2,9,4],[19,2,19,4],[17,3,17,4],[21,3,21,4],[0,0,0,8],[3,1,3,4],[5,2,5,4],[7,2,7,4],[24,3,24,4],[23,3,23,4]]}
["Wertabschätzung"]
["der kleingärtnerischen Anlagen und Bestände nach den Richtlinien des Landesverbandes der Gartenfreunde Bremen e.V."]
[]
[null,"Kleingärtnerische Anlagen und Bestände"]
[]
[null,"1.","Gartenlaube",null,null,{"$f":"IF(Gartenlaube!I33>0,Gartenlaube!I33,0)","v":0},"€"]
[]
[null,"2.","Genehmigter Anbau",null,null,{"$f":"IF('Anbau-Nebengeb.- Freisitz'!I27>0,'Anbau-Nebengeb.- Freisitz'!I27,0)","v":0},"€"]
[null,null,"Genehmigtes Nebengebäude",null,null,{"$f":"IF('Anbau-Nebengeb.- Freisitz'!I40>0,'Anbau-Nebengeb.- Freisitz'!I40,0)","v":0}]
[null,null,"Überdachter Freisitz",null,null,{"$f":"IF('Anbau-Nebengeb.- Freisitz'!I66>0,'Anbau-Nebengeb.- Freisitz'!I66,0)","v":0},"€"]
[]
[null,"3.","Dauerkulturen",null,null,{"$f":"IF(Dauerkulturen!I4>0,Dauerkulturen!I4,0)","v":0},"€"]
[]
[null,"4.","Zierpflanzen und Sträucher",null,null,{"$f":"IF('Zierpflanzen und Sträucher'!I4>0,'Zierpflanzen und Sträucher'!I4,0)","v":0},"€"]
[]
[null,"5.","Nebenanlagen",null,null,{"$f":"IF(Nebenanlagen!J86>0,Nebenanlagen!J86,0)","v":0},"€"]
[]
[null,null,null,"Schätzsumme",null,{"$f":"F6+F8+F10+F12+F14+F16+F9","v":0},"€"]
[]
[null,"6.","Mängelabzug",null,null,{"$f":"IF(Bemerkungen!H4,Bemerkungen!H4,0)","v":0},"€"]
[]
[null,null,null,"Restsumme",null,{"$f":"IF(F18-F20>0,F18-F20,\"\")","v":""},"€"]
[]
[null,null,null,"Für Mängelbeseitigung",null,{"$f":"F20","v":0},"€"]
[null,null,null,"zu hinterlegen"]
[]
[]
[]
[]
["Berechnungen"]

{"sheet":"Festwerte","index":3,"n_rows":30,"n_cols":8,"rows_kept":30,"cut":false,"hidden":false,"merged":[[0,0,0,8],[5,3,5,8],[6,3,6,8],[6,1,7,2],[29,0,30,1],[1,0,1,8],[11,3,11,8],[12,3,12,8],[22,3,22,6],[23,3,23,6],[13,3,13,8],[8,3,8,6],[19,3,19,6],[20,3,20,6],[15,4,15,8],[9,5,9,8]]}
["Wertabschätzung"]
["der kleingärtnerischen Anlagen und Bestände nach den Richtlinien des Landesverbandes der Gartenfreunde Bremen e.V."]
[]
[null,"Festwerte"]
[]
[null,"Kleingärtnerverein"]
[]
[]
[null,"Kleingarten","Weg",null,null,null,null,"Nr. "]
[null,null,"Größe",null,"m²"]
[]
[null,"Pächter","Name"]
[null,null,"Anschrift"]
[]
[]
[null,"Bauindex",null,null,"Ist der eingetragene Bauindex aktuell??"]
[]
[null,"Datum der Schätzung"]
[]
[null,"Schätzer/in 1"]
[null,"Schätzer/in 2"]
[]
[null,"Vorsitzende/r"]
[null,"Kassierer/in"]
[]
[]
[]
[]
[]
["Festwerte"]

{"sheet":"Gartenlaube","index":4,"n_rows":35,"n_cols":16,"rows_kept":35,"cut":false,"hidden":false,"merged":[[8,2,8,8],[13,2,13,8],[11,2,11,8],[12,2,12,8],[0,0,0,9],[3,2,3,4],[5,2,5,4],[7,2,7,8],[1,0,1,9],[9,2,9,8],[10,2,10,8],[14,2,14,8],[15,2,15,8],[22,0,22,4],[18,2,18,8],[19,2,19,8],[16,2,16,8],[20,2,20,8],[17,2,17,8],[24,0,24,1],[32,2,33,2],[28,0,29,4],[25,0,25,3],[28,5,28,6],[32,0,33,1],[30,0,30,5],[31,0,31,5],[32,5,32,6]]}
["Wertabschätzung"]
["der kleingärtnerischen Anlagen und Bestände nach den Richtlinien des Landesverbandes der Gartenfreunde Bremen e.V.",null,null,null,null,null,null,null,null,null,null,null,null,null,null,false]
[]
["Datum Bauerstellung:",null,null,null,null,"Grundfläche:",null,"m²"]
[]
["Datum Abnahme:",null,null,null,null,"Ausgangswert:",null,"M"]
[]
["Baubeschreibung:"]
[]
[]
[]
[]
[]
[]
[]
[]
[]
[]
[]
[]
[]
[]
["Berechnung (nach Beschreibung und Feststellung vorhandener Mängel):"]
[null,null,"Grundfläche","x","Rechenwert","x","Bauindex",null,"ermittelter Wert"]
[{"$f":"IF(C25>26,\"Laube zu groß!\",\"\")","v":""},null,{"$f":"G4","v":0},"m²",null,"M",{"$f":"Bauindex","v":0},null,{"$f":"C25*E26*G25","v":0},"€"]
["verwendeter Rechenwert  ",null,null,null,{"$f":"IF(P2,E25*0.5,E25)","v":0},"M"]
["./. Abschreibung",null,"Jahre","x","% jährlich","=","% insgesamt"]
[null,null,null,null,null,null,{"$f":"IF(C28*E28<=100,C28*E28,100)","v":0},null,{"$f":"I25*G28%","v":0},"€"]
[{"$f":"IF(E25<>E26,\"Rechenwert wurde wg. der Duldung um die Hälfte reduziert!\",\" \")","v":" "},null,null,null,null,"Wert nach Abschreibung:",null,null,{"$f":"IF(I25-I28>0,I25-I28,0)","v":0},"€"]
[]
["Restwert bei sehr gut erhaltener Laube (max. 30% vom ermittelten Wert):",null,null,null,null,null,{"$f":"IF(I29<(I25*0.3),I25*0.3,\" \")","v":" "},{"$f":"IF(I29<(I25*0.3),\"*\",\" \")","v":" "},null,"€"]
[{"$f":"IF(I31>I25*0.3,\"Achtung!! Der als Restwert eingetragene Betrag ist zu groß!\",\" \")","v":" "}]
["Laube",null,"Lfd. Nr. 1.1",null,null,"Wert der Laube:",null,null,{"$f":"IF(AND(I31>0,I31<=(I25*0.3)),IF(I31>I29,I31,I29),I29)","v":0},"€"]
[]
[null,null,null,null,null,null,{"$f":"IF(I29<(I25*0.3),\"*) max. möglicher Restwert\",\" \")","v":" "}]

{"sheet":"Anbau-Nebengeb.- Freisitz","index":5,"n_rows":66,"n_cols":16,"rows_kept":66,"cut":false,"hidden":false,"merged":[[64,0,64,5],[65,0,66,2],[65,3,66,4],[65,5,65,6],[54,2,54,8],[58,0,58,3],[61,0,62,4],[61,5,61,6],[63,0,63,5],[49,2,49,8],[50,2,50,8],[51,2,51,8],[52,2,52,8],[53,2,53,8],[42,2,42,4],[44,2,44,4],[46,2,46,8],[47,2,47,8],[48,2,48,8],[29,2,29,4],[31,2,31,8],[39,0,40,2],[39,3,40,4],[39,5,39,6],[32,2,32,8],[33,2,33,8],[34,2,34,8],[35,2,35,8],[36,2,36,8],[26,0,27,2],[15,2,15,8],[24,0,24,5],[25,0,25,5],[26,3,27,4],[22,5,22,6],[26,5,26,6],[19,0,19,3],[22,0,23,4],[13,2,13,8],[14,2,14,8],[3,2,3,4],[5,2,5,4],[10,2,10,8],[11,2,11,8],[1,0,1,9],[0,0,0,9],[7,2,7,8],[12,2,12,8],[8,2,8,8],[9,2,9,8]]}
["Wertabschätzung"]
["der kleingärtnerischen Anlagen und Bestände nach den Richtlinien des Landesverbandes der Gartenfreunde Bremen e.V.",null,null,null,null,null,null,null,null,null,null,null,null,null,null,false]
[]
["Datum Bauerstellung:",null,null,null,null,"Grundfläche:",null,"m²"]
[]
["Datum Abnahme:",null,null,null,null,"Ausgangswert:",null,"M"]
[]
["Baubeschreibung:"]
[]
[]
[]
[]
[]
[]
[]
[]
["Berechnung (nach Beschreibung und Feststellung vorhandener Mängel):"]
[null,null,"Grundfläche","x","Rechenwert","x","Bauindex",null,"ermittelter Wert"]
[null,null,{"$f":"IF(G4<=24,G4,24)","v":0},"m²",null,"M",{"$f":"Bauindex","v":0},null,{"$f":"C19*E20*G19","v":0},"€"]
["verwendeter Rechenwert  ",null,null,null,{"$f":"IF(P2,E19*0.5,E19)","v":0},"M"]
["./. Abschreibung",null,"Jahre","x","% jährlich","=","%"]
[null,null,null,null,null,null,{"$f":"IF(C22*E22>100,100,C22*E22)","v":0},null,{"$f":"I19*G22%","v":0},"€"]
[{"$f":"IF(E19<>E20,\"Rechenwert wurde wg. der Duldung um die Hälfte reduziert!\",\" \")","v":" "},null,null,null,null,"Wert nach Abschreibung:",null,null,{"$f":"IF(I19-I22>0,I19-I22,0)","v":0},"€"]
[]
["Restwert bei sehr gut erhaltenem Freisitz (max. 30% vom ermittelten Wert):",null,null,null,null,null,{"$f":"IF(I23<(I19*0.3),I19*0.3,\" \")","v":" "},null,null,"€"]
[{"$f":"IF(I25>I19*0.3,\"Achtung!! Der als Restwert eingetragene Betrag ist zu groß!\",\" \")","v":" "},null,null,null,null,null,{"$f":"IF(I23<(I19*0.3),\"(max. Restwert)\",\" \")","v":" "}]
["Genehmigter Anbau",null,null,"Lfd. Nr. 2.1",null,"Wert des Anbaus:",null,null,{"$f":"IF(AND(I25>0,I25<=I19*0.3),IF(I25>I23,I25,I23),I23)","v":0},"€"]
[]
[]
["Datum Bauerstellung:",null,null,null,null,"Grundfläche:",null,"m²"]
[]
["Baubeschreibung:"]
[]
[]
[]
[]
[]
[null,null,null,null,null,null,"Wert",null,null,"€"]
[]
["Genehmigtes \nNebengebäude",null,null,"Lfd. Nr. 2.2",null,"Wert des Gebäudes:",null,null,{"$f":"IF(I38>0,I38,0)","v":0},"€"]
[null,null,null,null,null,null,null,null,null,null,null,null,null,null,null,false]
[]
["Datum Bauerstellung:",null,null,null,null,"Grundfläche:",null,"m²"]
[]
["Datum Abnahme:",null,null,null,null,"Ausgangswert:",null,"M"]
[]
["Baubeschreibung:"]
[]
[]
[]
[]
[]
[]
[]
[]
["Berechnung (nach Beschreibung und Feststellung vorhandener Mängel):"]
[null,null,"Grundfläche","x","Rechenwert","x","Bauindex",null,"ermittelter Wert"]
[null,null,{"$f":"IF(G43<=24,G43,24)","v":0},"m²",null,"M",{"$f":"Bauindex","v":0},null,{"$f":"C58*E59*G58","v":0},"€"]
["verwendeter Rechenwert  ",null,null,null,{"$f":"IF(P41,E58*0.5,E58)","v":0},"M"]
["./. Abschreibung",null,"Jahre","x","% jährlich","=","%"]
[null,null,null,null,null,null,{"$f":"IF(C61*E61>100,100,C61*E61)","v":0},null,{"$f":"I58*G61%","v":0},"€"]
[{"$f":"IF(E58<>E59,\"Rechenwert wurde wg. der Duldung um die Hälfte reduziert!\",\" \")","v":" "},null,null,null,null,"Wert nach Abschreibung:",null,null,{"$f":"IF(I58-I61>0,I58-I61,0)","v":0},"€"]
[]
["Restwert bei sehr gut erhaltenem Freisitz (max. 30% vom ermittelten Wert):",null,null,null,null,null,{"$f":"IF(I62<(I58*0.3),I58*0.3,\" \")","v":" "},null,null,"€"]
[{"$f":"IF(I64>I58*0.3,\"Achtung!! Der als Restwert eingetragene Betrag ist zu groß!\",\" \")","v":" "},null,null,null,null,null,{"$f":"IF(I62<(I58*0.3),\"(max. Restwert)\",\" \")","v":" "}]
["Überdachter Freisitz",null,null,"Lfd. Nr. 2.3",null,"Wert des Freisitzes:",null,null,{"$f":"IF(AND(I64>0,I64<=I58*0.3),IF(I64>I62,I64,I62),I62)","v":0},"€"]

{"sheet":"Dauerkulturen","index":6,"n_rows":54,"n_cols":20,"rows_kept":54,"cut":false,"hidden":false,"merged":[[42,11,42,15],[32,11,32,17],[33,11,33,15],[34,11,34,15],[35,11,35,15],[28,2,28,6],[28,11,28,12],[40,16,41,16],[40,17,41,17],[36,11,36,15],[37,11,37,15],[38,11,38,15],[39,11,39,15],[40,11,40,15],[41,11,41,15],[31,11,31,12],[94,2,94,6],[8,2,8,6],[9,2,9,6],[10,2,10,6],[17,2,17,6],[18,2,18,6],[19,2,19,6],[20,2,20,6],[15,2,15,6],[16,2,16,6],[22,2,22,6],[51,2,51,6],[52,2,52,6],[50,2,50,6],[39,2,39,6],[40,2,40,6],[41,2,41,6],[42,2,42,6],[44,2,44,6],[45,2,45,6],[43,2,43,6],[1,0,1,9],[0,0,0,9],[2,0,3,2],[12,2,12,6],[4,2,4,6],[5,2,5,6],[7,2,7,6],[11,2,11,6],[63,2,63,6],[3,6,3,7],[3,3,3,5],[33,2,33,6],[34,2,34,6],[35,2,35,6],[31,2,31,6],[32,2,32,6],[23,2,23,6],[14,2,14,6],[38,2,38,6],[46,2,46,6],[47,2,47,6],[53,2,53,6],[48,2,48,6],[49,2,49,6],[7,11,7,12],[4,11,4,12],[8,11,8,12],[9,11,9,12],[10,11,10,12],[11,11,11,12],[2,11,2,17],[2,3,2,9],[3,11,3,13],[5,11,5,12],[6,11,6,12],[6,2,6,6],[4,14,4,17],[20,11,20,12],[18,11,18,12],[19,11,19,12],[12,11,12,12],[13,11,13,12],[14,11,14,12],[16,11,16,12],[17,11,17,12],[13,2,13,6],[15,11,15,12],[24,11,24,12],[25,11,25,12],[26,11,26,12],[27,11,27,12],[36,2,36,6],[37,2,37,6],[29,11,29,12],[30,11,30,12],[21,11,21,12],[22,11,22,12],[23,11,23,12],[29,2,29,6],[30,2,30,6],[25,2,25,6],[26,2,26,6],[27,2,27,6],[24,2,24,6],[21,2,21,6]]}
["Wertabschätzung"]
["der kleingärtnerischen Anlagen und Bestände nach den Richtlinien des Landesverbandes der Gartenfreunde Bremen e.V."]
["Dauerkulturen (3)",null,null,"A c h t u n g,  H ö c h s t m e n g e n   b e a c h t e n ! !",null,null,null,null,null,null,null,"Maximalwerte und Multiplikator"]
[null,null,null,"Liste mit den Maximalwerten neben der Tabelle",null,null,"Summe Dauerkulturen: ",null,{"$f":"SUM(I6:I34)","v":0},"€",null,"Alter größer als",null,null,"3 J.","5 J.","10 J.","15 J."]
["lfd. Nr.","Anz.","Bezeichnung",null,null,null,null,"Einzelwert","Gesamtwert",null,null,"Dauerkultur",null,"Einzelw","Multiplikator"]
[null,null,null,null,null,null,null,null,{"$f":"IF(H6<>\"\",B6*(H6*IF(G6>0,G6,1)),0)","v":0},"€",null,"Apfel Busch",null,11,1.5,2,2,1]
[null,null,null,null,null,null,null,null,{"$f":"IF(H7<>\"\",B7*(H7*IF(G7>0,G7,1)),0)","v":0},"€",null,"Apfel Halbstamm",null,14,1.5,2,3,2]
[null,null,null,null,null,null,null,null,0,"€",null,"Apfel Hochstamm",null,14,1.5,2,3,2]
[null,null,null,null,null,null,null,null,0,"€",null,"Apfel Spalier",null,12.8,1.5,2,2,1]
[null,null,null,null,null,null,null,null,0,"€",null,"Apfel Spindel",null,11,1.5,2,2,1]
[null,null,null,null,null,null,null,null,0,"€",null,"Beerenobst Busch",null,3.3,1,1,1,1]
[null,null,null,null,null,null,null,null,0,"€",null,"Beerenobst Halbstamm",null,6.4,1,1,1,1]
[null,null,null,null,null,null,null,null,0,"€",null,"Beerenobst Hochstamm",null,6.4,1,1,1,1]
[null,null,null,null,null,null,null,null,0,"€",null,"Birne Busch",null,11,1.5,2,2,1]
[null,null,null,null,null,null,null,null,0,"€",null,"Birne Halbstamm",null,14,1.5,2,3,2]
[null,null,null,null,null,null,null,null,0,"€",null,"Birne Hochstamm",null,14,1.5,2,3,2]
[null,null,null,null,null,null,null,null,0,"€",null,"Birne Spalier",null,12.8,1.5,2,2,1]
[null,null,null,null,null,null,null,null,0,"€",null,"Birne Spindel",null,11,1.5,2,2,1]
[null,null,null,null,null,null,null,null,0,"€",null,"Brombeeren nicht rank.",null,2.7,1,1,1,1]
[null,null,null,null,null,null,null,null,0,"€",null,"Brombeeren rankend",null,2.7,1,1,1,1]
[null,null,null,null,null,null,null,null,0,"€",null,"Erdbeeren (in m)",null,0.8,1,1,1,1]
[null,null,null,null,null,null,null,null,0,"€",null,"Gartenheidelbeeren",null,7.7,1,1,1,1]
[null,null,null,null,null,null,null,null,0,"€",null,"Himbeeren nicht rank.",null,2.7,1,1,1,1]
[null,null,null,null,null,null,null,null,0,"€",null,"Kirsche Busch",null,11.5,1.5,2,1,1]
[null,null,null,null,null,null,null,null,0,"€",null,"Kirsche Halbstamm",null,12.5,1.5,2,2,1]
[null,null,null,null,null,null,null,null,0,"€",null,"Pfirsich Busch",null,11.5,1.5,2,1,1]
[null,null,null,null,null,null,null,null,0,"€",null,"Pflaume Halbstamm",null,12.5,1.5,2,3,2]
[null,null,null,null,null,null,null,null,0,"€",null,"Quitte Busch",null,12.3,1.5,2,2,1]
[null,null,null,null,null,null,null,null,0,"€",null,"Rhabarber",null,1.8,1,1,1,1]
[null,null,null,null,null,null,null,null,0,"€",null,"Spargel (in m)",null,3.3,1,1,1,1]
[null,null,null,null,null,null,null,null,0,"€",null,"Weinstock",null,7.7,1,1,1,1]
[null,null,null,null,null,null,null,null,0,"€",null,"Zwetschge Halbstamm",null,12.5,1.5,2,3,2]
[null,null,null,null,null,null,null,null,0,"€",null,"erlaubte Höchstmengen (abhängig von Gartengröße)"]
[null,null,null,null,null,null,null,null,0,"€",null,"Stachel- und Johannisbeeren, insges.",null,null,null,null,{"$f":"IF(Größe>0,IF(Größe/S34*T34<1,1,Größe/S34*T34),\"-- ? --\")","v":"-- ? --"},"St.",400,10]
[null,null,null,null,null,null,null,null,0,"€",null,"Himbeeren ",null,null,null,null,"-- ? --","lfd.m",400,12]
[null,null,null,null,null,null,null,null,0,"€",null,"Brombeeren, rankend",null,null,null,null,"-- ? --","St.",400,5]
[null,null,null,null,null,null,null,null,0,"€",null,"Brombeeren, nicht rankend",null,null,null,null,"-- ? --","lfd.m",400,12]
[null,null,null,null,null,null,null,null,0,"€",null,"Erdbeeren",null,null,null,null,"-- ? --","lfd.m",400,30]
[null,null,null,null,null,null,null,null,0,"€",null,"Rhabarber",null,null,null,null,"-- ? --","St.",400,5]
[null,null,null,null,null,null,null,null,0,"€",null,"Spargel ",null,null,null,null,"-- ? --","lfd.m",400,20]
[null,null,null,null,null,null,null,null,0,"€",null,"Buschbäume",null,null,null,null,"-- ? --","St.",200,2]
[null,null,null,null,null,null,null,null,0,"€",null,"(auf stark wachsender Unterlage)"]
[null,null,null,null,null,null,null,null,0,"€",null,"Hoch- oder halbstamm",null,null,null,null,{"$f":"IF(Größe>0,IF(Größe/S43*T43<1,1,Größe/S43*T43),\"-- ? --\")","v":"-- ? --"},"St.",200,1]
[null,null,null,null,null,null,null,null,0,"€"]
[null,null,null,null,null,null,null,null,0,"€"]
[null,null,null,null,null,null,null,null,0,"€"]
[null,null,null,null,null,null,null,null,0,"€"]
[null,null,null,null,null,null,null,null,0,"€"]
[null,null,null,null,null,null,null,null,0,"€"]
[null,null,null,null,null,null,null,null,0,"€"]
[null,null,null,null,null,null,null,null,0,"€"]
[null,null,null,null,null,null,null,null,0,"€"]
[null,null,null,null,null,null,null,null,0,"€"]
[null,null,null,null,null,null,null,null,0,"€"]

{"sheet":"Zierpflanzen und Sträucher","index":7,"n_rows":54,"n_cols":10,"rows_kept":54,"cut":false,"hidden":false,"merged":[[10,2,10,6],[1,0,1,9],[0,0,0,9],[2,0,3,2],[2,3,2,9],[3,6,3,7],[18,2,18,6],[19,2,19,6],[20,2,20,6],[12,2,12,6],[11,2,11,6],[13,2,13,6],[14,2,14,6],[15,2,15,6],[16,2,16,6],[17,2,17,6],[21,2,21,6],[22,2,22,6],[35,2,35,6],[28,2,28,6],[29,2,29,6],[30,2,30,6],[31,2,31,6],[32,2,32,6],[25,2,25,6],[26,2,26,6],[23,2,23,6],[24,2,24,6],[51,2,51,6],[40,2,40,6],[41,2,41,6],[46,2,46,6],[47,2,47,6],[42,2,42,6],[43,2,43,6],[38,2,38,6],[39,2,39,6],[27,2,27,6],[34,2,34,6],[33,2,33,6],[52,2,52,6],[53,2,53,6],[3,3,3,5],[4,2,4,6],[5,2,5,6],[6,2,6,6],[7,2,7,6],[8,2,8,6],[9,2,9,6],[49,2,49,6],[44,2,44,6],[45,2,45,6],[48,2,48,6],[50,2,50,6],[36,2,36,6],[37,2,37,6]]}
["Wertabschätzung"]
["der kleingärtnerischen Anlagen und Bestände nach den Richtlinien des Landesverbandes der Gartenfreunde Bremen e.V."]
["Zierpflanzen u. Sträucher (4)",null,null,"A c h t u n g,  H ö c h s t m e n g e n   b e a c h t e n ! !"]
[null,null,null,"Maximalwert 300 € überschritten!!",null,null,"Summe Zierpflanzen und Sträucher: ",null,{"$f":"SUM(I6:I54)","v":0},"€"]
["lfd. Nr.","Anz.","Bezeichnung",null,null,null,null,"Einzelwert","Gesamtwert"]
[null,null,null,null,null,null,null,null,{"$f":"IF(H6<>\"\",B6*H6,0)","v":0},"€"]
[null,null,null,null,null,null,null,null,0,"€"]
[null,null,null,null,null,null,null,null,0,"€"]
[null,null,null,null,null,null,null,null,0,"€"]
[null,null,null,null,null,null,null,null,0,"€"]
[null,null,null,null,null,null,null,null,0,"€"]
[null,null,null,null,null,null,null,null,0,"€"]
[null,null,null,null,null,null,null,null,0,"€"]
[null,null,null,null,null,null,null,null,0,"€"]
[null,null,null,null,null,null,null,null,0,"€"]
[null,null,null,null,null,null,null,null,0,"€"]
[null,null,null,null,null,null,null,null,0,"€"]
[null,null,null,null,null,null,null,null,0,"€"]
[null,null,null,null,null,null,null,null,0,"€"]
[null,null,null,null,null,null,null,null,0,"€"]
[null,null,null,null,null,null,null,null,0,"€"]
[null,null,null,null,null,null,null,null,{"$f":"IF(H22<>\"\",B22*H22,0)","v":0},"€"]
[null,null,null,null,null,null,null,null,0,"€"]
[null,null,null,null,null,null,null,null,0,"€"]
[null,null,null,null,null,null,null,null,0,"€"]
[null,null,null,null,null,null,null,null,0,"€"]
[null,null,null,null,null,null,null,null,0,"€"]
[null,null,null,null,null,null,null,null,0,"€"]
[null,null,null,null,null,null,null,null,0,"€"]
[null,null,null,null,null,null,null,null,0,"€"]
[null,null,null,null,null,null,null,null,0,"€"]
[null,null,null,null,null,null,null,null,0,"€"]
[null,null,null,null,null,null,null,null,0,"€"]
[null,null,null,null,null,null,null,null,0,"€"]
[null,null,null,null,null,null,null,null,0,"€"]
[null,null,null,null,null,null,null,null,0,"€"]
[null,null,null,null,null,null,null,null,0,"€"]
[null,null,null,null,null,null,null,null,0,"€"]
[null,null,null,null,null,null,null,null,0,"€"]
[null,null,null,null,null,null,null,null,0,"€"]
[null,null,null,null,null,null,null,null,0,"€"]
[null,null,null,null,null,null,null,null,0,"€"]
[null,null,null,null,null,null,null,null,0,"€"]
[null,null,null,null,null,null,null,null,0,"€"]
[null,null,null,null,null,null,null,null,0,"€"]
[null,null,null,null,null,null,null,null,0,"€"]
[null,null,null,null,null,null,null,null,0,"€"]
[null,null,null,null,null,null,null,null,0,"€"]
[null,null,null,null,null,null,null,null,0,"€"]
[null,null,null,null,null,null,null,null,0,"€"]
[null,null,null,null,null,null,null,null,0,"€"]
[null,null,null,null,null,null,null,null,0,"€"]
[null,null,null,null,null,null,null,null,0,"€"]
[null,null,null,null,null,null,null,null,0,"€"]

{"sheet":"Nebenanlagen","index":8,"n_rows":101,"n_cols":17,"rows_kept":101,"cut":false,"hidden":false,"merged":[[86,1,86,5],[85,1,85,5],[67,1,67,10],[79,1,79,7],[92,2,92,3],[93,2,93,3],[95,5,95,6],[96,5,96,6],[97,5,97,6],[46,15,46,16],[47,15,47,16],[47,1,47,5],[56,6,56,8],[57,5,57,6],[48,1,48,5],[49,1,49,5],[51,1,51,2],[52,1,52,10],[66,1,66,10],[53,1,53,10],[59,1,59,5],[23,7,23,9],[19,1,19,7],[43,12,43,13],[45,15,45,16],[44,1,44,3],[43,4,43,5],[39,1,39,2],[45,4,45,5],[42,12,42,13],[27,1,27,3],[31,1,31,3],[33,1,33,5],[37,1,37,5],[29,1,29,5],[40,1,40,10],[41,1,41,10],[1,1,1,10],[0,1,0,10],[4,1,4,7],[36,5,36,9],[5,1,5,7],[7,1,7,2],[2,1,3,3],[17,1,17,5],[9,1,9,5],[13,1,13,3],[15,1,15,5],[16,1,16,5],[10,1,10,5],[11,1,11,5],[21,1,21,9],[35,1,35,3],[60,1,60,5],[61,1,61,5],[44,4,44,5],[44,6,44,8],[64,1,64,10],[65,1,65,10],[63,1,63,3],[77,5,77,6],[69,1,69,10],[74,1,74,9],[68,1,68,10],[70,1,70,10],[71,4,71,6],[73,4,73,6],[76,6,76,8]]}
[null,"Wertabschätzung"]
[null,"der kleingärtnerischen Anlagen und Bestände nach den Richtlinien des Landesverbandes der Gartenfreunde Bremen e.V."]
[null,"Nebenanlagen (5)"]
[]
[null,"Pforte und Einfriedigung, soweit diese nicht vom Verpächter erstellt sind:"]
[null,"(Einfriedigungen / Zäune zwischen Nachbargrundstücken werden nicht bewertet!)"]
[]
[null,"Pforte (bis max. 50 €)",null,null,"5.1"]
[]
[null,null,null,null,null,null,null,null,"€",{"$f":"IF(H10<=50,H10,50)","v":0},"€"]
[]
[]
[]
[null,"Einfriedigung / Zaun (max. 4,50 € pro lfd. m)",null,null,"5.2",null,"m      x",null,"€ / lfd. m",{"$f":"IF(H14<=4.5,F14*H14,F14*4.5)","v":0},"€"]
[]
[]
[]
[]
[]
[null,"Terrassen- und Wegebefestigungen außerhalb des Freisitzes:"]
[]
[null,"Bitte beachten: Beschädigte, überwucherte oder zugeschnittene Platten werden nicht bewertet!"]
[]
[null,"maximal",{"$f":"IF(Größe>0,Größe*0.1,\"-- ? --\")","v":"-- ? --"}," m² (bis max. 7,50 € / m²)",null,null,null,"Angabe der Gartengröße fehlt!"]
[]
[null,"Es können max. 3 verschiedene Kategorien angegeben werden. Bitte jeweils kurz beschreiben!"]
[]
[null,"Kategorie 1, Beschreibung nächste Zeile",null,null,"5.3",null,"m²     x",null,"€ / m²",{"$f":"IF(SUM(F$28:F$36)>C$24,0,IF(H28<=7.5,F28*H28,F28*7.5))","v":0},"€"]
[]
[]
[]
[null,"Kategorie 2, Beschreibung nächste Zeile",null,null,"5.4",null,"m²     x",null,"€ / m²",{"$f":"IF(SUM(F$28:F$36)>C$24,0,IF(H32<=7.5,F32*H32,F32*7.5))","v":0},"€"]
[]
[]
[]
[null,"Kategorie 3, Beschreibung nächste Zeile",null,null,"5.5",null,"m²     x",null,"€ / m²",{"$f":"IF(SUM(F$28:F$36)>C$24,0,IF(H36<=7.5,F36*H36,F36*7.5))","v":0},"€"]
[null,null,null,null,null,{"$f":"IF(SUM(F28:F36)>C24,\"Summe der Einzelflächen zu groß!\",\"\")","v":""}]
[]
[]
[null,"Elektroanschluss:",null,null,"5.6"]
[null,"Einzelanschlüsse werden pauschal nach Jahr des Anschlusses, Gemeinschaftsanschlüsse (über den Verein)"]
[null,"zu den tatsächlichen Kosten bis max. 400 € angerechnet."]
[]
[null,"Anschlussart",null,null,null,null,"Kosten",null,"€",{"$f":"IF($E$44=\"Gemeinschaftsanschl.\",IF(AND(H44>0,H44<D101),H44,D101),IF(AND($E$44=\"Einzelanschluss\",COUNTBLANK(E46)=0),VLOOKUP(E46,C96:D99,2,FALSE),0))","v":0},"€"]
[null,{"$f":"IF(AND(H44>0,COUNTBLANK(E44)=1),\"Anschlussart eingeben!\",\"\")","v":""},null,null,{"$f":"IF(AND(E44=C93,COUNTBLANK(E46)=1),\"Anschlussdatum?\",\"\")","v":""},null,"            gemäß vorliegender Rechnung"]
[null,"Bei Einzelanschluss:",null,"Anschluss"]
[]
[]
[]
[]
[]
[null,"Rankgerüst:",null,null,"5.7"]
[null,"Rankgerüst max. 12 m², max. 2,30 hoch, allseitig offen, ohne Betonfußboden, max. 300 € Erstellungskosten"]
[null,"werden berücksichtigt. Diese werden ab Erstellungsjahr mit 2 % jährlich abgeschrieben."]
[]
[null,"Größe",null,"m²          Höhe",null,"m","Kosten",null,"€",{"$f":"IF(E58<>0,IF(H56<=300,H56-H56*H58%,300-300*H58%),0)","v":0},"€"]
[null,null,null,null,null,null,"            gemäß vorliegender Rechnung"]
[null,"Erstellung",null,"Alter",null,"x 2% Abschreibung entspr.",null,{"$f":"E58*2","v":0},"%"]
[]
[]
[]
[]
[]
[null,"Entwässerungseinrichtung:",null,null,"5.8",null,null,null,null,null,null,null,null,null,null,false,false]
[null,"Abwassersammelbehälter gem. Entwässerungsortsgetz, mindestens 1.500, maximal 3.000 Liter. Als Erstel-"]
[null,"lungskosten werden max. 900,- € für 1.500-Liter-Tanks, max. 1.500,- € für 3.000-Liter-Tanks berücksichtigt."]
[null,"Diese werden ab Erstellungsjahr mit 5 % jährlich abgeschrieben, bis zu einem Restwert von 100,- € bei einer"]
[null,"Größe von 1.500 und 200,- € bei 3.000 Litern. Berechnung nur bei Vorlage eines Entsorgungsnachweises. "]
[null,"Ist der Nachweis älter als zwei Monate, wird die Gebühr für eine Leerung abgezogen. Bei anderen Tank-"]
[null,"größen sind entsprechende Zwischenwerte einzusetzen."]
[null,{"$f":"IF($P$64,\" \",\"Keine Berechnung ohne Entsorgungsnachweis!\")","v":"Keine Berechnung ohne Entsorgungsnachweis!"}]
[null,null,null,null,"Gebühr für eine Leerung incl. MWSt"]
[]
[null,null,null,null,"Datum des Entsorgungsnachweises"]
[null,{"$f":"IF($Q$64,\"Führt zum Abzug der Kosten einer Leerung!\",\" \")","v":" "}]
[null,"Größe",null,"Liter",null,null,"Kosten",null,"€",{"$f":"IF($P$64,IF(E78<>0,P80,0),0)","v":0},"€"]
[null,null,null,null,null,null,"            gemäß vorliegender Rechnung"]
[null,"Erstellung",null,"Alter",null,"x 5% Abschreibung entspr.",null,{"$f":"E78*5","v":0},"%",null,null,null,null,null,null,{"$f":"IF(H76<=C82,H76,C82)","v":0}]
[null,null,null,null,null,null,null,null,null,null,null,null,null,null,null,{"$f":"IF(P78-F82<=D82,D82,P78-F82)","v":0}]
[null,"Hilfstabelle",null,null,null,null,null,null,null,null,null,null,null,null,null,{"$f":"IF($Q$64,P79-H72,P79)","v":0}]
[null,"Größe","MaxWert","Restwert",null,"Abschreibung","Faktor Max.","Faktor Rest"]
[null,{"$f":"C76","v":0},{"$f":"($B$82-1500)*$G$82+900","v":300},{"$f":"($B$82-1500)*$H$82+100","v":0},null,{"$f":"IF(H76<=C82,P78*H78%,C82*H78%)","v":0},{"$f":"600/1500","v":0.4},{"$f":"100/1500","v":6.6666666666666666E-2}]
[]
[null,"Achtung bei roten Einträgen sind die vorgesehen Maximalbeträge"]
[null,"überschritten. Bitte korrigieren!!"]
[null,"In den berechneten Feldern werden grundsätzlich nur die vorgesehenen",null,null,null,null,null,"insgesamt",null,{"$f":"J10+J14+J28+J32+J36+J44+J56+J76","v":0},"€"]
[null,"Maximalwerte (oder keine Werte) berücksichtigt!"]
[]
[]
[]
[]
[]
[null,null,"Einzelanschluss"]
[null,null,"Gemeinschaftsanschl."]
[]
[null,null,"bis 1973",200]
[null,null,"ab 1974",400]
[null,null,"ab 1980",600]
[null,null,"ab 2001",800]
[]
[null,null,"Gem.Anschl.",400]

{"sheet":"Bemerkungen","index":9,"n_rows":94,"n_cols":9,"rows_kept":94,"cut":false,"hidden":false,"merged":[[53,1,53,5],[47,1,47,5],[30,1,30,5],[25,1,25,5],[29,1,29,5],[28,1,28,5],[27,1,27,5],[26,1,26,5],[49,1,49,5],[39,1,39,5],[38,1,38,5],[37,1,37,5],[36,1,36,5],[35,1,35,5],[34,1,34,5],[52,1,52,5],[66,1,66,5],[57,1,57,5],[58,1,58,5],[59,1,59,5],[77,0,77,2],[61,1,61,5],[60,1,60,5],[72,1,72,5],[68,1,68,5],[69,1,69,5],[73,1,73,5],[64,1,64,5],[67,1,67,5],[65,1,65,5],[70,1,70,5],[71,1,71,5],[1,0,1,8],[0,0,0,8],[2,0,3,1],[2,2,2,8],[3,2,3,4],[3,5,3,6],[5,1,5,5],[6,1,6,5],[24,1,24,5],[7,1,7,5],[79,0,79,1],[8,1,8,5],[9,1,9,5],[10,1,10,5],[11,1,11,5],[12,1,12,5],[62,1,62,5],[63,1,63,5],[54,1,54,5],[55,1,55,5],[56,1,56,5],[75,0,75,5],[13,1,13,5],[16,1,16,5],[17,1,17,5],[18,1,18,5],[19,1,19,5],[22,1,22,5],[14,1,14,5],[15,1,15,5],[33,1,33,5],[20,1,20,5],[21,1,21,5],[23,1,23,5],[32,1,32,5],[31,1,31,5],[46,1,46,5],[50,1,50,5],[51,1,51,5],[48,1,48,5],[40,1,40,5],[41,1,41,5],[42,1,42,5],[43,1,43,5],[44,1,44,5],[45,1,45,5],[94,5,94,6],[93,0,93,5],[81,0,81,1],[81,5,81,6],[82,5,82,6],[83,5,83,6],[85,1,85,5],[86,1,86,5],[84,0,84,2],[91,1,91,5],[89,1,89,5],[90,1,90,5],[87,1,87,5],[88,1,88,5]]}
["Wertabschätzung"]
["der kleingärtnerischen Anlagen und Bestände nach den Richtlinien des Landesverbandes der Gartenfreunde Bremen e.V."]
["Bemerkungen",null,"Die Kosten der einzelnen Positionen errechnen sich aus Stunden x Stundensatz (10 € / Std.) "]
[null,null,"Entsorgungskosten unter der Tabelle!",null,null,"Summe Bemerkungen: ",null,{"$f":"H76+H94","v":0},"€"]
["lfd. Nr.","Bezeichnung",null,null,null,null,"Stunden","Kosten"]
[null,null,null,null,null,null,null,{"$f":"IF(ISNUMBER(G6),IF(G6>0,G6*10,0),0)","v":0},"€"]
[null,null,null,null,null,null,null,{"$f":"IF(ISNUMBER(G7),IF(G7>0,G7*10,0),0)","v":0},"€"]
[null,null,null,null,null,null,null,0,"€"]
[null,null,null,null,null,null,null,0,"€"]
[null,null,null,null,null,null,null,0,"€"]
[null,null,null,null,null,null,null,0,"€"]
[null,null,null,null,null,null,null,0,"€"]
[null,null,null,null,null,null,null,0,"€"]
[null,null,null,null,null,null,null,0,"€"]
[null,null,null,null,null,null,null,0,"€"]
[null,null,null,null,null,null,null,0,"€"]
[null,null,null,null,null,null,null,0,"€"]
[null,null,null,null,null,null,null,0,"€"]
[null,null,null,null,null,null,null,0,"€"]
[null,null,null,null,null,null,null,0,"€"]
[null,null,null,null,null,null,null,0,"€"]
[null,null,null,null,null,null,null,0,"€"]
[null,null,null,null,null,null,null,0,"€"]
[null,null,null,null,null,null,null,0,"€"]
[null,null,null,null,null,null,null,0,"€"]
[null,null,null,null,null,null,null,0,"€"]
[null,null,null,null,null,null,null,0,"€"]
[null,null,null,null,null,null,null,0,"€"]
[null,null,null,null,null,null,null,0,"€"]
[null,null,null,null,null,null,null,0,"€"]
[null,null,null,null,null,null,null,0,"€"]
[null,null,null,null,null,null,null,0,"€"]
[null,null,null,null,null,null,null,0,"€"]
[null,null,null,null,null,null,null,0,"€"]
[null,null,null,null,null,null,null,0,"€"]
[null,null,null,null,null,null,null,0,"€"]
[null,null,null,null,null,null,null,0,"€"]
[null,null,null,null,null,null,null,0,"€"]
[null,null,null,null,null,null,null,0,"€"]
[null,null,null,null,null,null,null,0,"€"]
[null,null,null,null,null,null,null,0,"€"]
[null,null,null,null,null,null,null,0,"€"]
[null,null,null,null,null,null,null,0,"€"]
[null,null,null,null,null,null,null,0,"€"]
[null,null,null,null,null,null,null,0,"€"]
[null,null,null,null,null,null,null,0,"€"]
[null,null,null,null,null,null,null,0,"€"]
[null,null,null,null,null,null,null,0,"€"]
[null,null,null,null,null,null,null,0,"€"]
[null,null,null,null,null,null,null,0,"€"]
[null,null,null,null,null,null,null,0,"€"]
[null,null,null,null,null,null,null,0,"€"]
[null,null,null,null,null,null,null,0,"€"]
[null,null,null,null,null,null,null,0,"€"]
[null,null,null,null,null,null,null,0,"€"]
[null,null,null,null,null,null,null,0,"€"]
[null,null,null,null,null,null,null,0,"€"]
[null,null,null,null,null,null,null,0,"€"]
[null,null,null,null,null,null,null,0,"€"]
[null,null,null,null,null,null,null,0,"€"]
[null,null,null,null,null,null,null,0,"€"]
[null,null,null,null,null,null,null,0,"€"]
[null,null,null,null,null,null,null,0,"€"]
[null,null,null,null,null,null,null,0,"€"]
[null,null,null,null,null,null,null,0,"€"]
[null,null,null,null,null,null,null,0,"€"]
[null,null,null,null,null,null,null,0,"€"]
[null,null,null,null,null,null,null,0,"€"]
[null,null,null,null,null,null,null,0,"€"]
[null,null,null,null,null,null,null,0,"€"]
[null,null,null,null,null,null,null,0,"€"]
[null,null,null,null,null,null,null,0,"€"]
[null,null,null,null,null,null,null,0,"€"]
[null,null,null,null,null,null,null,0,"€"]
[]
["Kosten für die Beseitigung der vorstehend aufgeführten Mängel",null,null,null,null,null,null,{"$f":"SUM(H6:H74)","v":0},"€"]
[]
["Entsorgungskosten"]
[]
["Container",null,null,"Anzahl",null,null,"Preis",null,"€"]
[]
["Deponiegebühren",null,null,null,null,"Bauschutt",null,null,"€"]
[null,null,null,null,null,"Baustellenabfälle",null,null,"€"]
[null,null,null,null,null,"Baumschnitt / Strauchwerk",null,null,"€"]
["Sondermüll / Bemerkungen"]
[]
[]
[]
[]
[]
[]
[]
[]
["Summe der Entsorgungskosten",null,null,null,null,null,null,{"$f":"SUM(H80:H84)","v":0},"€"]

{"sheet":"Skizze","index":10,"n_rows":55,"n_cols":32,"rows_kept":55,"cut":false,"hidden":false,"merged":[[3,31,38,44],[0,1,0,29],[1,1,1,29],[53,0,53,29],[54,20,54,23],[54,24,54,25],[54,27,54,28],[54,0,54,2],[54,3,54,14],[54,16,54,17],[54,18,54,19]]}
["7.","Skizze (vertragswidrige Anpflanzungen / Bebauung) nicht maßstabsgerecht"]
[null,"Nachfolgende Zahlen beziehen sich auf die laufende Nummer in der ersten Spalte unter \"6. Bemerkungen\":"]
[]
[null,null,null,null,null,null,null,null,null,null,null,null,null,null,null,null,null,null,null,null,null,null,null,null,null,null,null,null,null,null,null,"Wenn Ihr nicht mit den Zeichenwerkzeugen von Excel arbeiten wollt und die Skizze lieber von Hand eintragen wollt, lasst diese Seite einfach frei!\n\nIm Gesamtausdruck sind auf der Seite 8 kleine \"Kästchen\" vorhanden, so dass Ihr nicht auf einem weißen Blatt zeichnen müsst.\n\nWenn Ihr diese Skizze nutzen wollt, beachtet bitte Folgendes:\n\nZeichnet immer alle Elemente innerhalb des markierten Hintergrunds. Nur dann werden auch alle Elemente mit ausgedruckt.\n\nZum Ausdrucken dieser Seite könnt Ihr die Schaltfläche unten benutzen. Schaut Sie Euch vorher am besten in der Seitenvorschau an. Beim Ausdrucken der Schätzung über die Schaltfläche auf dem Registerblatt \"Erfassung\" könnt Ihr auswählen, ob die Skizze mit ausgedruckt werden soll oder nicht.\n\nWenn Probleme auftauchen sollten, könnt Ihr die Datei \n\"Anfertigen von Skizzen in Excel 2015-04.pdf\" zu Rate ziehen. Ihr findet diese (oder eine Nachfolgedatei) auf der Seite des Landesverbands zum Herunterladen."]
[]
[]
[]
[]
[]
[]
[]
[]
[]
[]
[]
[]
[]
[]
[]
[]
[]
[]
[]
[]
[]
[]
[]
[]
[]
[]
[]
[]
[]
[]
[]
[]
[]
[]
[]
[]
[]
[]
[]
[null,null,null,null,null,null,null,null,null,null,null,null,null,null,null,null,null,null,null,null,null,null,null,null,null,null,null,null,null,null,null,"Textfelder kopieren (bei drückter Strg-Taste)"]
[null,null,null,null,null,null,null,null,null,null,null,null,null,null,null,null,null,null,null,null,null,null,null,null,null,null,null,null,null,null,null,"mit der Maus verschieben. Doppelklick öffnet"]
[null,null,null,null,null,null,null,null,null,null,null,null,null,null,null,null,null,null,null,null,null,null,null,null,null,null,null,null,null,null,null,"den Text zum Bearbeiten:"]
[]
[null,null,null,null,null,null,null,null,null,null,null,null,null,null,null,null,null,null,null,null,null,null,null,null,null,null,null,null,null,null,null,"Textfelder:"]
[]
[]
[]
[]
[]
[]
["Schätzung",null,null,{"$f":"Gesamtausdruck!$I$7","v":" "},null,null,null,null,null,null,null,null,null,null,null,"Nr.",{"$f":"Gesamtausdruck!$W$7","v":" "},null,"Datum",null,{"$f":"IF(Festwerte!$D$18<>\"\",Festwerte!$D$18,\" \")","v":" "},null,null,null,"Seite",null,8,"von",null,9]

{"sheet":"Zusatztext","index":11,"n_rows":25,"n_cols":3,"rows_kept":25,"cut":false,"hidden":false,"merged":[[18,2,18,8],[24,0,25,1],[23,0,23,5],[24,2,25,2],[19,2,19,8],[20,2,20,8],[21,2,21,8],[17,2,17,8],[7,2,7,8],[10,2,10,8],[11,2,11,8],[12,2,12,8],[15,2,15,8],[16,2,16,8],[8,2,8,8],[9,2,9,8],[13,2,13,8],[14,2,14,8],[1,0,1,9],[0,0,0,9],[4,2,4,8],[5,2,5,8],[6,2,6,8]]}
["Wertabschätzung"]
["der kleingärtnerischen Anlagen und Bestände nach den Richtlinien des Landesverbandes der Gartenfreunde Bremen e.V."]
[]
[]
["Zusatztext:",null,"Hinweis zu den Entsorgungskosten:"]
[null,null,"Werden die festgestellten Mängel  vom abgehenden Pächter nicht oder nicht vollständig beseitigt,"]
[null,null,"werden die dafür in der Wertabschätzung aufgeführten Kosten von der Schätzsumme abgezogen."]
[null,null,"Ein die Schätzsumme übersteigender Betrag ist beim Verpächter zu hinterlegen."]
[null,null,"Bestandteil der Kosten sind Entsorgungskosten, in der Regel Kosten für Container oder"]
[null,null,"BigBags und Deponiekosten. Diese können nur geschätzt werden."]
[null,null,"Nur nachgewiesene Entsorgungskosten werden bis maximal dem auf Seite 7 dieser Wert-"]
[null,null,"abschätzung unter Summe Entsorgungskosten genannten Betrag erstattet."]
[null,null,"Die über diesen Betrag hinausgehenden Entsorgungskosten sind vom Nachpächter zu tragen."]
[]
[]
[]
[]
[]
[]
[]
[]
[]
[]
["Achtung!! Der als Restwert eingetragene Betrag ist zu groß!"]
["Zusatztext",null,"Lfd. Nr. 8.1"]

{"sheet":"Gesamtausdruck","index":12,"n_rows":498,"n_cols":30,"rows_kept":498,"cut":false,"hidden":false,"merged":[[21,2,21,15],[21,23,21,27],[107,1,107,29],[109,25,109,27],[110,25,110,27],[111,25,111,27],[123,2,123,23],[124,2,124,7],[124,8,124,9],[124,13,124,14],[124,19,124,21],[124,24,124,27],[109,2,109,8],[109,9,109,19],[110,2,110,8],[110,9,110,19],[112,2,112,28],[113,2,113,28],[114,2,114,28],[115,2,115,28],[116,2,116,28],[49,9,49,19],[50,9,50,19],[58,2,58,27],[125,2,125,22],[125,24,125,27],[126,16,126,22],[126,24,126,27],[117,2,117,28],[118,2,118,28],[119,2,119,28],[120,2,120,27],[121,8,121,11],[121,12,121,16],[122,7,122,9],[122,12,122,14],[122,17,122,19],[122,20,122,23],[122,24,122,27],[142,2,142,3],[143,2,143,3],[151,4,151,21],[257,2,257,4],[257,5,257,7],[269,2,269,27],[235,19,235,21],[236,2,236,28],[238,2,238,28],[268,5,268,7],[268,9,268,12],[248,2,248,26],[249,2,249,26],[257,9,257,12],[268,2,268,4],[228,14,228,16],[259,2,259,27],[260,2,260,27],[268,13,268,15],[255,10,255,12],[255,13,255,15],[237,19,237,21],[235,14,235,16],[257,13,257,15],[138,2,138,3],[205,2,205,3],[229,2,229,27],[247,2,247,26],[239,19,239,21],[237,22,237,23],[215,22,215,24],[212,25,212,27],[235,22,235,23],[239,22,239,23],[215,2,215,3],[214,2,214,3],[219,20,219,23],[219,18,219,19],[219,16,219,17],[213,25,213,27],[237,24,237,27],[237,14,237,16],[225,2,225,27],[226,2,226,27],[223,24,223,27],[221,1,221,29],[219,27,219,28],[228,2,228,13],[254,2,254,6],[130,4,130,21],[135,4,135,21],[136,4,136,21],[218,0,218,29],[150,2,150,3],[151,2,151,3],[139,2,139,3],[144,2,144,3],[140,2,140,3],[141,2,141,3],[200,4,200,21],[201,4,201,21],[202,25,202,27],[203,25,203,27],[201,2,201,3],[202,2,202,3],[131,2,131,3],[154,22,154,24],[152,4,152,21],[139,4,139,21],[144,4,144,21],[149,22,149,24],[145,2,145,3],[351,2,351,22],[350,2,350,22],[353,23,353,24],[353,2,353,22],[351,23,351,24],[350,23,350,24],[345,23,345,24],[253,5,253,7],[266,5,266,7],[266,10,266,12],[264,5,264,7],[265,2,265,6],[266,2,266,4],[258,2,258,27],[340,25,340,27],[287,23,287,24],[289,25,289,27],[289,23,289,24],[338,2,338,22],[339,2,339,22],[340,2,340,22],[312,2,312,22],[332,18,332,19],[289,2,289,22],[19,2,19,15],[497,24,497,25],[453,2,453,27],[489,2,489,11],[492,2,492,11],[493,2,493,11],[129,2,129,3],[127,1,127,29],[105,18,105,19],[100,2,100,28],[104,0,104,29],[102,12,102,22],[105,16,105,17],[96,2,96,28],[97,2,97,28],[99,2,99,28],[105,20,105,23],[94,25,94,27],[105,27,105,28],[69,2,69,23],[105,24,105,25],[71,24,71,27],[70,8,70,9],[50,25,50,27],[11,8,11,29],[15,23,15,27],[17,23,17,27],[25,23,25,27],[23,2,23,15],[68,24,68,27],[68,7,68,9],[38,2,38,16],[45,0,45,29],[44,0,44,29],[47,1,47,29],[27,23,27,27],[68,12,68,14],[29,23,29,27],[36,23,36,27],[38,23,38,27],[60,2,60,27],[61,2,61,27],[62,2,62,27],[63,2,63,27],[64,2,64,27],[65,2,65,27],[42,0,43,29],[49,25,49,27],[59,2,59,27],[54,2,54,27],[55,2,55,27],[56,2,56,27],[70,13,70,14],[70,19,70,21],[57,2,57,27],[68,17,68,19],[67,12,67,15],[94,9,94,19],[88,7,88,9],[88,12,88,14],[88,17,88,19],[91,2,91,22],[88,20,88,23],[89,2,89,23],[445,18,445,19],[469,2,469,28],[462,2,462,28],[389,20,389,23],[445,0,445,2],[388,0,388,29],[461,2,461,28],[468,2,468,28],[465,2,465,28],[389,0,389,2],[444,0,444,29],[445,16,445,17],[445,20,445,23],[391,1,391,29],[447,1,447,29],[445,24,445,25],[91,24,91,27],[389,16,389,17],[361,2,361,28],[366,2,366,8],[368,17,368,19],[497,27,497,28],[497,0,497,2],[458,2,458,28],[472,2,472,28],[484,15,484,29],[473,2,473,28],[460,2,460,28],[463,2,463,28],[474,2,474,28],[471,2,471,28],[445,3,445,14],[445,27,445,28],[377,2,377,28],[374,2,374,11],[363,24,363,27],[363,2,363,23],[368,24,368,27],[370,24,370,27],[389,18,389,19],[389,24,389,25],[98,2,98,28],[332,27,332,28],[132,2,132,3],[130,2,130,3],[131,4,131,21],[335,25,336,27],[336,2,336,22],[337,25,337,27],[135,2,135,3],[136,2,136,3],[134,4,134,21],[202,4,202,21],[235,24,235,27],[105,3,105,14],[134,22,134,24],[134,2,134,3],[133,2,133,3],[133,4,133,21],[129,4,129,21],[209,25,209,27],[137,2,137,3],[216,2,216,24],[216,25,216,27],[294,25,294,27],[0,0,0,29],[1,0,1,24],[3,1,3,7],[6,1,6,7],[3,8,3,29],[8,1,8,7],[4,8,4,29],[6,24,6,25],[8,8,8,29],[6,26,6,28],[6,8,6,20],[6,22,6,23],[128,1,129,1],[92,16,92,22],[490,17,490,26],[497,20,497,23],[496,0,496,29],[497,16,497,17],[494,2,494,11],[90,24,90,27],[273,2,273,23],[162,20,162,23],[335,1,336,1],[497,18,497,19],[488,17,488,26],[492,17,492,26],[489,17,489,26],[493,17,493,26],[490,2,490,11],[497,3,497,14],[277,1,277,29],[288,25,288,27],[288,23,288,24],[287,25,287,27],[344,2,344,22],[92,24,92,27],[10,1,10,7],[88,24,88,27],[90,2,90,7],[90,8,90,9],[90,13,90,14],[34,2,34,22],[31,23,31,27],[17,2,17,15],[10,8,10,29],[19,23,19,27],[23,23,23,27],[13,1,13,28],[15,2,15,15],[77,25,77,27],[78,2,78,28],[76,2,76,8],[80,2,80,28],[81,2,81,28],[90,19,90,21],[53,2,53,27],[70,24,70,27],[46,0,46,29],[67,8,67,11],[52,2,52,27],[378,2,378,28],[376,2,376,28],[371,24,371,27],[386,2,386,23],[488,2,488,11],[494,17,494,26],[475,2,475,28],[470,2,470,28],[464,2,464,28],[455,2,455,28],[467,2,467,28],[466,2,466,28],[459,2,459,28],[485,15,485,29],[480,15,480,29],[477,2,477,16],[477,17,477,26],[480,2,480,14],[484,2,484,11],[449,2,449,28],[451,2,451,28],[372,24,372,27],[384,2,384,22],[384,24,384,27],[228,24,228,27],[228,22,228,23],[230,2,230,27],[228,19,228,21],[389,27,389,28],[389,3,389,14],[386,24,386,27],[372,9,372,23],[390,1,390,29],[341,2,341,22],[344,23,344,24],[348,2,348,22],[275,0,275,29],[243,24,243,27],[243,14,243,17],[266,13,266,15],[273,24,273,27],[253,24,253,27],[255,17,255,25],[256,2,256,6],[253,2,253,4],[253,10,253,12],[253,13,253,15],[266,17,266,25],[219,3,219,14],[245,24,245,27],[243,4,243,13],[239,24,239,27],[263,2,263,27],[239,14,239,16],[250,24,250,27],[267,2,267,6],[156,4,156,21],[157,4,157,21],[162,18,162,19],[166,4,166,21],[214,22,214,24],[173,22,173,24],[214,4,214,21],[212,4,212,21],[212,22,212,24],[213,4,213,21],[213,22,213,24],[165,22,165,24],[173,25,173,27],[169,25,169,27],[171,2,171,3],[171,4,171,21],[153,2,153,3],[146,2,146,3],[147,2,147,3],[148,2,148,3],[149,2,149,3],[153,4,153,21],[147,4,147,21],[146,4,146,21],[154,2,154,3],[154,4,154,21],[152,2,152,3],[155,2,155,3],[156,2,156,3],[162,3,162,14],[157,2,157,3],[210,25,210,27],[200,22,200,24],[201,22,201,24],[202,22,202,24],[168,25,168,27],[167,25,167,27],[157,22,157,24],[162,16,162,17],[172,2,172,3],[172,4,172,21],[172,25,172,27],[169,2,169,3],[169,4,169,21],[169,22,169,24],[174,2,174,3],[174,4,174,21],[174,22,174,24],[174,25,174,27],[173,2,173,3],[173,4,173,21],[154,25,154,27],[166,25,166,27],[200,25,200,27],[203,22,203,24],[203,4,203,21],[167,22,167,24],[159,2,159,24],[171,22,171,24],[172,22,172,24],[155,4,155,21],[162,27,162,28],[158,22,158,24],[168,4,168,21],[167,2,167,3],[167,4,167,21],[158,4,158,21],[162,24,162,25],[159,25,159,27],[168,2,168,3],[164,1,164,29],[168,22,168,24],[170,22,170,24],[170,25,170,27],[200,2,200,3],[171,25,171,27],[170,2,170,3],[170,4,170,21],[177,2,177,3],[177,4,177,21],[177,22,177,24],[177,25,177,27],[176,2,176,3],[176,4,176,21],[176,22,176,24],[176,25,176,27],[175,2,175,3],[175,4,175,21],[175,22,175,24],[175,25,175,27],[180,2,180,3],[180,4,180,21],[180,22,180,24],[180,25,180,27],[179,2,179,3],[179,4,179,21],[179,22,179,24],[179,25,179,27],[178,2,178,3],[178,4,178,21],[178,22,178,24],[178,25,178,27],[183,2,183,3],[183,4,183,21],[183,22,183,24],[183,25,183,27],[182,2,182,3],[182,4,182,21],[182,22,182,24],[182,25,182,27],[181,2,181,3],[181,4,181,21],[181,22,181,24],[181,25,181,27],[186,2,186,3],[186,4,186,21],[186,22,186,24],[186,25,186,27],[185,2,185,3],[185,4,185,21],[185,22,185,24],[185,25,185,27],[184,2,184,3],[184,4,184,21],[184,22,184,24],[184,25,184,27],[189,2,189,3],[189,4,189,21],[189,22,189,24],[189,25,189,27],[188,2,188,3],[188,4,188,21],[188,22,188,24],[188,25,188,27],[187,2,187,3],[187,4,187,21],[187,22,187,24],[187,25,187,27],[192,2,192,3],[192,4,192,21],[192,22,192,24],[192,25,192,27],[191,2,191,3],[191,4,191,21],[191,22,191,24],[191,25,191,27],[190,2,190,3],[190,4,190,21],[190,22,190,24],[190,25,190,27],[195,2,195,3],[195,4,195,21],[195,22,195,24],[195,25,195,27],[194,2,194,3],[194,4,194,21],[194,22,194,24],[194,25,194,27],[193,2,193,3],[193,4,193,21],[193,22,193,24],[193,25,193,27],[198,2,198,3],[198,4,198,21],[198,22,198,24],[198,25,198,27],[197,2,197,3],[197,4,197,21],[197,22,197,24],[197,25,197,27],[196,2,196,3],[196,4,196,21],[196,22,196,24],[196,25,196,27],[209,2,209,3],[209,22,209,24],[210,22,210,24],[211,25,211,27],[204,2,204,3],[204,4,204,21],[204,22,204,24],[204,25,204,27],[199,2,199,3],[199,4,199,21],[199,22,199,24],[199,25,199,27],[203,2,203,3],[201,25,201,27],[211,2,211,3],[211,4,211,21],[211,22,211,24],[255,2,255,4],[255,5,255,7],[271,2,271,8],[264,2,264,4],[271,9,271,12],[271,13,271,15],[270,24,270,27],[276,16,276,17],[276,20,276,23],[276,0,276,2],[276,27,276,28],[264,24,264,27],[285,25,285,27],[285,23,285,24],[278,1,279,1],[281,23,281,24],[283,25,283,27],[285,2,285,22],[276,24,276,25],[282,25,282,27],[276,18,276,19],[279,23,279,24],[278,25,279,27],[280,25,280,27],[284,25,284,27],[284,23,284,24],[282,2,282,22],[283,2,283,22],[283,23,283,24],[281,25,281,27],[279,2,279,22],[276,3,276,14],[280,23,280,24],[281,2,281,22],[284,2,284,22],[286,25,286,27],[286,23,286,24],[288,2,288,22],[291,25,291,27],[291,2,291,22],[291,23,291,24],[290,25,290,27],[290,2,290,22],[286,2,286,22],[290,23,290,24],[287,2,287,22],[299,2,299,22],[299,23,299,24],[298,25,298,27],[298,2,298,22],[298,23,298,24],[293,23,293,24],[292,25,292,27],[292,2,292,22],[292,23,292,24],[297,25,297,27],[297,2,297,22],[297,23,297,24],[296,25,296,27],[296,2,296,22],[296,23,296,24],[295,25,295,27],[295,2,295,22],[295,23,295,24],[294,2,294,22],[294,23,294,24],[293,25,293,27],[293,2,293,22],[381,2,381,28],[382,2,382,28],[379,2,379,28],[380,2,380,28],[142,4,142,21],[223,2,223,5],[223,6,223,23],[215,4,215,21],[213,2,213,3],[148,4,148,21],[143,4,143,21],[145,4,145,21],[209,4,209,21],[210,4,210,21],[320,25,320,27],[320,2,320,22],[320,23,320,24],[316,2,316,22],[322,25,322,27],[319,23,319,24],[316,25,316,27],[155,22,155,24],[145,22,145,24],[146,22,146,24],[165,1,166,1],[212,2,212,3],[210,2,210,3],[166,2,166,3],[158,2,158,3],[161,0,161,29],[166,22,166,24],[149,4,149,21],[150,4,150,21],[208,25,208,27],[208,2,208,3],[208,4,208,21],[208,22,208,24],[207,2,207,3],[207,4,207,21],[207,22,207,24],[207,25,207,27],[206,2,206,3],[206,4,206,21],[206,22,206,24],[206,25,206,27],[205,4,205,21],[205,22,205,24],[205,25,205,27],[151,22,151,24],[152,22,152,24],[140,22,140,24],[140,4,140,21],[141,4,141,21],[132,22,132,24],[133,22,133,24],[136,22,136,24],[135,22,135,24],[132,4,132,21],[137,4,137,21],[138,4,138,21],[138,22,138,24],[139,22,139,24],[318,25,318,27],[318,2,318,22],[318,23,318,24],[305,25,305,27],[305,2,305,22],[305,23,305,24],[309,25,309,27],[309,23,309,24],[308,25,308,27],[308,2,308,22],[308,23,308,24],[309,2,309,22],[306,2,306,22],[317,25,317,27],[307,25,307,27],[313,2,313,22],[315,2,315,22],[315,23,315,24],[310,2,310,22],[310,23,310,24],[312,23,312,24],[306,25,306,27],[311,25,311,27],[312,25,312,27],[72,24,72,27],[72,17,72,22],[73,1,73,29],[75,2,75,8],[75,9,75,19],[271,16,271,18],[76,9,76,19],[76,25,76,27],[79,2,79,28],[75,25,75,27],[85,2,85,28],[231,2,231,27],[155,25,155,27],[152,25,152,27],[101,2,101,28],[82,2,82,28],[87,8,87,11],[233,2,233,13],[86,2,86,27],[156,25,156,27],[157,25,157,27],[144,25,144,27],[135,25,135,27],[136,25,136,27],[219,24,219,25],[128,22,128,24],[128,25,128,27],[151,25,151,27],[149,25,149,27],[150,25,150,27],[158,25,158,27],[301,25,301,27],[301,2,301,22],[153,25,153,27],[142,25,142,27],[141,25,141,27],[143,25,143,27],[147,25,147,27],[150,22,150,24],[137,22,137,24],[141,22,141,24],[146,25,146,27],[138,25,138,27],[148,25,148,27],[139,25,139,27],[140,25,140,27],[137,25,137,27],[145,25,145,27],[165,25,165,27],[156,22,156,24],[83,2,83,28],[84,2,84,28],[102,24,102,27],[87,12,87,16],[94,2,94,8],[214,25,214,27],[215,25,215,27],[129,25,129,27],[130,22,130,24],[130,25,130,27],[131,22,131,24],[131,25,131,27],[129,22,129,24],[132,25,132,27],[133,25,133,27],[134,25,134,27],[153,22,153,24],[142,22,142,24],[143,22,143,24],[148,22,148,24],[144,22,144,24],[147,22,147,24],[315,25,315,27],[314,23,314,24],[314,25,314,27],[313,25,313,27],[314,2,314,22],[224,2,224,27],[280,2,280,22],[282,23,282,24],[272,2,272,26],[302,2,302,22],[302,23,302,24],[313,23,313,24],[311,23,311,24],[311,2,311,22],[307,2,307,22],[307,23,307,24],[306,23,306,24],[304,25,304,27],[304,2,304,22],[304,23,304,24],[300,25,300,27],[300,2,300,22],[300,23,300,24],[299,25,299,27],[301,23,301,24],[303,25,303,27],[303,2,303,22],[303,23,303,24],[302,25,302,27],[329,25,329,27],[329,21,329,24],[316,23,316,24],[326,2,326,22],[323,2,323,22],[322,2,322,22],[324,25,324,27],[323,25,323,27],[326,25,326,27],[319,25,319,27],[323,23,323,24],[324,23,324,24],[317,2,317,22],[317,23,317,24],[324,2,324,22],[319,2,319,22],[321,25,321,27],[321,2,321,22],[321,23,321,24],[358,23,358,24],[359,2,359,22],[337,23,337,24],[340,23,340,24],[341,23,341,24],[342,23,342,24],[343,23,343,24],[347,23,347,24],[348,23,348,24],[354,2,354,22],[346,2,346,22],[354,23,354,24],[349,2,349,22],[343,2,343,22],[356,23,356,24],[339,23,339,24],[342,2,342,22],[346,23,346,24],[345,2,345,22],[356,2,356,22],[349,23,349,24],[352,2,352,22],[347,2,347,22],[352,23,352,24],[359,25,359,27],[350,25,350,27],[351,25,351,27],[352,25,352,27],[339,25,339,27],[332,24,332,25],[358,25,358,27],[344,25,344,27],[345,25,345,27],[346,25,346,27],[347,25,347,27],[348,25,348,27],[349,25,349,27],[334,1,334,29],[357,2,357,22],[358,2,358,22],[341,25,341,27],[342,25,342,27],[343,25,343,27],[354,25,354,27],[355,2,355,22],[357,23,357,24],[359,23,359,24],[355,25,355,27],[356,25,356,27],[357,25,357,27],[227,2,227,28],[267,24,267,27],[268,24,268,27],[245,4,245,23],[234,2,234,28],[353,25,353,27],[338,25,338,27],[331,0,331,29],[332,0,332,2],[327,2,327,28],[325,25,325,27],[332,3,332,14],[332,20,332,23],[332,16,332,17],[329,2,329,19],[338,23,338,24],[355,23,355,24],[326,23,326,24],[322,23,322,24],[325,23,325,24],[325,2,325,22],[310,25,310,27]]}
["Wertabschätzung"]
["der kleingärtnerischen Anlagen und Bestände nach den Richtlinien des \nLandesverbandes der Gartenfreunde Bremen e.V. "]
[]
[null,"Kleingärtnerverein:",null,null,null,null,null,null,{"$f":"IF(NOT(ISBLANK(Festwerte!D6)),Festwerte!D6,\" \")","v":" "}]
[null,null,null,null,null,null,null,null,{"$f":"IF(NOT(ISBLANK(Festwerte!D7)),Festwerte!D7,\" \")","v":" "}]
[]
[null,"Kleingarten, Weg:",null,null,null,null,null,null,{"$f":"IF(NOT(ISBLANK(Festwerte!D9)),Festwerte!D9,\" \")","v":" "},null,null,null,null,null,null,null,null,null,null,null,null,"Nr.",{"$f":"IF(NOT(ISBLANK(Festwerte!I9)),Festwerte!I9,\" \")","v":" "},null,"Größe",null,{"$f":"IF(NOT(ISBLANK(Festwerte!D10)),Festwerte!D10,\" \")","v":" "},null,null,"m²"]
[]
[null,"Pächter:",null,null,null,null,null,null,{"$f":"IF(NOT(ISBLANK(Festwerte!D12)),Festwerte!D12,\" \")","v":" "}]
[]
[null,"Anschrift:",null,null,null,null,null,null,{"$f":"IF(NOT(ISBLANK(Festwerte!D13)),Festwerte!D13,\" \")","v":" "}]
[null,null,null,null,null,null,null,null,{"$f":"IF(NOT(ISBLANK(Festwerte!D14)),Festwerte!D14,\" \")","v":" "}]
[]
[null,"Kleingärtnerische Anlagen und Bestände"]
[]
[null,"1.","Gartenlaube",null,null,null,null,null,null,null,null,null,null,null,null,null,null,null,null,null,null,null,null,{"$f":"IF(NOT(ISBLANK(Berechnungen!F6)),Berechnungen!F6,\" \")","v":0},null,null,null,null,"€"]
[]
[null,"2.","Genehmigter Anbau",null,null,null,null,null,null,null,null,null,null,null,null,null,null,null,null,null,null,null,null,{"$f":"IF(NOT(ISBLANK(Berechnungen!F8)),Berechnungen!F8,\" \")","v":0},null,null,null,null,"€"]
[]
[null,null,"Genehmigtes Nebengebäude",null,null,null,null,null,null,null,null,null,null,null,null,null,null,null,null,null,null,null,null,{"$f":"IF(NOT(ISBLANK(Berechnungen!F9)),Berechnungen!F9,\" \")","v":0},null,null,null,null,"€"]
[]
[null,null,"Überdachter Freisitz",null,null,null,null,null,null,null,null,null,null,null,null,null,null,null,null,null,null,null,null,{"$f":"IF(NOT(ISBLANK(Berechnungen!F10)),Berechnungen!F10,\" \")","v":0},null,null,null,null,"€"]
[]
[null,"3.","Dauerkulturen",null,null,null,null,null,null,null,null,null,null,null,null,null,null,null,null,null,null,null,null,{"$f":"IF(NOT(ISBLANK(Berechnungen!F12)),Berechnungen!F12,\" \")","v":0},null,null,null,null,"€"]
[]
[null,"4.","Zierpflanzen und Sträucher",null,null,null,null,null,null,null,null,null,null,null,null,null,null,null,null,null,null,null,null,{"$f":"IF(NOT(ISBLANK(Berechnungen!F14)),Berechnungen!F14,\" \")","v":0},null,null,null,null,"€"]
[]
[null,"5.","Nebenanlagen",null,null,null,null,null,null,null,null,null,null,null,null,null,null,null,null,null,null,null,null,{"$f":"IF(NOT(ISBLANK(Berechnungen!F16)),Berechnungen!F16,\" \")","v":0},null,null,null,null,"€"]
[]
[null,null,null,null,null,null,null,null,null,null,null,null,null,null,null,null,"Schätzsumme",null,null,null,null,null,null,{"$f":"IF(NOT(ISBLANK(Berechnungen!F18)),Berechnungen!F18,\" \")","v":0},null,null,null,null,"€"]
[]
[null," 6.","Die unter Bemerkungen aufgeführten Mängel",null,null,null,null,null,null,null,null,null,null,null,null,null,"Mängelabzug",null,null,null,null,null,null,{"$f":"IF(NOT(ISBLANK(Berechnungen!F20)),Berechnungen!F20,\" \")","v":0},null,null,null,null,"€"]
[null,null,"sind zu beseitigen!"]
[]
[null,null,"Soweit die Beseitigung der aufgeführten Mängel durch den weichenden Pächter unterbleibt, ist der Betrag für den Mängelabzug an den Verpächter zu zahlen."]
[]
[null,null,null,null,null,null,null,null,null,null,null,null,null,null,null,null,"Restsumme",null,null,null,null,null,null,{"$f":"IF(NOT(ISBLANK(Berechnungen!F22)),Berechnungen!F22,\" \")","v":""},null,null,null,null,"€"]
[]
[null,null,"Für Mängelbeseitigung zu hinterlegen",null,null,null,null,null,null,null,null,null,null,null,null,null,null,null,null,null,null,null,null,{"$f":"X32","v":0},null,null,null,null,"€"]
[]
[null,null,"Datum der Schätzung",null,null,null,null,null,null,null,null,null,null,null,null,null,null,null,null,null,null,null,null,null,null,null,null,{"$f":"IF(Festwerte!$D$18<>\"\",Festwerte!$D$18,\" \")","v":" "}]
[]
["Exemplar für den      [   ]  abgebenden Pächter      [   ]  Nachpächter      [   ]  Verein"]
[]
["Einspruchsfrist"]
["Einwendungen gegen diese Wertabschätzung sind innerhalb von 14 Tagen nach Aushändigung  in  Schriftform beim Landesverband der Gartenfreunde Bremen e.V., Johann-Friedrich-Walte-Str.2, 28357 Bremen, zu erheben. Die Beanstandungen sind detailliert aufzuführen."]
["Wird die Frist versäumt, gilt die Schätzung als anerkannt!"]
["1.","Gartenlaube"]
[]
[null,null,"Datum d. Bauerstellung:",null,null,null,null,null,null,{"$f":"IF(Gartenlaube!C4=0,\"\",Gartenlaube!C4)","v":""},null,null,null,null,null,null,null,null,null,null,"Grundfläche:",null,null,null,null,{"$f":"Gartenlaube!G4","v":0},null,null,"m²"]
[null,null,"Datum der Abnahme:",null,null,null,null,null,null,{"$f":"IF(Gartenlaube!C6=0,\"\",Gartenlaube!C6)","v":""},null,null,null,null,null,null,null,null,null,null,"Ausgangswert:",null,null,null,null,{"$f":"Gartenlaube!G6","v":0},null,null,"M"]
[null,"1.1","Baubeschreibung:"]
[null,null,{"$f":"IF(Gartenlaube!C8=0,\"\",Gartenlaube!C8)","v":""}]
[null,null,{"$f":"IF(Gartenlaube!C9=0,\"\",Gartenlaube!C9)","v":""}]
[null,null,{"$f":"IF(Gartenlaube!C10=0,\"\",Gartenlaube!C10)","v":""}]
[null,null,{"$f":"IF(Gartenlaube!C11=0,\"\",Gartenlaube!C11)","v":""}]
[null,null,{"$f":"IF(Gartenlaube!C12=0,\"\",Gartenlaube!C12)","v":""}]
[null,null,{"$f":"IF(Gartenlaube!C13=0,\"\",Gartenlaube!C13)","v":""}]
[null,null,{"$f":"IF(Gartenlaube!C14=0,\"\",Gartenlaube!C14)","v":""}]
[null,null,{"$f":"IF(Gartenlaube!C15=0,\"\",Gartenlaube!C15)","v":""}]
[null,null,{"$f":"IF(Gartenlaube!C16=0,\"\",Gartenlaube!C16)","v":""}]
[null,null,{"$f":"IF(Gartenlaube!C17=0,\"\",Gartenlaube!C17)","v":""}]
[null,null,{"$f":"IF(Gartenlaube!C18=0,\"\",Gartenlaube!C18)","v":""}]
[null,null,{"$f":"IF(Gartenlaube!C19=0,\"\",Gartenlaube!C19)","v":""}]
[null,null,{"$f":"IF(Gartenlaube!C20=0,\"\",Gartenlaube!C20)","v":""}]
[null,null,{"$f":"IF(Gartenlaube!C21=0,\"\",Gartenlaube!C21)","v":""}]
[null,null,"Berechnung (nach Beschreibung und Feststellung vorhandener Mängel):"]
[null,null,null,null,null,null,null,null,"Grundfläche",null,null,null,"Rechenwert"]
[null,null,null,null,null,null,null,{"$f":"Gartenlaube!C25","v":0},null,null,"m²","x",{"$f":"Gartenlaube!E26","v":0},null,null,"M","x",{"$f":"Gartenlaube!G25","v":0},null,null,"Bauindex",null,null,null,{"$f":"Gartenlaube!I25","v":0},null,null,null,"€"]
[null,null,{"$f":"IF(Gartenlaube!E25<>Gartenlaube!E26,Gartenlaube!A29,\"\")","v":""}]
[null,null,"./. Abschreibung",null,null,null,null,null,{"$f":"Gartenlaube!C28","v":0},null,"Jahre",null,"x",{"$f":"Gartenlaube!E28","v":0},null,"% jährlich",null,null,null,{"$f":"Gartenlaube!G28","v":0},null,null,"%",null,{"$f":"Gartenlaube!I28","v":0},null,null,null,"€"]
[null,null,"Restwert (bis max. 30% vom ermittelten Wert)",null,null,null,null,null,null,null,null,null,null,null,null,null,null,null,null,null,null,null,null,null,{"$f":"Gartenlaube!I31","v":0},null,null,null,"€"]
[null,null,null,null,null,null,null,null,null,null,null,null,null,null,null,null,null,"Wert der Laube",null,null,null,null,null,null,{"$f":"Gartenlaube!I33","v":0},null,null,null,"€"]
["2.","Genehmigter Anbau / Genehmigtes Nebengebäude / Überdachter Freisitz"]
[]
[null,null,"Datum d. Bauerstellung:",null,null,null,null,null,null,{"$f":"IF('Anbau-Nebengeb.- Freisitz'!C4=0,\"\",'Anbau-Nebengeb.- Freisitz'!C4)","v":""},{"$f":"IF('Anbau-Nebengeb.- Freisitz'!#REF!=0,\"\",'Anbau-Nebengeb.- Freisitz'!#REF!)","v":{"$error":"#REF!"}},{"$f":"IF('Anbau-Nebengeb.- Freisitz'!#REF!=0,\"\",'Anbau-Nebengeb.- Freisitz'!#REF!)","v":{"$error":"#REF!"}},{"$f":"IF('Anbau-Nebengeb.- Freisitz'!#REF!=0,\"\",'Anbau-Nebengeb.- Freisitz'!#REF!)","v":{"$error":"#REF!"}},{"$f":"IF('Anbau-Nebengeb.- Freisitz'!#REF!=0,\"\",'Anbau-Nebengeb.- Freisitz'!#REF!)","v":{"$error":"#REF!"}},{"$f":"IF('Anbau-Nebengeb.- Freisitz'!#REF!=0,\"\",'Anbau-Nebengeb.- Freisitz'!#REF!)","v":{"$error":"#REF!"}},{"$f":"IF('Anbau-Nebengeb.- Freisitz'!#REF!=0,\"\",'Anbau-Nebengeb.- Freisitz'!#REF!)","v":{"$error":"#REF!"}},{"$f":"IF('Anbau-Nebengeb.- Freisitz'!#REF!=0,\"\",'Anbau-Nebengeb.- Freisitz'!#REF!)","v":{"$error":"#REF!"}},{"$f":"IF('Anbau-Nebengeb.- Freisitz'!#REF!=0,\"\",'Anbau-Nebengeb.- Freisitz'!#REF!)","v":{"$error":"#REF!"}},{"$f":"IF('Anbau-Nebengeb.- Freisitz'!#REF!=0,\"\",'Anbau-Nebengeb.- Freisitz'!#REF!)","v":{"$error":"#REF!"}},{"$f":"IF('Anbau-Nebengeb.- Freisitz'!#REF!=0,\"\",'Anbau-Nebengeb.- Freisitz'!#REF!)","v":{"$error":"#REF!"}},"Grundfläche:",null,null,null,null,{"$f":"'Anbau-Nebengeb.- Freisitz'!G4","v":0},null,null,"m²"]
[null,null,"Datum der Abnahme:",null,null,null,null,null,null,{"$f":"IF('Anbau-Nebengeb.- Freisitz'!C6=0,\"\",'Anbau-Nebengeb.- Freisitz'!C6)","v":""},null,null,null,null,null,null,null,null,null,null,"Ausgangswert:",null,null,null,null,{"$f":"'Anbau-Nebengeb.- Freisitz'!G6","v":0},null,null,"M"]
[null,"2.1","Baubeschreibung (genehmigter Anbau):"]
[null,null,{"$f":"IF('Anbau-Nebengeb.- Freisitz'!C8=0,\"\",'Anbau-Nebengeb.- Freisitz'!C8)","v":""}]
[null,null,{"$f":"IF('Anbau-Nebengeb.- Freisitz'!C9=0,\"\",'Anbau-Nebengeb.- Freisitz'!C9)","v":""}]
[null,null,{"$f":"IF('Anbau-Nebengeb.- Freisitz'!C10=0,\"\",'Anbau-Nebengeb.- Freisitz'!C10)","v":""}]
[null,null,{"$f":"IF('Anbau-Nebengeb.- Freisitz'!C11=0,\"\",'Anbau-Nebengeb.- Freisitz'!C11)","v":""}]
[null,null,{"$f":"IF('Anbau-Nebengeb.- Freisitz'!C12=0,\"\",'Anbau-Nebengeb.- Freisitz'!C12)","v":""}]
[null,null,{"$f":"IF('Anbau-Nebengeb.- Freisitz'!C13=0,\"\",'Anbau-Nebengeb.- Freisitz'!C13)","v":""}]
[null,null,{"$f":"IF('Anbau-Nebengeb.- Freisitz'!C14=0,\"\",'Anbau-Nebengeb.- Freisitz'!C14)","v":""}]
[null,null,{"$f":"IF('Anbau-Nebengeb.- Freisitz'!C15=0,\"\",'Anbau-Nebengeb.- Freisitz'!C15)","v":""}]
[null,null,"Berechnung (nach Beschreibung und Feststellung vorhandener Mängel):"]
[null,null,null,null,null,null,null,null,"Grundfläche",null,null,null,"Rechenwert"]
[null,null,null,null,null,null,null,{"$f":"'Anbau-Nebengeb.- Freisitz'!C19","v":0},null,null,"m²","x",{"$f":"'Anbau-Nebengeb.- Freisitz'!E20","v":0},null,null,"M","x",{"$f":"'Anbau-Nebengeb.- Freisitz'!G19","v":0},null,null,"Bauindex",null,null,null,{"$f":"'Anbau-Nebengeb.- Freisitz'!I19","v":0},null,null,null,"€"]
[null,null,{"$f":"IF('Anbau-Nebengeb.- Freisitz'!E19<>'Anbau-Nebengeb.- Freisitz'!E20,'Anbau-Nebengeb.- Freisitz'!A23,\"\")","v":""}]
[null,null,"./. Abschreibung",null,null,null,null,null,{"$f":"'Anbau-Nebengeb.- Freisitz'!C22","v":0},null,"Jahre",null,"x",{"$f":"'Anbau-Nebengeb.- Freisitz'!E22","v":0},null,"% jährlich",null,null,null,{"$f":"'Anbau-Nebengeb.- Freisitz'!G22","v":0},null,null,"%",null,{"$f":"'Anbau-Nebengeb.- Freisitz'!I22","v":0},null,null,null,"€"]
[null,null,"Restwert (bis max. 30% vom ermittelten Wert)",null,null,null,null,null,null,null,null,null,null,null,null,null,null,null,null,null,null,null,null,null,{"$f":"'Anbau-Nebengeb.- Freisitz'!I25","v":0},null,null,null,"€"]
[null,null,null,null,null,null,null,null,null,null,null,null,null,null,null,null,"Wert d. Anbaus",null,null,null,null,null,null,null,{"$f":"'Anbau-Nebengeb.- Freisitz'!I27","v":0},null,null,null,"€"]
[]
[null,null,"Datum d. Bauerstellung:",null,null,null,null,null,null,{"$f":"IF('Anbau-Nebengeb.- Freisitz'!C30=0,\"\",'Anbau-Nebengeb.- Freisitz'!C30)","v":""},null,null,null,null,null,null,null,null,null,null,"Grundfläche:",null,null,null,null,{"$f":"'Anbau-Nebengeb.- Freisitz'!G30","v":0},null,null,"m²"]
[null,"2.2","Baubeschreibung (genehmigtes Nebengebäude):"]
[null,null,{"$f":"IF('Anbau-Nebengeb.- Freisitz'!C32=0,\"\",'Anbau-Nebengeb.- Freisitz'!C32)","v":""}]
[null,null,{"$f":"IF('Anbau-Nebengeb.- Freisitz'!C33=0,\"\",'Anbau-Nebengeb.- Freisitz'!C33)","v":""}]
[null,null,{"$f":"IF('Anbau-Nebengeb.- Freisitz'!C34=0,\"\",'Anbau-Nebengeb.- Freisitz'!C34)","v":""}]
[null,null,{"$f":"IF('Anbau-Nebengeb.- Freisitz'!C35=0,\"\",'Anbau-Nebengeb.- Freisitz'!C35)","v":""}]
[null,null,{"$f":"IF('Anbau-Nebengeb.- Freisitz'!C36=0,\"\",'Anbau-Nebengeb.- Freisitz'!C36)","v":""}]
[null,null,{"$f":"IF('Anbau-Nebengeb.- Freisitz'!C37=0,\"\",'Anbau-Nebengeb.- Freisitz'!C37)","v":""}]
[null,null,null,null,null,null,null,null,null,null,null,null,"Wert d. Nebengebäudes",null,null,null,null,null,null,null,null,null,null,null,{"$f":"'Anbau-Nebengeb.- Freisitz'!I40","v":0},null,null,null,"€"]
[]
[]
["Schätzung",null,null,{"$f":"$I$7","v":" "},null,null,null,null,null,null,null,null,null,null,null,"Nr.",{"$f":"$W$7","v":" "},null,"Datum",null,{"$f":"IF(Festwerte!$D$18<>\"\",Festwerte!$D$18,\" \")","v":" "},null,null,null,"Seite",null,2,"von",null,9]
[]
["2.","Überdachter Freisitz "]
[]
[null,null,"Datum d. Bauerstellung:",null,null,null,null,null,null,{"$f":"IF('Anbau-Nebengeb.- Freisitz'!C43=0,\"\",'Anbau-Nebengeb.- Freisitz'!C43)","v":""},{"$f":"IF('Anbau-Nebengeb.- Freisitz'!#REF!=0,\"\",'Anbau-Nebengeb.- Freisitz'!#REF!)","v":{"$error":"#REF!"}},{"$f":"IF('Anbau-Nebengeb.- Freisitz'!#REF!=0,\"\",'Anbau-Nebengeb.- Freisitz'!#REF!)","v":{"$error":"#REF!"}},{"$f":"IF('Anbau-Nebengeb.- Freisitz'!#REF!=0,\"\",'Anbau-Nebengeb.- Freisitz'!#REF!)","v":{"$error":"#REF!"}},{"$f":"IF('Anbau-Nebengeb.- Freisitz'!#REF!=0,\"\",'Anbau-Nebengeb.- Freisitz'!#REF!)","v":{"$error":"#REF!"}},{"$f":"IF('Anbau-Nebengeb.- Freisitz'!#REF!=0,\"\",'Anbau-Nebengeb.- Freisitz'!#REF!)","v":{"$error":"#REF!"}},{"$f":"IF('Anbau-Nebengeb.- Freisitz'!#REF!=0,\"\",'Anbau-Nebengeb.- Freisitz'!#REF!)","v":{"$error":"#REF!"}},{"$f":"IF('Anbau-Nebengeb.- Freisitz'!#REF!=0,\"\",'Anbau-Nebengeb.- Freisitz'!#REF!)","v":{"$error":"#REF!"}},{"$f":"IF('Anbau-Nebengeb.- Freisitz'!#REF!=0,\"\",'Anbau-Nebengeb.- Freisitz'!#REF!)","v":{"$error":"#REF!"}},{"$f":"IF('Anbau-Nebengeb.- Freisitz'!#REF!=0,\"\",'Anbau-Nebengeb.- Freisitz'!#REF!)","v":{"$error":"#REF!"}},{"$f":"IF('Anbau-Nebengeb.- Freisitz'!#REF!=0,\"\",'Anbau-Nebengeb.- Freisitz'!#REF!)","v":{"$error":"#REF!"}},"Grundfläche:",null,null,null,null,{"$f":"'Anbau-Nebengeb.- Freisitz'!G43","v":0},null,null,"m²"]
[null,null,"Datum der Abnahme:",null,null,null,null,null,null,{"$f":"IF('Anbau-Nebengeb.- Freisitz'!C45=0,\"\",'Anbau-Nebengeb.- Freisitz'!C45)","v":""},null,null,null,null,null,null,null,null,null,null,"Ausgangswert:",null,null,null,null,{"$f":"'Anbau-Nebengeb.- Freisitz'!G45","v":0},null,null,"M"]
[null,"2.3","Baubeschreibung (überdachter Freisitz):"]
[null,null,{"$f":"IF('Anbau-Nebengeb.- Freisitz'!C47=0,\"\",'Anbau-Nebengeb.- Freisitz'!C47)","v":""}]
[null,null,{"$f":"IF('Anbau-Nebengeb.- Freisitz'!C48=0,\"\",'Anbau-Nebengeb.- Freisitz'!C48)","v":""}]
[null,null,{"$f":"IF('Anbau-Nebengeb.- Freisitz'!C49=0,\"\",'Anbau-Nebengeb.- Freisitz'!C49)","v":""}]
[null,null,{"$f":"IF('Anbau-Nebengeb.- Freisitz'!C50=0,\"\",'Anbau-Nebengeb.- Freisitz'!C50)","v":""}]
[null,null,{"$f":"IF('Anbau-Nebengeb.- Freisitz'!C51=0,\"\",'Anbau-Nebengeb.- Freisitz'!C51)","v":""}]
[null,null,{"$f":"IF('Anbau-Nebengeb.- Freisitz'!C52=0,\"\",'Anbau-Nebengeb.- Freisitz'!C52)","v":""}]
[null,null,{"$f":"IF('Anbau-Nebengeb.- Freisitz'!C53=0,\"\",'Anbau-Nebengeb.- Freisitz'!C53)","v":""}]
[null,null,{"$f":"IF('Anbau-Nebengeb.- Freisitz'!C54=0,\"\",'Anbau-Nebengeb.- Freisitz'!C54)","v":""}]
[null,null,"Berechnung (nach Beschreibung und Feststellung vorhandener Mängel):"]
[null,null,null,null,null,null,null,null,"Grundfläche",null,null,null,"Rechenwert"]
[null,null,null,null,null,null,null,{"$f":"'Anbau-Nebengeb.- Freisitz'!C58","v":0},null,null,"m²","x",{"$f":"'Anbau-Nebengeb.- Freisitz'!E58","v":0},null,null,"M","x",{"$f":"'Anbau-Nebengeb.- Freisitz'!G58","v":0},null,null,"Bauindex",null,null,null,{"$f":"'Anbau-Nebengeb.- Freisitz'!I58","v":0},null,null,null,"€"]
[null,null,{"$f":"IF('Anbau-Nebengeb.- Freisitz'!E58<>'Anbau-Nebengeb.- Freisitz'!E59,'Anbau-Nebengeb.- Freisitz'!A62,\"\")","v":""}]
[null,null,"./. Abschreibung",null,null,null,null,null,{"$f":"'Anbau-Nebengeb.- Freisitz'!C61","v":0},null,"Jahre",null,"x",{"$f":"'Anbau-Nebengeb.- Freisitz'!E61","v":0},null,"% jährlich",null,null,null,{"$f":"'Anbau-Nebengeb.- Freisitz'!G61","v":0},null,null,"%",null,{"$f":"'Anbau-Nebengeb.- Freisitz'!I61","v":0},null,null,null,"€"]
[null,null,"Restwert (bis max. 30% vom ermittelten Wert)",null,null,null,null,null,null,null,null,null,null,null,null,null,null,null,null,null,null,null,null,null,{"$f":"'Anbau-Nebengeb.- Freisitz'!I64","v":0},null,null,null,"€"]
[null,null,null,null,null,null,null,null,null,null,null,null,null,null,null,null,"Wert d. Freisitzes",null,null,null,null,null,null,null,{"$f":"'Anbau-Nebengeb.- Freisitz'!I66","v":0},null,null,null,"€"]
["3.","Dauerkulturen"]
[null,"lfd.\nNr.",null,null,null,null,null,null,null,null,null,null,null,null,null,null,null,null,null,null,null,null,"Einzel-",null,null,"Gesamt-"]
[null,null,"Anz.",null,"Bezeichnung",null,null,null,null,null,null,null,null,null,null,null,null,null,null,null,null,null,"wert",null,null,"wert",null,null,"€"]
[null,{"$f":"IF(NOT(Dauerkulturen!A6=0),Dauerkulturen!A6,\" \")","v":" "},{"$f":"IF(NOT(Dauerkulturen!B6=0),Dauerkulturen!B6,\" \")","v":" "},null,{"$f":"IF(NOT(ISBLANK(Dauerkulturen!C6)),Dauerkulturen!C6,\" \")","v":" "},null,null,null,null,null,null,null,null,null,null,null,null,null,null,null,null,null,{"$f":"IF(NOT(Dauerkulturen!H6=0),Dauerkulturen!H6,\" \")","v":" "},null,null,{"$f":"IF(NOT(Dauerkulturen!I6=0),Dauerkulturen!I6,\" \")","v":" "},null,null,{"$f":"IF(Z131<>\" \",\"€\",\" \")","v":" "}]
[null,{"$f":"IF(NOT(Dauerkulturen!A7=0),Dauerkulturen!A7,\" \")","v":" "},{"$f":"IF(NOT(Dauerkulturen!B7=0),Dauerkulturen!B7,\" \")","v":" "},null,{"$f":"IF(NOT(ISBLANK(Dauerkulturen!C7)),Dauerkulturen!C7,\" \")","v":" "},null,null,null,null,null,null,null,null,null,null,null,null,null,null,null,null,null,{"$f":"IF(NOT(Dauerkulturen!H7=0),Dauerkulturen!H7,\" \")","v":" "},null,null,{"$f":"IF(NOT(Dauerkulturen!I7=0),Dauerkulturen!I7,\" \")","v":" "},null,null,{"$f":"IF(Z132<>\" \",\"€\",\" \")","v":" "}]
[null,{"$f":"IF(NOT(Dauerkulturen!A8=0),Dauerkulturen!A8,\" \")","v":" "},{"$f":"IF(NOT(Dauerkulturen!B8=0),Dauerkulturen!B8,\" \")","v":" "},null,{"$f":"IF(NOT(ISBLANK(Dauerkulturen!C8)),Dauerkulturen!C8,\" \")","v":" "},null,null,null,null,null,null,null,null,null,null,null,null,null,null,null,null,null,{"$f":"IF(NOT(Dauerkulturen!H8=0),Dauerkulturen!H8,\" \")","v":" "},null,null,{"$f":"IF(NOT(Dauerkulturen!I8=0),Dauerkulturen!I8,\" \")","v":" "},null,null," "]
[null,{"$f":"IF(NOT(Dauerkulturen!A9=0),Dauerkulturen!A9,\" \")","v":" "},{"$f":"IF(NOT(Dauerkulturen!B9=0),Dauerkulturen!B9,\" \")","v":" "},null,{"$f":"IF(NOT(ISBLANK(Dauerkulturen!C9)),Dauerkulturen!C9,\" \")","v":" "},null,null,null,null,null,null,null,null,null,null,null,null,null,null,null,null,null,{"$f":"IF(NOT(Dauerkulturen!H9=0),Dauerkulturen!H9,\" \")","v":" "},null,null,{"$f":"IF(NOT(Dauerkulturen!I9=0),Dauerkulturen!I9,\" \")","v":" "},null,null," "]
[null,{"$f":"IF(NOT(Dauerkulturen!A10=0),Dauerkulturen!A10,\" \")","v":" "},{"$f":"IF(NOT(Dauerkulturen!B10=0),Dauerkulturen!B10,\" \")","v":" "},null,{"$f":"IF(NOT(ISBLANK(Dauerkulturen!C10)),Dauerkulturen!C10,\" \")","v":" "},null,null,null,null,null,null,null,null,null,null,null,null,null,null,null,null,null,{"$f":"IF(NOT(Dauerkulturen!H10=0),Dauerkulturen!H10,\" \")","v":" "},null,null,{"$f":"IF(NOT(Dauerkulturen!I10=0),Dauerkulturen!I10,\" \")","v":" "},null,null," "]
[null,{"$f":"IF(NOT(Dauerkulturen!A11=0),Dauerkulturen!A11,\" \")","v":" "},{"$f":"IF(NOT(Dauerkulturen!B11=0),Dauerkulturen!B11,\" \")","v":" "},null,{"$f":"IF(NOT(ISBLANK(Dauerkulturen!C11)),Dauerkulturen!C11,\" \")","v":" "},null,null,null,null,null,null,null,null,null,null,null,null,null,null,null,null,null,{"$f":"IF(NOT(Dauerkulturen!H11=0),Dauerkulturen!H11,\" \")","v":" "},null,null,{"$f":"IF(NOT(Dauerkulturen!I11=0),Dauerkulturen!I11,\" \")","v":" "},null,null," "]
[null,{"$f":"IF(NOT(Dauerkulturen!A12=0),Dauerkulturen!A12,\" \")","v":" "},{"$f":"IF(NOT(Dauerkulturen!B12=0),Dauerkulturen!B12,\" \")","v":" "},null,{"$f":"IF(NOT(ISBLANK(Dauerkulturen!C12)),Dauerkulturen!C12,\" \")","v":" "},null,null,null,null,null,null,null,null,null,null,null,null,null,null,null,null,null,{"$f":"IF(NOT(Dauerkulturen!H12=0),Dauerkulturen!H12,\" \")","v":" "},null,null,{"$f":"IF(NOT(Dauerkulturen!I12=0),Dauerkulturen!I12,\" \")","v":" "},null,null," "]
[null,{"$f":"IF(NOT(Dauerkulturen!A13=0),Dauerkulturen!A13,\" \")","v":" "},{"$f":"IF(NOT(Dauerkulturen!B13=0),Dauerkulturen!B13,\" \")","v":" "},null,{"$f":"IF(NOT(ISBLANK(Dauerkulturen!C13)),Dauerkulturen!C13,\" \")","v":" "},null,null,null,null,null,null,null,null,null,null,null,null,null,null,null,null,null,{"$f":"IF(NOT(Dauerkulturen!H13=0),Dauerkulturen!H13,\" \")","v":" "},null,null,{"$f":"IF(NOT(Dauerkulturen!I13=0),Dauerkulturen!I13,\" \")","v":" "},null,null," "]
[null,{"$f":"IF(NOT(Dauerkulturen!A14=0),Dauerkulturen!A14,\" \")","v":" "},{"$f":"IF(NOT(Dauerkulturen!B14=0),Dauerkulturen!B14,\" \")","v":" "},null,{"$f":"IF(NOT(ISBLANK(Dauerkulturen!C14)),Dauerkulturen!C14,\" \")","v":" "},null,null,null,null,null,null,null,null,null,null,null,null,null,null,null,null,null,{"$f":"IF(NOT(Dauerkulturen!H14=0),Dauerkulturen!H14,\" \")","v":" "},null,null,{"$f":"IF(NOT(Dauerkulturen!I14=0),Dauerkulturen!I14,\" \")","v":" "},null,null," "]
[null,{"$f":"IF(NOT(Dauerkulturen!A15=0),Dauerkulturen!A15,\" \")","v":" "},{"$f":"IF(NOT(Dauerkulturen!B15=0),Dauerkulturen!B15,\" \")","v":" "},null,{"$f":"IF(NOT(ISBLANK(Dauerkulturen!C15)),Dauerkulturen!C15,\" \")","v":" "},null,null,null,null,null,null,null,null,null,null,null,null,null,null,null,null,null,{"$f":"IF(NOT(Dauerkulturen!H15=0),Dauerkulturen!H15,\" \")","v":" "},null,null,{"$f":"IF(NOT(Dauerkulturen!I15=0),Dauerkulturen!I15,\" \")","v":" "},null,null," "]
[null,{"$f":"IF(NOT(Dauerkulturen!A16=0),Dauerkulturen!A16,\" \")","v":" "},{"$f":"IF(NOT(Dauerkulturen!B16=0),Dauerkulturen!B16,\" \")","v":" "},null,{"$f":"IF(NOT(ISBLANK(Dauerkulturen!C16)),Dauerkulturen!C16,\" \")","v":" "},null,null,null,null,null,null,null,null,null,null,null,null,null,null,null,null,null,{"$f":"IF(NOT(Dauerkulturen!H16=0),Dauerkulturen!H16,\" \")","v":" "},null,null,{"$f":"IF(NOT(Dauerkulturen!I16=0),Dauerkulturen!I16,\" \")","v":" "},null,null," "]
[null,{"$f":"IF(NOT(Dauerkulturen!A17=0),Dauerkulturen!A17,\" \")","v":" "},{"$f":"IF(NOT(Dauerkulturen!B17=0),Dauerkulturen!B17,\" \")","v":" "},null,{"$f":"IF(NOT(ISBLANK(Dauerkulturen!C17)),Dauerkulturen!C17,\" \")","v":" "},null,null,null,null,null,null,null,null,null,null,null,null,null,null,null,null,null,{"$f":"IF(NOT(Dauerkulturen!H17=0),Dauerkulturen!H17,\" \")","v":" "},null,null,{"$f":"IF(NOT(Dauerkulturen!I17=0),Dauerkulturen!I17,\" \")","v":" "},null,null," "]
[null,{"$f":"IF(NOT(Dauerkulturen!A18=0),Dauerkulturen!A18,\" \")","v":" "},{"$f":"IF(NOT(Dauerkulturen!B18=0),Dauerkulturen!B18,\" \")","v":" "},null,{"$f":"IF(NOT(ISBLANK(Dauerkulturen!C18)),Dauerkulturen!C18,\" \")","v":" "},null,null,null,null,null,null,null,null,null,null,null,null,null,null,null,null,null,{"$f":"IF(NOT(Dauerkulturen!H18=0),Dauerkulturen!H18,\" \")","v":" "},null,null,{"$f":"IF(NOT(Dauerkulturen!I18=0),Dauerkulturen!I18,\" \")","v":" "},null,null," "]
[null,{"$f":"IF(NOT(Dauerkulturen!A19=0),Dauerkulturen!A19,\" \")","v":" "},{"$f":"IF(NOT(Dauerkulturen!B19=0),Dauerkulturen!B19,\" \")","v":" "},null,{"$f":"IF(NOT(ISBLANK(Dauerkulturen!C19)),Dauerkulturen!C19,\" \")","v":" "},null,null,null,null,null,null,null,null,null,null,null,null,null,null,null,null,null,{"$f":"IF(NOT(Dauerkulturen!H19=0),Dauerkulturen!H19,\" \")","v":" "},null,null,{"$f":"IF(NOT(Dauerkulturen!I19=0),Dauerkulturen!I19,\" \")","v":" "},null,null," "]
[null,{"$f":"IF(NOT(Dauerkulturen!A20=0),Dauerkulturen!A20,\" \")","v":" "},{"$f":"IF(NOT(Dauerkulturen!B20=0),Dauerkulturen!B20,\" \")","v":" "},null,{"$f":"IF(NOT(ISBLANK(Dauerkulturen!C20)),Dauerkulturen!C20,\" \")","v":" "},null,null,null,null,null,null,null,null,null,null,null,null,null,null,null,null,null,{"$f":"IF(NOT(Dauerkulturen!H20=0),Dauerkulturen!H20,\" \")","v":" "},null,null,{"$f":"IF(NOT(Dauerkulturen!I20=0),Dauerkulturen!I20,\" \")","v":" "},null,null," "]
[null,{"$f":"IF(NOT(Dauerkulturen!A21=0),Dauerkulturen!A21,\" \")","v":" "},{"$f":"IF(NOT(Dauerkulturen!B21=0),Dauerkulturen!B21,\" \")","v":" "},null,{"$f":"IF(NOT(ISBLANK(Dauerkulturen!C21)),Dauerkulturen!C21,\" \")","v":" "},null,null,null,null,null,null,null,null,null,null,null,null,null,null,null,null,null,{"$f":"IF(NOT(Dauerkulturen!H21=0),Dauerkulturen!H21,\" \")","v":" "},null,null,{"$f":"IF(NOT(Dauerkulturen!I21=0),Dauerkulturen!I21,\" \")","v":" "},null,null," "]
[null,{"$f":"IF(NOT(Dauerkulturen!A22=0),Dauerkulturen!A22,\" \")","v":" "},{"$f":"IF(NOT(Dauerkulturen!B22=0),Dauerkulturen!B22,\" \")","v":" "},null,{"$f":"IF(NOT(ISBLANK(Dauerkulturen!C22)),Dauerkulturen!C22,\" \")","v":" "},null,null,null,null,null,null,null,null,null,null,null,null,null,null,null,null,null,{"$f":"IF(NOT(Dauerkulturen!H22=0),Dauerkulturen!H22,\" \")","v":" "},null,null,{"$f":"IF(NOT(Dauerkulturen!I22=0),Dauerkulturen!I22,\" \")","v":" "},null,null," "]
[null,{"$f":"IF(NOT(Dauerkulturen!A23=0),Dauerkulturen!A23,\" \")","v":" "},{"$f":"IF(NOT(Dauerkulturen!B23=0),Dauerkulturen!B23,\" \")","v":" "},null,{"$f":"IF(NOT(ISBLANK(Dauerkulturen!C23)),Dauerkulturen!C23,\" \")","v":" "},null,null,null,null,null,null,null,null,null,null,null,null,null,null,null,null,null,{"$f":"IF(NOT(Dauerkulturen!H23=0),Dauerkulturen!H23,\" \")","v":" "},null,null,{"$f":"IF(NOT(Dauerkulturen!I23=0),Dauerkulturen!I23,\" \")","v":" "},null,null," "]
[null,{"$f":"IF(NOT(Dauerkulturen!A24=0),Dauerkulturen!A24,\" \")","v":" "},{"$f":"IF(NOT(Dauerkulturen!B24=0),Dauerkulturen!B24,\" \")","v":" "},null,{"$f":"IF(NOT(ISBLANK(Dauerkulturen!C24)),Dauerkulturen!C24,\" \")","v":" "},null,null,null,null,null,null,null,null,null,null,null,null,null,null,null,null,null,{"$f":"IF(NOT(Dauerkulturen!H24=0),Dauerkulturen!H24,\" \")","v":" "},null,null,{"$f":"IF(NOT(Dauerkulturen!I24=0),Dauerkulturen!I24,\" \")","v":" "},null,null," "]
[null,{"$f":"IF(NOT(Dauerkulturen!A25=0),Dauerkulturen!A25,\" \")","v":" "},{"$f":"IF(NOT(Dauerkulturen!B25=0),Dauerkulturen!B25,\" \")","v":" "},null,{"$f":"IF(NOT(ISBLANK(Dauerkulturen!C25)),Dauerkulturen!C25,\" \")","v":" "},null,null,null,null,null,null,null,null,null,null,null,null,null,null,null,null,null,{"$f":"IF(NOT(Dauerkulturen!H25=0),Dauerkulturen!H25,\" \")","v":" "},null,null,{"$f":"IF(NOT(Dauerkulturen!I25=0),Dauerkulturen!I25,\" \")","v":" "},null,null," "]
[null,{"$f":"IF(NOT(Dauerkulturen!A26=0),Dauerkulturen!A26,\" \")","v":" "},{"$f":"IF(NOT(Dauerkulturen!B26=0),Dauerkulturen!B26,\" \")","v":" "},null,{"$f":"IF(NOT(ISBLANK(Dauerkulturen!C26)),Dauerkulturen!C26,\" \")","v":" "},null,null,null,null,null,null,null,null,null,null,null,null,null,null,null,null,null,{"$f":"IF(NOT(Dauerkulturen!H26=0),Dauerkulturen!H26,\" \")","v":" "},null,null,{"$f":"IF(NOT(Dauerkulturen!I26=0),Dauerkulturen!I26,\" \")","v":" "},null,null," "]
[null,{"$f":"IF(NOT(Dauerkulturen!A27=0),Dauerkulturen!A27,\" \")","v":" "},{"$f":"IF(NOT(Dauerkulturen!B27=0),Dauerkulturen!B27,\" \")","v":" "},null,{"$f":"IF(NOT(ISBLANK(Dauerkulturen!C27)),Dauerkulturen!C27,\" \")","v":" "},null,null,null,null,null,null,null,null,null,null,null,null,null,null,null,null,null,{"$f":"IF(NOT(Dauerkulturen!H27=0),Dauerkulturen!H27,\" \")","v":" "},null,null,{"$f":"IF(NOT(Dauerkulturen!I27=0),Dauerkulturen!I27,\" \")","v":" "},null,null," "]
[null,{"$f":"IF(NOT(Dauerkulturen!A28=0),Dauerkulturen!A28,\" \")","v":" "},{"$f":"IF(NOT(Dauerkulturen!B28=0),Dauerkulturen!B28,\" \")","v":" "},null,{"$f":"IF(NOT(ISBLANK(Dauerkulturen!C28)),Dauerkulturen!C28,\" \")","v":" "},null,null,null,null,null,null,null,null,null,null,null,null,null,null,null,null,null,{"$f":"IF(NOT(Dauerkulturen!H28=0),Dauerkulturen!H28,\" \")","v":" "},null,null,{"$f":"IF(NOT(Dauerkulturen!I28=0),Dauerkulturen!I28,\" \")","v":" "},null,null," "]
[null,{"$f":"IF(NOT(Dauerkulturen!A29=0),Dauerkulturen!A29,\" \")","v":" "},{"$f":"IF(NOT(Dauerkulturen!B29=0),Dauerkulturen!B29,\" \")","v":" "},null,{"$f":"IF(NOT(ISBLANK(Dauerkulturen!C29)),Dauerkulturen!C29,\" \")","v":" "},null,null,null,null,null,null,null,null,null,null,null,null,null,null,null,null,null,{"$f":"IF(NOT(Dauerkulturen!H29=0),Dauerkulturen!H29,\" \")","v":" "},null,null,{"$f":"IF(NOT(Dauerkulturen!I29=0),Dauerkulturen!I29,\" \")","v":" "},null,null," "]
[null,{"$f":"IF(NOT(Dauerkulturen!A30=0),Dauerkulturen!A30,\" \")","v":" "},{"$f":"IF(NOT(Dauerkulturen!B30=0),Dauerkulturen!B30,\" \")","v":" "},null,{"$f":"IF(NOT(ISBLANK(Dauerkulturen!C30)),Dauerkulturen!C30,\" \")","v":" "},null,null,null,null,null,null,null,null,null,null,null,null,null,null,null,null,null,{"$f":"IF(NOT(Dauerkulturen!H30=0),Dauerkulturen!H30,\" \")","v":" "},null,null,{"$f":"IF(NOT(Dauerkulturen!I30=0),Dauerkulturen!I30,\" \")","v":" "},null,null," "]
[null,{"$f":"IF(NOT(Dauerkulturen!A31=0),Dauerkulturen!A31,\" \")","v":" "},{"$f":"IF(NOT(Dauerkulturen!B31=0),Dauerkulturen!B31,\" \")","v":" "},null,{"$f":"IF(NOT(ISBLANK(Dauerkulturen!C31)),Dauerkulturen!C31,\" \")","v":" "},null,null,null,null,null,null,null,null,null,null,null,null,null,null,null,null,null,{"$f":"IF(NOT(Dauerkulturen!H31=0),Dauerkulturen!H31,\" \")","v":" "},null,null,{"$f":"IF(NOT(Dauerkulturen!I31=0),Dauerkulturen!I31,\" \")","v":" "},null,null," "]
[null,{"$f":"IF(NOT(Dauerkulturen!A32=0),Dauerkulturen!A32,\" \")","v":" "},{"$f":"IF(NOT(Dauerkulturen!B32=0),Dauerkulturen!B32,\" \")","v":" "},null,{"$f":"IF(NOT(ISBLANK(Dauerkulturen!C32)),Dauerkulturen!C32,\" \")","v":" "},null,null,null,null,null,null,null,null,null,null,null,null,null,null,null,null,null,{"$f":"IF(NOT(Dauerkulturen!H32=0),Dauerkulturen!H32,\" \")","v":" "},null,null,{"$f":"IF(NOT(Dauerkulturen!I32=0),Dauerkulturen!I32,\" \")","v":" "},null,null," "]
[null,{"$f":"IF(NOT(Dauerkulturen!A33=0),Dauerkulturen!A33,\" \")","v":" "},{"$f":"IF(NOT(Dauerkulturen!B33=0),Dauerkulturen!B33,\" \")","v":" "},null,{"$f":"IF(NOT(ISBLANK(Dauerkulturen!C33)),Dauerkulturen!C33,\" \")","v":" "},null,null,null,null,null,null,null,null,null,null,null,null,null,null,null,null,null,{"$f":"IF(NOT(Dauerkulturen!H33=0),Dauerkulturen!H33,\" \")","v":" "},null,null,{"$f":"IF(NOT(Dauerkulturen!I33=0),Dauerkulturen!I33,\" \")","v":" "},null,null," "]
[null,{"$f":"IF(NOT(Dauerkulturen!A34=0),Dauerkulturen!A34,\" \")","v":" "},{"$f":"IF(NOT(Dauerkulturen!B34=0),Dauerkulturen!B34,\" \")","v":" "},null,{"$f":"IF(NOT(ISBLANK(Dauerkulturen!C34)),Dauerkulturen!C34,\" \")","v":" "},null,null,null,null,null,null,null,null,null,null,null,null,null,null,null,null,null,{"$f":"IF(NOT(Dauerkulturen!H34=0),Dauerkulturen!H34,\" \")","v":" "},null,null,{"$f":"IF(NOT(Dauerkulturen!I34=0),Dauerkulturen!I34,\" \")","v":" "},null,null," "]
[null,null,"Summe Dauerkulturen",null,null,null,null,null,null,null,null,null,null,null,null,null,null,null,null,null,null,null,null,null,null,{"$f":"IF(NOT(Dauerkulturen!I4=0),Dauerkulturen!I4,\" \")","v":" "},null,null,"€"]
[]
[]
["Schätzung",null,null,{"$f":"$I$7","v":" "},null,null,null,null,null,null,null,null,null,null,null,"Nr.",{"$f":"$W$7","v":" "},null,"Datum",null,{"$f":"IF(Festwerte!$D$18<>\"\",Festwerte!$D$18,\" \")","v":" "},null,null,null,"Seite",null,3,"von",null,9]
[]
["4.","Zierpflanzen und Sträucher"]
[null,"lfd.\nNr.",null,null,null,null,null,null,null,null,null,null,null,null,null,null,null,null,null,null,null,null,"Einzel-",null,null,"Gesamt-"]
[null,null,"Anz.",null,"Bezeichnung",null,null,null,null,null,null,null,null,null,null,null,null,null,null,null,null,null,"wert",null,null,"wert",null,null,"€"]
[null,{"$f":"IF(NOT('Zierpflanzen und Sträucher'!A6=0),'Zierpflanzen und Sträucher'!A6,\" \")","v":" "},{"$f":"IF(NOT('Zierpflanzen und Sträucher'!B6=0),'Zierpflanzen und Sträucher'!B6,\" \")","v":" "},null,{"$f":"IF(NOT(ISBLANK('Zierpflanzen und Sträucher'!C6)),'Zierpflanzen und Sträucher'!C6,\" \")","v":" "},null,null,null,null,null,null,null,null,null,null,null,null,null,null,null,null,null,{"$f":"IF(NOT('Zierpflanzen und Sträucher'!H6=0),'Zierpflanzen und Sträucher'!H6,\" \")","v":" "},null,null,{"$f":"IF(NOT('Zierpflanzen und Sträucher'!I6=0),'Zierpflanzen und Sträucher'!I6,\" \")","v":" "},null,null,{"$f":"IF(Z168<>\" \",\"€\",\" \")","v":" "}]
[null,{"$f":"IF(NOT('Zierpflanzen und Sträucher'!A7=0),'Zierpflanzen und Sträucher'!A7,\" \")","v":" "},{"$f":"IF(NOT('Zierpflanzen und Sträucher'!B7=0),'Zierpflanzen und Sträucher'!B7,\" \")","v":" "},null,{"$f":"IF(NOT(ISBLANK('Zierpflanzen und Sträucher'!C7)),'Zierpflanzen und Sträucher'!C7,\" \")","v":" "},null,null,null,null,null,null,null,null,null,null,null,null,null,null,null,null,null,{"$f":"IF(NOT('Zierpflanzen und Sträucher'!H7=0),'Zierpflanzen und Sträucher'!H7,\" \")","v":" "},null,null,{"$f":"IF(NOT('Zierpflanzen und Sträucher'!I7=0),'Zierpflanzen und Sträucher'!I7,\" \")","v":" "},null,null,{"$f":"IF(Z169<>\" \",\"€\",\" \")","v":" "}]
[null,{"$f":"IF(NOT('Zierpflanzen und Sträucher'!A8=0),'Zierpflanzen und Sträucher'!A8,\" \")","v":" "},{"$f":"IF(NOT('Zierpflanzen und Sträucher'!B8=0),'Zierpflanzen und Sträucher'!B8,\" \")","v":" "},null,{"$f":"IF(NOT(ISBLANK('Zierpflanzen und Sträucher'!C8)),'Zierpflanzen und Sträucher'!C8,\" \")","v":" "},null,null,null,null,null,null,null,null,null,null,null,null,null,null,null,null,null,{"$f":"IF(NOT('Zierpflanzen und Sträucher'!H8=0),'Zierpflanzen und Sträucher'!H8,\" \")","v":" "},null,null,{"$f":"IF(NOT('Zierpflanzen und Sträucher'!I8=0),'Zierpflanzen und Sträucher'!I8,\" \")","v":" "},null,null,{"$f":"IF(Z170<>\" \",\"€\",\" \")","v":" "}]
[null,{"$f":"IF(NOT('Zierpflanzen und Sträucher'!A9=0),'Zierpflanzen und Sträucher'!A9,\" \")","v":" "},{"$f":"IF(NOT('Zierpflanzen und Sträucher'!B9=0),'Zierpflanzen und Sträucher'!B9,\" \")","v":" "},null,{"$f":"IF(NOT(ISBLANK('Zierpflanzen und Sträucher'!C9)),'Zierpflanzen und Sträucher'!C9,\" \")","v":" "},null,null,null,null,null,null,null,null,null,null,null,null,null,null,null,null,null,{"$f":"IF(NOT('Zierpflanzen und Sträucher'!H9=0),'Zierpflanzen und Sträucher'!H9,\" \")","v":" "},null,null,{"$f":"IF(NOT('Zierpflanzen und Sträucher'!I9=0),'Zierpflanzen und Sträucher'!I9,\" \")","v":" "},null,null," "]
[null,{"$f":"IF(NOT('Zierpflanzen und Sträucher'!A10=0),'Zierpflanzen und Sträucher'!A10,\" \")","v":" "},{"$f":"IF(NOT('Zierpflanzen und Sträucher'!B10=0),'Zierpflanzen und Sträucher'!B10,\" \")","v":" "},null,{"$f":"IF(NOT(ISBLANK('Zierpflanzen und Sträucher'!C10)),'Zierpflanzen und Sträucher'!C10,\" \")","v":" "},null,null,null,null,null,null,null,null,null,null,null,null,null,null,null,null,null,{"$f":"IF(NOT('Zierpflanzen und Sträucher'!H10=0),'Zierpflanzen und Sträucher'!H10,\" \")","v":" "},null,null,{"$f":"IF(NOT('Zierpflanzen und Sträucher'!I10=0),'Zierpflanzen und Sträucher'!I10,\" \")","v":" "},null,null," "]
[null,{"$f":"IF(NOT('Zierpflanzen und Sträucher'!A11=0),'Zierpflanzen und Sträucher'!A11,\" \")","v":" "},{"$f":"IF(NOT('Zierpflanzen und Sträucher'!B11=0),'Zierpflanzen und Sträucher'!B11,\" \")","v":" "},null,{"$f":"IF(NOT(ISBLANK('Zierpflanzen und Sträucher'!C11)),'Zierpflanzen und Sträucher'!C11,\" \")","v":" "},null,null,null,null,null,null,null,null,null,null,null,null,null,null,null,null,null,{"$f":"IF(NOT('Zierpflanzen und Sträucher'!H11=0),'Zierpflanzen und Sträucher'!H11,\" \")","v":" "},null,null,{"$f":"IF(NOT('Zierpflanzen und Sträucher'!I11=0),'Zierpflanzen und Sträucher'!I11,\" \")","v":" "},null,null," "]
[null,{"$f":"IF(NOT('Zierpflanzen und Sträucher'!A12=0),'Zierpflanzen und Sträucher'!A12,\" \")","v":" "},{"$f":"IF(NOT('Zierpflanzen und Sträucher'!B12=0),'Zierpflanzen und Sträucher'!B12,\" \")","v":" "},null,{"$f":"IF(NOT(ISBLANK('Zierpflanzen und Sträucher'!C12)),'Zierpflanzen und Sträucher'!C12,\" \")","v":" "},null,null,null,null,null,null,null,null,null,null,null,null,null,null,null,null,null,{"$f":"IF(NOT('Zierpflanzen und Sträucher'!H12=0),'Zierpflanzen und Sträucher'!H12,\" \")","v":" "},null,null,{"$f":"IF(NOT('Zierpflanzen und Sträucher'!I12=0),'Zierpflanzen und Sträucher'!I12,\" \")","v":" "},null,null," "]
[null,{"$f":"IF(NOT('Zierpflanzen und Sträucher'!A13=0),'Zierpflanzen und Sträucher'!A13,\" \")","v":" "},{"$f":"IF(NOT('Zierpflanzen und Sträucher'!B13=0),'Zierpflanzen und Sträucher'!B13,\" \")","v":" "},null,{"$f":"IF(NOT(ISBLANK('Zierpflanzen und Sträucher'!C13)),'Zierpflanzen und Sträucher'!C13,\" \")","v":" "},null,null,null,null,null,null,null,null,null,null,null,null,null,null,null,null,null,{"$f":"IF(NOT('Zierpflanzen und Sträucher'!H13=0),'Zierpflanzen und Sträucher'!H13,\" \")","v":" "},null,null,{"$f":"IF(NOT('Zierpflanzen und Sträucher'!I13=0),'Zierpflanzen und Sträucher'!I13,\" \")","v":" "},null,null," "]
[null,{"$f":"IF(NOT('Zierpflanzen und Sträucher'!A14=0),'Zierpflanzen und Sträucher'!A14,\" \")","v":" "},{"$f":"IF(NOT('Zierpflanzen und Sträucher'!B14=0),'Zierpflanzen und Sträucher'!B14,\" \")","v":" "},null,{"$f":"IF(NOT(ISBLANK('Zierpflanzen und Sträucher'!C14)),'Zierpflanzen und Sträucher'!C14,\" \")","v":" "},null,null,null,null,null,null,null,null,null,null,null,null,null,null,null,null,null,{"$f":"IF(NOT('Zierpflanzen und Sträucher'!H14=0),'Zierpflanzen und Sträucher'!H14,\" \")","v":" "},null,null,{"$f":"IF(NOT('Zierpflanzen und Sträucher'!I14=0),'Zierpflanzen und Sträucher'!I14,\" \")","v":" "},null,null," "]
[null,{"$f":"IF(NOT('Zierpflanzen und Sträucher'!A15=0),'Zierpflanzen und Sträucher'!A15,\" \")","v":" "},{"$f":"IF(NOT('Zierpflanzen und Sträucher'!B15=0),'Zierpflanzen und Sträucher'!B15,\" \")","v":" "},null,{"$f":"IF(NOT(ISBLANK('Zierpflanzen und Sträucher'!C15)),'Zierpflanzen und Sträucher'!C15,\" \")","v":" "},null,null,null,null,null,null,null,null,null,null,null,null,null,null,null,null,null,{"$f":"IF(NOT('Zierpflanzen und Sträucher'!H15=0),'Zierpflanzen und Sträucher'!H15,\" \")","v":" "},null,null,{"$f":"IF(NOT('Zierpflanzen und Sträucher'!I15=0),'Zierpflanzen und Sträucher'!I15,\" \")","v":" "},null,null," "]
[null,{"$f":"IF(NOT('Zierpflanzen und Sträucher'!A16=0),'Zierpflanzen und Sträucher'!A16,\" \")","v":" "},{"$f":"IF(NOT('Zierpflanzen und Sträucher'!B16=0),'Zierpflanzen und Sträucher'!B16,\" \")","v":" "},null,{"$f":"IF(NOT(ISBLANK('Zierpflanzen und Sträucher'!C16)),'Zierpflanzen und Sträucher'!C16,\" \")","v":" "},null,null,null,null,null,null,null,null,null,null,null,null,null,null,null,null,null,{"$f":"IF(NOT('Zierpflanzen und Sträucher'!H16=0),'Zierpflanzen und Sträucher'!H16,\" \")","v":" "},null,null,{"$f":"IF(NOT('Zierpflanzen und Sträucher'!I16=0),'Zierpflanzen und Sträucher'!I16,\" \")","v":" "},null,null," "]
[null,{"$f":"IF(NOT('Zierpflanzen und Sträucher'!A17=0),'Zierpflanzen und Sträucher'!A17,\" \")","v":" "},{"$f":"IF(NOT('Zierpflanzen und Sträucher'!B17=0),'Zierpflanzen und Sträucher'!B17,\" \")","v":" "},null,{"$f":"IF(NOT(ISBLANK('Zierpflanzen und Sträucher'!C17)),'Zierpflanzen und Sträucher'!C17,\" \")","v":" "},null,null,null,null,null,null,null,null,null,null,null,null,null,null,null,null,null,{"$f":"IF(NOT('Zierpflanzen und Sträucher'!H17=0),'Zierpflanzen und Sträucher'!H17,\" \")","v":" "},null,null,{"$f":"IF(NOT('Zierpflanzen und Sträucher'!I17=0),'Zierpflanzen und Sträucher'!I17,\" \")","v":" "},null,null," "]
[null,{"$f":"IF(NOT('Zierpflanzen und Sträucher'!A18=0),'Zierpflanzen und Sträucher'!A18,\" \")","v":" "},{"$f":"IF(NOT('Zierpflanzen und Sträucher'!B18=0),'Zierpflanzen und Sträucher'!B18,\" \")","v":" "},null,{"$f":"IF(NOT(ISBLANK('Zierpflanzen und Sträucher'!C18)),'Zierpflanzen und Sträucher'!C18,\" \")","v":" "},null,null,null,null,null,null,null,null,null,null,null,null,null,null,null,null,null,{"$f":"IF(NOT('Zierpflanzen und Sträucher'!H18=0),'Zierpflanzen und Sträucher'!H18,\" \")","v":" "},null,null,{"$f":"IF(NOT('Zierpflanzen und Sträucher'!I18=0),'Zierpflanzen und Sträucher'!I18,\" \")","v":" "},null,null," "]
[null,{"$f":"IF(NOT('Zierpflanzen und Sträucher'!A19=0),'Zierpflanzen und Sträucher'!A19,\" \")","v":" "},{"$f":"IF(NOT('Zierpflanzen und Sträucher'!B19=0),'Zierpflanzen und Sträucher'!B19,\" \")","v":" "},null,{"$f":"IF(NOT(ISBLANK('Zierpflanzen und Sträucher'!C19)),'Zierpflanzen und Sträucher'!C19,\" \")","v":" "},null,null,null,null,null,null,null,null,null,null,null,null,null,null,null,null,null,{"$f":"IF(NOT('Zierpflanzen und Sträucher'!H19=0),'Zierpflanzen und Sträucher'!H19,\" \")","v":" "},null,null,{"$f":"IF(NOT('Zierpflanzen und Sträucher'!I19=0),'Zierpflanzen und Sträucher'!I19,\" \")","v":" "},null,null," "]
[null,{"$f":"IF(NOT('Zierpflanzen und Sträucher'!A20=0),'Zierpflanzen und Sträucher'!A20,\" \")","v":" "},{"$f":"IF(NOT('Zierpflanzen und Sträucher'!B20=0),'Zierpflanzen und Sträucher'!B20,\" \")","v":" "},null,{"$f":"IF(NOT(ISBLANK('Zierpflanzen und Sträucher'!C20)),'Zierpflanzen und Sträucher'!C20,\" \")","v":" "},null,null,null,null,null,null,null,null,null,null,null,null,null,null,null,null,null,{"$f":"IF(NOT('Zierpflanzen und Sträucher'!H20=0),'Zierpflanzen und Sträucher'!H20,\" \")","v":" "},null,null,{"$f":"IF(NOT('Zierpflanzen und Sträucher'!I20=0),'Zierpflanzen und Sträucher'!I20,\" \")","v":" "},null,null," "]
[null,{"$f":"IF(NOT('Zierpflanzen und Sträucher'!A21=0),'Zierpflanzen und Sträucher'!A21,\" \")","v":" "},{"$f":"IF(NOT('Zierpflanzen und Sträucher'!B21=0),'Zierpflanzen und Sträucher'!B21,\" \")","v":" "},null,{"$f":"IF(NOT(ISBLANK('Zierpflanzen und Sträucher'!C21)),'Zierpflanzen und Sträucher'!C21,\" \")","v":" "},null,null,null,null,null,null,null,null,null,null,null,null,null,null,null,null,null,{"$f":"IF(NOT('Zierpflanzen und Sträucher'!H21=0),'Zierpflanzen und Sträucher'!H21,\" \")","v":" "},null,null,{"$f":"IF(NOT('Zierpflanzen und Sträucher'!I21=0),'Zierpflanzen und Sträucher'!I21,\" \")","v":" "},null,null," "]
[null,{"$f":"IF(NOT('Zierpflanzen und Sträucher'!A22=0),'Zierpflanzen und Sträucher'!A22,\" \")","v":" "},{"$f":"IF(NOT('Zierpflanzen und Sträucher'!B22=0),'Zierpflanzen und Sträucher'!B22,\" \")","v":" "},null,{"$f":"IF(NOT(ISBLANK('Zierpflanzen und Sträucher'!C22)),'Zierpflanzen und Sträucher'!C22,\" \")","v":" "},null,null,null,null,null,null,null,null,null,null,null,null,null,null,null,null,null,{"$f":"IF(NOT('Zierpflanzen und Sträucher'!H22=0),'Zierpflanzen und Sträucher'!H22,\" \")","v":" "},null,null,{"$f":"IF(NOT('Zierpflanzen und Sträucher'!I22=0),'Zierpflanzen und Sträucher'!I22,\" \")","v":" "},null,null," "]
[null,{"$f":"IF(NOT('Zierpflanzen und Sträucher'!A23=0),'Zierpflanzen und Sträucher'!A23,\" \")","v":" "},{"$f":"IF(NOT('Zierpflanzen und Sträucher'!B23=0),'Zierpflanzen und Sträucher'!B23,\" \")","v":" "},null,{"$f":"IF(NOT(ISBLANK('Zierpflanzen und Sträucher'!C23)),'Zierpflanzen und Sträucher'!C23,\" \")","v":" "},null,null,null,null,null,null,null,null,null,null,null,null,null,null,null,null,null,{"$f":"IF(NOT('Zierpflanzen und Sträucher'!H23=0),'Zierpflanzen und Sträucher'!H23,\" \")","v":" "},null,null,{"$f":"IF(NOT('Zierpflanzen und Sträucher'!I23=0),'Zierpflanzen und Sträucher'!I23,\" \")","v":" "},null,null," "]
[null,{"$f":"IF(NOT('Zierpflanzen und Sträucher'!A24=0),'Zierpflanzen und Sträucher'!A24,\" \")","v":" "},{"$f":"IF(NOT('Zierpflanzen und Sträucher'!B24=0),'Zierpflanzen und Sträucher'!B24,\" \")","v":" "},null,{"$f":"IF(NOT(ISBLANK('Zierpflanzen und Sträucher'!C24)),'Zierpflanzen und Sträucher'!C24,\" \")","v":" "},null,null,null,null,null,null,null,null,null,null,null,null,null,null,null,null,null,{"$f":"IF(NOT('Zierpflanzen und Sträucher'!H24=0),'Zierpflanzen und Sträucher'!H24,\" \")","v":" "},null,null,{"$f":"IF(NOT('Zierpflanzen und Sträucher'!I24=0),'Zierpflanzen und Sträucher'!I24,\" \")","v":" "},null,null," "]
[null,{"$f":"IF(NOT('Zierpflanzen und Sträucher'!A25=0),'Zierpflanzen und Sträucher'!A25,\" \")","v":" "},{"$f":"IF(NOT('Zierpflanzen und Sträucher'!B25=0),'Zierpflanzen und Sträucher'!B25,\" \")","v":" "},null,{"$f":"IF(NOT(ISBLANK('Zierpflanzen und Sträucher'!C25)),'Zierpflanzen und Sträucher'!C25,\" \")","v":" "},null,null,null,null,null,null,null,null,null,null,null,null,null,null,null,null,null,{"$f":"IF(NOT('Zierpflanzen und Sträucher'!H25=0),'Zierpflanzen und Sträucher'!H25,\" \")","v":" "},null,null,{"$f":"IF(NOT('Zierpflanzen und Sträucher'!I25=0),'Zierpflanzen und Sträucher'!I25,\" \")","v":" "},null,null," "]
[null,{"$f":"IF(NOT('Zierpflanzen und Sträucher'!A26=0),'Zierpflanzen und Sträucher'!A26,\" \")","v":" "},{"$f":"IF(NOT('Zierpflanzen und Sträucher'!B26=0),'Zierpflanzen und Sträucher'!B26,\" \")","v":" "},null,{"$f":"IF(NOT(ISBLANK('Zierpflanzen und Sträucher'!C26)),'Zierpflanzen und Sträucher'!C26,\" \")","v":" "},null,null,null,null,null,null,null,null,null,null,null,null,null,null,null,null,null,{"$f":"IF(NOT('Zierpflanzen und Sträucher'!H26=0),'Zierpflanzen und Sträucher'!H26,\" \")","v":" "},null,null,{"$f":"IF(NOT('Zierpflanzen und Sträucher'!I26=0),'Zierpflanzen und Sträucher'!I26,\" \")","v":" "},null,null," "]
[null,{"$f":"IF(NOT('Zierpflanzen und Sträucher'!A27=0),'Zierpflanzen und Sträucher'!A27,\" \")","v":" "},{"$f":"IF(NOT('Zierpflanzen und Sträucher'!B27=0),'Zierpflanzen und Sträucher'!B27,\" \")","v":" "},null,{"$f":"IF(NOT(ISBLANK('Zierpflanzen und Sträucher'!C27)),'Zierpflanzen und Sträucher'!C27,\" \")","v":" "},null,null,null,null,null,null,null,null,null,null,null,null,null,null,null,null,null,{"$f":"IF(NOT('Zierpflanzen und Sträucher'!H27=0),'Zierpflanzen und Sträucher'!H27,\" \")","v":" "},null,null,{"$f":"IF(NOT('Zierpflanzen und Sträucher'!I27=0),'Zierpflanzen und Sträucher'!I27,\" \")","v":" "},null,null," "]
[null,{"$f":"IF(NOT('Zierpflanzen und Sträucher'!A28=0),'Zierpflanzen und Sträucher'!A28,\" \")","v":" "},{"$f":"IF(NOT('Zierpflanzen und Sträucher'!B28=0),'Zierpflanzen und Sträucher'!B28,\" \")","v":" "},null,{"$f":"IF(NOT(ISBLANK('Zierpflanzen und Sträucher'!C28)),'Zierpflanzen und Sträucher'!C28,\" \")","v":" "},null,null,null,null,null,null,null,null,null,null,null,null,null,null,null,null,null,{"$f":"IF(NOT('Zierpflanzen und Sträucher'!H28=0),'Zierpflanzen und Sträucher'!H28,\" \")","v":" "},null,null,{"$f":"IF(NOT('Zierpflanzen und Sträucher'!I28=0),'Zierpflanzen und Sträucher'!I28,\" \")","v":" "},null,null," "]
[null,{"$f":"IF(NOT('Zierpflanzen und Sträucher'!A29=0),'Zierpflanzen und Sträucher'!A29,\" \")","v":" "},{"$f":"IF(NOT('Zierpflanzen und Sträucher'!B29=0),'Zierpflanzen und Sträucher'!B29,\" \")","v":" "},null,{"$f":"IF(NOT(ISBLANK('Zierpflanzen und Sträucher'!C29)),'Zierpflanzen und Sträucher'!C29,\" \")","v":" "},null,null,null,null,null,null,null,null,null,null,null,null,null,null,null,null,null,{"$f":"IF(NOT('Zierpflanzen und Sträucher'!H29=0),'Zierpflanzen und Sträucher'!H29,\" \")","v":" "},null,null,{"$f":"IF(NOT('Zierpflanzen und Sträucher'!I29=0),'Zierpflanzen und Sträucher'!I29,\" \")","v":" "},null,null," "]
[null,{"$f":"IF(NOT('Zierpflanzen und Sträucher'!A30=0),'Zierpflanzen und Sträucher'!A30,\" \")","v":" "},{"$f":"IF(NOT('Zierpflanzen und Sträucher'!B30=0),'Zierpflanzen und Sträucher'!B30,\" \")","v":" "},null,{"$f":"IF(NOT(ISBLANK('Zierpflanzen und Sträucher'!C30)),'Zierpflanzen und Sträucher'!C30,\" \")","v":" "},null,null,null,null,null,null,null,null,null,null,null,null,null,null,null,null,null,{"$f":"IF(NOT('Zierpflanzen und Sträucher'!H30=0),'Zierpflanzen und Sträucher'!H30,\" \")","v":" "},null,null,{"$f":"IF(NOT('Zierpflanzen und Sträucher'!I30=0),'Zierpflanzen und Sträucher'!I30,\" \")","v":" "},null,null," "]
[null,{"$f":"IF(NOT('Zierpflanzen und Sträucher'!A31=0),'Zierpflanzen und Sträucher'!A31,\" \")","v":" "},{"$f":"IF(NOT('Zierpflanzen und Sträucher'!B31=0),'Zierpflanzen und Sträucher'!B31,\" \")","v":" "},null,{"$f":"IF(NOT(ISBLANK('Zierpflanzen und Sträucher'!C31)),'Zierpflanzen und Sträucher'!C31,\" \")","v":" "},null,null,null,null,null,null,null,null,null,null,null,null,null,null,null,null,null,{"$f":"IF(NOT('Zierpflanzen und Sträucher'!H31=0),'Zierpflanzen und Sträucher'!H31,\" \")","v":" "},null,null,{"$f":"IF(NOT('Zierpflanzen und Sträucher'!I31=0),'Zierpflanzen und Sträucher'!I31,\" \")","v":" "},null,null," "]
[null,{"$f":"IF(NOT('Zierpflanzen und Sträucher'!A32=0),'Zierpflanzen und Sträucher'!A32,\" \")","v":" "},{"$f":"IF(NOT('Zierpflanzen und Sträucher'!B32=0),'Zierpflanzen und Sträucher'!B32,\" \")","v":" "},null,{"$f":"IF(NOT(ISBLANK('Zierpflanzen und Sträucher'!C32)),'Zierpflanzen und Sträucher'!C32,\" \")","v":" "},null,null,null,null,null,null,null,null,null,null,null,null,null,null,null,null,null,{"$f":"IF(NOT('Zierpflanzen und Sträucher'!H32=0),'Zierpflanzen und Sträucher'!H32,\" \")","v":" "},null,null,{"$f":"IF(NOT('Zierpflanzen und Sträucher'!I32=0),'Zierpflanzen und Sträucher'!I32,\" \")","v":" "},null,null," "]
[null,{"$f":"IF(NOT('Zierpflanzen und Sträucher'!A33=0),'Zierpflanzen und Sträucher'!A33,\" \")","v":" "},{"$f":"IF(NOT('Zierpflanzen und Sträucher'!B33=0),'Zierpflanzen und Sträucher'!B33,\" \")","v":" "},null,{"$f":"IF(NOT(ISBLANK('Zierpflanzen und Sträucher'!C33)),'Zierpflanzen und Sträucher'!C33,\" \")","v":" "},null,null,null,null,null,null,null,null,null,null,null,null,null,null,null,null,null,{"$f":"IF(NOT('Zierpflanzen und Sträucher'!H33=0),'Zierpflanzen und Sträucher'!H33,\" \")","v":" "},null,null,{"$f":"IF(NOT('Zierpflanzen und Sträucher'!I33=0),'Zierpflanzen und Sträucher'!I33,\" \")","v":" "},null,null," "]
[null,{"$f":"IF(NOT('Zierpflanzen und Sträucher'!A34=0),'Zierpflanzen und Sträucher'!A34,\" \")","v":" "},{"$f":"IF(NOT('Zierpflanzen und Sträucher'!B34=0),'Zierpflanzen und Sträucher'!B34,\" \")","v":" "},null,{"$f":"IF(NOT(ISBLANK('Zierpflanzen und Sträucher'!C34)),'Zierpflanzen und Sträucher'!C34,\" \")","v":" "},null,null,null,null,null,null,null,null,null,null,null,null,null,null,null,null,null,{"$f":"IF(NOT('Zierpflanzen und Sträucher'!H34=0),'Zierpflanzen und Sträucher'!H34,\" \")","v":" "},null,null,{"$f":"IF(NOT('Zierpflanzen und Sträucher'!I34=0),'Zierpflanzen und Sträucher'!I34,\" \")","v":" "},null,null," "]
[null,{"$f":"IF(NOT('Zierpflanzen und Sträucher'!A35=0),'Zierpflanzen und Sträucher'!A35,\" \")","v":" "},{"$f":"IF(NOT('Zierpflanzen und Sträucher'!B35=0),'Zierpflanzen und Sträucher'!B35,\" \")","v":" "},null,{"$f":"IF(NOT(ISBLANK('Zierpflanzen und Sträucher'!C35)),'Zierpflanzen und Sträucher'!C35,\" \")","v":" "},null,null,null,null,null,null,null,null,null,null,null,null,null,null,null,null,null,{"$f":"IF(NOT('Zierpflanzen und Sträucher'!H35=0),'Zierpflanzen und Sträucher'!H35,\" \")","v":" "},null,null,{"$f":"IF(NOT('Zierpflanzen und Sträucher'!I35=0),'Zierpflanzen und Sträucher'!I35,\" \")","v":" "},null,null," "]
[null,{"$f":"IF(NOT('Zierpflanzen und Sträucher'!A36=0),'Zierpflanzen und Sträucher'!A36,\" \")","v":" "},{"$f":"IF(NOT('Zierpflanzen und Sträucher'!B36=0),'Zierpflanzen und Sträucher'!B36,\" \")","v":" "},null,{"$f":"IF(NOT(ISBLANK('Zierpflanzen und Sträucher'!C36)),'Zierpflanzen und Sträucher'!C36,\" \")","v":" "},null,null,null,null,null,null,null,null,null,null,null,null,null,null,null,null,null,{"$f":"IF(NOT('Zierpflanzen und Sträucher'!H36=0),'Zierpflanzen und Sträucher'!H36,\" \")","v":" "},null,null,{"$f":"IF(NOT('Zierpflanzen und Sträucher'!I36=0),'Zierpflanzen und Sträucher'!I36,\" \")","v":" "},null,null," "]
[null,{"$f":"IF(NOT('Zierpflanzen und Sträucher'!A37=0),'Zierpflanzen und Sträucher'!A37,\" \")","v":" "},{"$f":"IF(NOT('Zierpflanzen und Sträucher'!B37=0),'Zierpflanzen und Sträucher'!B37,\" \")","v":" "},null,{"$f":"IF(NOT(ISBLANK('Zierpflanzen und Sträucher'!C37)),'Zierpflanzen und Sträucher'!C37,\" \")","v":" "},null,null,null,null,null,null,null,null,null,null,null,null,null,null,null,null,null,{"$f":"IF(NOT('Zierpflanzen und Sträucher'!H37=0),'Zierpflanzen und Sträucher'!H37,\" \")","v":" "},null,null,{"$f":"IF(NOT('Zierpflanzen und Sträucher'!I37=0),'Zierpflanzen und Sträucher'!I37,\" \")","v":" "},null,null," "]
[null,{"$f":"IF(NOT('Zierpflanzen und Sträucher'!A38=0),'Zierpflanzen und Sträucher'!A38,\" \")","v":" "},{"$f":"IF(NOT('Zierpflanzen und Sträucher'!B38=0),'Zierpflanzen und Sträucher'!B38,\" \")","v":" "},null,{"$f":"IF(NOT(ISBLANK('Zierpflanzen und Sträucher'!C38)),'Zierpflanzen und Sträucher'!C38,\" \")","v":" "},null,null,null,null,null,null,null,null,null,null,null,null,null,null,null,null,null,{"$f":"IF(NOT('Zierpflanzen und Sträucher'!H38=0),'Zierpflanzen und Sträucher'!H38,\" \")","v":" "},null,null,{"$f":"IF(NOT('Zierpflanzen und Sträucher'!I38=0),'Zierpflanzen und Sträucher'!I38,\" \")","v":" "},null,null," "]
[null,{"$f":"IF(NOT('Zierpflanzen und Sträucher'!A39=0),'Zierpflanzen und Sträucher'!A39,\" \")","v":" "},{"$f":"IF(NOT('Zierpflanzen und Sträucher'!B39=0),'Zierpflanzen und Sträucher'!B39,\" \")","v":" "},null,{"$f":"IF(NOT(ISBLANK('Zierpflanzen und Sträucher'!C39)),'Zierpflanzen und Sträucher'!C39,\" \")","v":" "},null,null,null,null,null,null,null,null,null,null,null,null,null,null,null,null,null,{"$f":"IF(NOT('Zierpflanzen und Sträucher'!H39=0),'Zierpflanzen und Sträucher'!H39,\" \")","v":" "},null,null,{"$f":"IF(NOT('Zierpflanzen und Sträucher'!I39=0),'Zierpflanzen und Sträucher'!I39,\" \")","v":" "},null,null," "]
[null,{"$f":"IF(NOT('Zierpflanzen und Sträucher'!A40=0),'Zierpflanzen und Sträucher'!A40,\" \")","v":" "},{"$f":"IF(NOT('Zierpflanzen und Sträucher'!B40=0),'Zierpflanzen und Sträucher'!B40,\" \")","v":" "},null,{"$f":"IF(NOT(ISBLANK('Zierpflanzen und Sträucher'!C40)),'Zierpflanzen und Sträucher'!C40,\" \")","v":" "},null,null,null,null,null,null,null,null,null,null,null,null,null,null,null,null,null,{"$f":"IF(NOT('Zierpflanzen und Sträucher'!H40=0),'Zierpflanzen und Sträucher'!H40,\" \")","v":" "},null,null,{"$f":"IF(NOT('Zierpflanzen und Sträucher'!I40=0),'Zierpflanzen und Sträucher'!I40,\" \")","v":" "},null,null," "]
[null,{"$f":"IF(NOT('Zierpflanzen und Sträucher'!A41=0),'Zierpflanzen und Sträucher'!A41,\" \")","v":" "},{"$f":"IF(NOT('Zierpflanzen und Sträucher'!B41=0),'Zierpflanzen und Sträucher'!B41,\" \")","v":" "},null,{"$f":"IF(NOT(ISBLANK('Zierpflanzen und Sträucher'!C41)),'Zierpflanzen und Sträucher'!C41,\" \")","v":" "},null,null,null,null,null,null,null,null,null,null,null,null,null,null,null,null,null,{"$f":"IF(NOT('Zierpflanzen und Sträucher'!H41=0),'Zierpflanzen und Sträucher'!H41,\" \")","v":" "},null,null,{"$f":"IF(NOT('Zierpflanzen und Sträucher'!I41=0),'Zierpflanzen und Sträucher'!I41,\" \")","v":" "},null,null," "]
[null,{"$f":"IF(NOT('Zierpflanzen und Sträucher'!A42=0),'Zierpflanzen und Sträucher'!A42,\" \")","v":" "},{"$f":"IF(NOT('Zierpflanzen und Sträucher'!B42=0),'Zierpflanzen und Sträucher'!B42,\" \")","v":" "},null,{"$f":"IF(NOT(ISBLANK('Zierpflanzen und Sträucher'!C42)),'Zierpflanzen und Sträucher'!C42,\" \")","v":" "},null,null,null,null,null,null,null,null,null,null,null,null,null,null,null,null,null,{"$f":"IF(NOT('Zierpflanzen und Sträucher'!H42=0),'Zierpflanzen und Sträucher'!H42,\" \")","v":" "},null,null,{"$f":"IF(NOT('Zierpflanzen und Sträucher'!I42=0),'Zierpflanzen und Sträucher'!I42,\" \")","v":" "},null,null," "]
[null,{"$f":"IF(NOT('Zierpflanzen und Sträucher'!A43=0),'Zierpflanzen und Sträucher'!A43,\" \")","v":" "},{"$f":"IF(NOT('Zierpflanzen und Sträucher'!B43=0),'Zierpflanzen und Sträucher'!B43,\" \")","v":" "},null,{"$f":"IF(NOT(ISBLANK('Zierpflanzen und Sträucher'!C43)),'Zierpflanzen und Sträucher'!C43,\" \")","v":" "},null,null,null,null,null,null,null,null,null,null,null,null,null,null,null,null,null,{"$f":"IF(NOT('Zierpflanzen und Sträucher'!H43=0),'Zierpflanzen und Sträucher'!H43,\" \")","v":" "},null,null,{"$f":"IF(NOT('Zierpflanzen und Sträucher'!I43=0),'Zierpflanzen und Sträucher'!I43,\" \")","v":" "},null,null," "]
[null,{"$f":"IF(NOT('Zierpflanzen und Sträucher'!A44=0),'Zierpflanzen und Sträucher'!A44,\" \")","v":" "},{"$f":"IF(NOT('Zierpflanzen und Sträucher'!B44=0),'Zierpflanzen und Sträucher'!B44,\" \")","v":" "},null,{"$f":"IF(NOT(ISBLANK('Zierpflanzen und Sträucher'!C44)),'Zierpflanzen und Sträucher'!C44,\" \")","v":" "},null,null,null,null,null,null,null,null,null,null,null,null,null,null,null,null,null,{"$f":"IF(NOT('Zierpflanzen und Sträucher'!H44=0),'Zierpflanzen und Sträucher'!H44,\" \")","v":" "},null,null,{"$f":"IF(NOT('Zierpflanzen und Sträucher'!I44=0),'Zierpflanzen und Sträucher'!I44,\" \")","v":" "},null,null," "]
[null,{"$f":"IF(NOT('Zierpflanzen und Sträucher'!A45=0),'Zierpflanzen und Sträucher'!A45,\" \")","v":" "},{"$f":"IF(NOT('Zierpflanzen und Sträucher'!B45=0),'Zierpflanzen und Sträucher'!B45,\" \")","v":" "},null,{"$f":"IF(NOT(ISBLANK('Zierpflanzen und Sträucher'!C45)),'Zierpflanzen und Sträucher'!C45,\" \")","v":" "},null,null,null,null,null,null,null,null,null,null,null,null,null,null,null,null,null,{"$f":"IF(NOT('Zierpflanzen und Sträucher'!H45=0),'Zierpflanzen und Sträucher'!H45,\" \")","v":" "},null,null,{"$f":"IF(NOT('Zierpflanzen und Sträucher'!I45=0),'Zierpflanzen und Sträucher'!I45,\" \")","v":" "},null,null," "]
[null,{"$f":"IF(NOT('Zierpflanzen und Sträucher'!A46=0),'Zierpflanzen und Sträucher'!A46,\" \")","v":" "},{"$f":"IF(NOT('Zierpflanzen und Sträucher'!B46=0),'Zierpflanzen und Sträucher'!B46,\" \")","v":" "},null,{"$f":"IF(NOT(ISBLANK('Zierpflanzen und Sträucher'!C46)),'Zierpflanzen und Sträucher'!C46,\" \")","v":" "},null,null,null,null,null,null,null,null,null,null,null,null,null,null,null,null,null,{"$f":"IF(NOT('Zierpflanzen und Sträucher'!H46=0),'Zierpflanzen und Sträucher'!H46,\" \")","v":" "},null,null,{"$f":"IF(NOT('Zierpflanzen und Sträucher'!I46=0),'Zierpflanzen und Sträucher'!I46,\" \")","v":" "},null,null," "]
[null,{"$f":"IF(NOT('Zierpflanzen und Sträucher'!A47=0),'Zierpflanzen und Sträucher'!A47,\" \")","v":" "},{"$f":"IF(NOT('Zierpflanzen und Sträucher'!B47=0),'Zierpflanzen und Sträucher'!B47,\" \")","v":" "},null,{"$f":"IF(NOT(ISBLANK('Zierpflanzen und Sträucher'!C47)),'Zierpflanzen und Sträucher'!C47,\" \")","v":" "},null,null,null,null,null,null,null,null,null,null,null,null,null,null,null,null,null,{"$f":"IF(NOT('Zierpflanzen und Sträucher'!H47=0),'Zierpflanzen und Sträucher'!H47,\" \")","v":" "},null,null,{"$f":"IF(NOT('Zierpflanzen und Sträucher'!I47=0),'Zierpflanzen und Sträucher'!I47,\" \")","v":" "},null,null," "]
[null,{"$f":"IF(NOT('Zierpflanzen und Sträucher'!A48=0),'Zierpflanzen und Sträucher'!A48,\" \")","v":" "},{"$f":"IF(NOT('Zierpflanzen und Sträucher'!B48=0),'Zierpflanzen und Sträucher'!B48,\" \")","v":" "},null,{"$f":"IF(NOT(ISBLANK('Zierpflanzen und Sträucher'!C48)),'Zierpflanzen und Sträucher'!C48,\" \")","v":" "},null,null,null,null,null,null,null,null,null,null,null,null,null,null,null,null,null,{"$f":"IF(NOT('Zierpflanzen und Sträucher'!H48=0),'Zierpflanzen und Sträucher'!H48,\" \")","v":" "},null,null,{"$f":"IF(NOT('Zierpflanzen und Sträucher'!I48=0),'Zierpflanzen und Sträucher'!I48,\" \")","v":" "},null,null," "]
[null,{"$f":"IF(NOT('Zierpflanzen und Sträucher'!A49=0),'Zierpflanzen und Sträucher'!A49,\" \")","v":" "},{"$f":"IF(NOT('Zierpflanzen und Sträucher'!B49=0),'Zierpflanzen und Sträucher'!B49,\" \")","v":" "},null,{"$f":"IF(NOT(ISBLANK('Zierpflanzen und Sträucher'!C49)),'Zierpflanzen und Sträucher'!C49,\" \")","v":" "},null,null,null,null,null,null,null,null,null,null,null,null,null,null,null,null,null,{"$f":"IF(NOT('Zierpflanzen und Sträucher'!H49=0),'Zierpflanzen und Sträucher'!H49,\" \")","v":" "},null,null,{"$f":"IF(NOT('Zierpflanzen und Sträucher'!I49=0),'Zierpflanzen und Sträucher'!I49,\" \")","v":" "},null,null," "]
[null,{"$f":"IF(NOT('Zierpflanzen und Sträucher'!A50=0),'Zierpflanzen und Sträucher'!A50,\" \")","v":" "},{"$f":"IF(NOT('Zierpflanzen und Sträucher'!B50=0),'Zierpflanzen und Sträucher'!B50,\" \")","v":" "},null,{"$f":"IF(NOT(ISBLANK('Zierpflanzen und Sträucher'!C50)),'Zierpflanzen und Sträucher'!C50,\" \")","v":" "},null,null,null,null,null,null,null,null,null,null,null,null,null,null,null,null,null,{"$f":"IF(NOT('Zierpflanzen und Sträucher'!H50=0),'Zierpflanzen und Sträucher'!H50,\" \")","v":" "},null,null,{"$f":"IF(NOT('Zierpflanzen und Sträucher'!I50=0),'Zierpflanzen und Sträucher'!I50,\" \")","v":" "},null,null," "]
[null,{"$f":"IF(NOT('Zierpflanzen und Sträucher'!A51=0),'Zierpflanzen und Sträucher'!A51,\" \")","v":" "},{"$f":"IF(NOT('Zierpflanzen und Sträucher'!B51=0),'Zierpflanzen und Sträucher'!B51,\" \")","v":" "},null,{"$f":"IF(NOT(ISBLANK('Zierpflanzen und Sträucher'!C51)),'Zierpflanzen und Sträucher'!C51,\" \")","v":" "},null,null,null,null,null,null,null,null,null,null,null,null,null,null,null,null,null,{"$f":"IF(NOT('Zierpflanzen und Sträucher'!H51=0),'Zierpflanzen und Sträucher'!H51,\" \")","v":" "},null,null,{"$f":"IF(NOT('Zierpflanzen und Sträucher'!I51=0),'Zierpflanzen und Sträucher'!I51,\" \")","v":" "},null,null," "]
[null,{"$f":"IF(NOT('Zierpflanzen und Sträucher'!A52=0),'Zierpflanzen und Sträucher'!A52,\" \")","v":" "},{"$f":"IF(NOT('Zierpflanzen und Sträucher'!B52=0),'Zierpflanzen und Sträucher'!B52,\" \")","v":" "},null,{"$f":"IF(NOT(ISBLANK('Zierpflanzen und Sträucher'!C52)),'Zierpflanzen und Sträucher'!C52,\" \")","v":" "},null,null,null,null,null,null,null,null,null,null,null,null,null,null,null,null,null,{"$f":"IF(NOT('Zierpflanzen und Sträucher'!H52=0),'Zierpflanzen und Sträucher'!H52,\" \")","v":" "},null,null,{"$f":"IF(NOT('Zierpflanzen und Sträucher'!I52=0),'Zierpflanzen und Sträucher'!I52,\" \")","v":" "},null,null," "]
[null,{"$f":"IF(NOT('Zierpflanzen und Sträucher'!A53=0),'Zierpflanzen und Sträucher'!A53,\" \")","v":" "},{"$f":"IF(NOT('Zierpflanzen und Sträucher'!B53=0),'Zierpflanzen und Sträucher'!B53,\" \")","v":" "},null,{"$f":"IF(NOT(ISBLANK('Zierpflanzen und Sträucher'!C53)),'Zierpflanzen und Sträucher'!C53,\" \")","v":" "},null,null,null,null,null,null,null,null,null,null,null,null,null,null,null,null,null,{"$f":"IF(NOT('Zierpflanzen und Sträucher'!H53=0),'Zierpflanzen und Sträucher'!H53,\" \")","v":" "},null,null,{"$f":"IF(NOT('Zierpflanzen und Sträucher'!I53=0),'Zierpflanzen und Sträucher'!I53,\" \")","v":" "},null,null," "]
[null,null,{"$f":"IF(NOT('Zierpflanzen und Sträucher'!B54=0),'Zierpflanzen und Sträucher'!B54,\" \")","v":" "},null,{"$f":"IF(NOT(ISBLANK('Zierpflanzen und Sträucher'!C54)),'Zierpflanzen und Sträucher'!C54,\" \")","v":" "},null,null,null,null,null,null,null,null,null,null,null,null,null,null,null,null,null,{"$f":"IF(NOT('Zierpflanzen und Sträucher'!H54=0),'Zierpflanzen und Sträucher'!H54,\" \")","v":" "},null,null,{"$f":"IF(NOT('Zierpflanzen und Sträucher'!I54=0),'Zierpflanzen und Sträucher'!I54,\" \")","v":" "},null,null," "]
[null,null,"Summe Zierpflanzen und Sträucher",null,null,null,null,null,null,null,null,null,null,null,null,null,null,null,null,null,null,null,null,null,null,{"$f":"IF(NOT('Zierpflanzen und Sträucher'!I4=0),'Zierpflanzen und Sträucher'!I4,\" \")","v":" "},null,null,"€"]
[]
[]
["Schätzung",null,null,{"$f":"$I$7","v":" "},null,null,null,null,null,null,null,null,null,null,null,"Nr.",{"$f":"$W$7","v":" "},null,"Datum",null,{"$f":"IF(Festwerte!$D$18<>\"\",Festwerte!$D$18,\" \")","v":" "},null,null,null,"Seite",null,4,"von",null,9]
[]
["5.","Nebenanlagen"]
[]
[null,"5.1","Pforte",null,null,null,null,null,null,null,null,null,null,null,null,null,null,null,null,null,null,null,null,null,{"$f":"IF(NOT(Nebenanlagen!J10=0),Nebenanlagen!J10,\"--- \")","v":"--- "},null,null,null,"€"]
[null,null,{"$f":"IF(NOT(ISBLANK(Nebenanlagen!B10)),Nebenanlagen!B10,\" \")","v":" "}]
[null,null,{"$f":"IF(NOT(ISBLANK(Nebenanlagen!B11)),Nebenanlagen!B11,\" \")","v":" "}]
[null,null,{"$f":"IF(NOT(ISBLANK(Nebenanlagen!B12)),Nebenanlagen!B12,\" \")","v":" "}]
[null,null,"(Pforten und Zäune werden nur bewertet, wenn sie nicht vom Verpächter gestellt wurden)"]
[null,"5.2","Einfriedigung / Zaun",null,null,null,null,null,null,null,null,null,null,null,{"$f":"IF(NOT(Nebenanlagen!F14=0),Nebenanlagen!F14,\" \")","v":" "},null,null,"m","x",{"$f":"IF(NOT(Nebenanlagen!H14=0),Nebenanlagen!H14,\" \")","v":" "},null,null,"€ / m",null,{"$f":"IF(NOT(Nebenanlagen!J14=0),Nebenanlagen!J14,\"---\")","v":"---"},null,null,null,"€"]
[null,null,{"$f":"IF(NOT(ISBLANK(Nebenanlagen!B16)),Nebenanlagen!B16,\" \")","v":" "}]
[null,null,{"$f":"IF(NOT(ISBLANK(Nebenanlagen!B17)),Nebenanlagen!B17,\" \")","v":" "}]
[null,null,{"$f":"IF(NOT(ISBLANK(Nebenanlagen!B18)),Nebenanlagen!B18,\" \")","v":" "}]
[null,null,"(Einfriedigungen / Zäune zwischen Nachbargrundstücken werden nicht bewertet.)"]
[null,null,"Terrassen- und Wegebefestigungen"]
[null,"5.3",{"$f":"IF(NOT(ISBLANK(Nebenanlagen!B30)),Nebenanlagen!B30,\" \")","v":" "}]
[null,null,null,null,null,null,null,null,null,null,null,null,null,null,{"$f":"IF(NOT(Nebenanlagen!F28=0),Nebenanlagen!F28,\" \")","v":" "},null,null,"m²","x",{"$f":"IF(NOT(Nebenanlagen!H28=0),Nebenanlagen!H28,\" \")","v":" "},null,null,"€ / m²",null,{"$f":"IF(NOT(Nebenanlagen!J28=0),Nebenanlagen!J28,\"---\")","v":"---"},null,null,null,"€"]
[null,"5.4",{"$f":"IF(NOT(ISBLANK(Nebenanlagen!B34)),Nebenanlagen!B34,\" \")","v":" "}]
[null,null,null,null,null,null,null,null,null,null,null,null,null,null,{"$f":"IF(NOT(Nebenanlagen!F32=0),Nebenanlagen!F32,\" \")","v":" "},null,null,"m²","x",{"$f":"IF(NOT(Nebenanlagen!H32=0),Nebenanlagen!H32,\" \")","v":" "},null,null,"€ / m²",null,{"$f":"IF(NOT(Nebenanlagen!J32=0),Nebenanlagen!J32,\"---\")","v":"---"},null,null,null,"€"]
[null,"5.5",{"$f":"IF(NOT(ISBLANK(Nebenanlagen!B38)),Nebenanlagen!B38,\" \")","v":" "}]
[null,null,null,null,null,null,null,null,null,null,null,null,null,null,{"$f":"IF(NOT(Nebenanlagen!F36=0),Nebenanlagen!F36,\" \")","v":" "},null,null,"m²","x",{"$f":"IF(NOT(Nebenanlagen!H36=0),Nebenanlagen!H36,\" \")","v":" "},null,null,"€ / m²",null,{"$f":"IF(NOT(Nebenanlagen!J36=0),Nebenanlagen!J36,\"---\")","v":"---"},null,null,null,"€"]
[]
[null,"5.6","Elektroanschluss"]
[]
[null,null,{"$f":"IF(Nebenanlagen!E44=\"Einzelanschluss\",\"X\",\" \")","v":" "},null,"Einzelanschluss, errichtet",null,null,null,null,null,null,null,null,null,{"$f":"IF(AND(Nebenanlagen!E44=\"Einzelanschluss\",NOT(Nebenanlagen!E46=0)),Nebenanlagen!E46,\" \")","v":" "},null,null,null,null,null,null,null,"Pauschal",null,{"$f":"IF(AND(Nebenanlagen!E44=\"Einzelanschluss\",NOT(Nebenanlagen!J44=0)),Nebenanlagen!J44,\"---\")","v":"---"},null,null,null,"€"]
[]
[null,null,{"$f":"IF(Nebenanlagen!E44=\"Gemeinschaftsanschl.\",\"X\",\" \")","v":" "},null,"Gemeinschaftsanschluss, Erstellungskosten (max. 400 €)",null,null,null,null,null,null,null,null,null,null,null,null,null,null,null,null,null,null,null,{"$f":"IF(AND(Nebenanlagen!E44=\"Gemeinschaftsanschl.\",NOT(Nebenanlagen!J44=0)),Nebenanlagen!J44,\"---\")","v":"---"},null,null,null,"€"]
[null,null,null,null,"(über den Verein)"]
[null,null,{"$f":"IF(NOT(ISBLANK(Nebenanlagen!B48)),Nebenanlagen!B48,\" \")","v":" "}]
[null,null,{"$f":"IF(NOT(ISBLANK(Nebenanlagen!B49)),Nebenanlagen!B49,\" \")","v":" "}]
[null,null,{"$f":"IF(NOT(ISBLANK(Nebenanlagen!B50)),Nebenanlagen!B50,\" \")","v":" "}]
[]
[null,"5.7","Rankgerüst"]
[]
[null,null,"Größe ",null,null,{"$f":"Nebenanlagen!C56","v":0},null,null,"m²",null,"Höhe",null,null,{"$f":"Nebenanlagen!E56","v":0},null,null,"m",null,null,null,null,null,"Erstattung",null,{"$f":"IF(NOT(Nebenanlagen!J56=0),Nebenanlagen!J56,\"---\")","v":"---"},null,null,null,"€"]
[null,null,"Erstellung"]
[null,null,"Jahr",null,null,{"$f":"Nebenanlagen!C58","v":0},null,null,null,null,"Kosten",null,null,{"$f":"Nebenanlagen!H56","v":0},null,null,"€","gem. vorliegender Rechnung"]
[null,null,"Abschreibung"]
[null,null,"Alter",null,null,{"$f":"Nebenanlagen!E58","v":0},null,null,null,"Jahre x 2 %",null,null,null,{"$f":"Nebenanlagen!H58","v":0},null,null,"%"]
[null,null,{"$f":"IF(NOT(ISBLANK(Nebenanlagen!B60)),Nebenanlagen!B60,\" \")","v":" "}]
[null,null,{"$f":"IF(NOT(ISBLANK(Nebenanlagen!B61)),Nebenanlagen!B61,\" \")","v":" "}]
[null,null,{"$f":"IF(NOT(ISBLANK(Nebenanlagen!B62)),Nebenanlagen!B62,\" \")","v":" "}]
[]
[null,"5.8","Entwässerungseinrichtung (Abwassersammelbehälter)"]
[]
[null,null,"Größe ",null,null,{"$f":"Nebenanlagen!C76","v":0},null,null,"l",null,null,null,null,null,null,null,null,null,null,null,null,null,"Erstattung",null,{"$f":"IF(NOT(Nebenanlagen!J76=0),Nebenanlagen!J76,\"---\")","v":"---"},null,null,null,"€"]
[null,null,"Erstellung"]
[null,null,"Jahr",null,null,{"$f":"Nebenanlagen!C58","v":0},null,null,null,null,"Kosten",null,null,{"$f":"Nebenanlagen!H76","v":0},null,null,"€","gem. vorliegender Rechnung"]
[null,null,"Abschreibung"]
[null,null,"Alter",null,null,{"$f":"Nebenanlagen!E78","v":0},null,null,null,"Jahre x 5 %",null,null,null,{"$f":"Nebenanlagen!H78","v":0},null,null,"%"]
[null,null,"Berechnung erfolgt nur, wenn ein Entsorgungsnachweis vorgelegt wurde!"]
[]
[null,null,"Letzte Entsorgung",null,null,null,null,null,null,{"$f":"IF(Nebenanlagen!H74=0,\" \",Nebenanlagen!H74)","v":" "},null,null,null,"Preis",null,null,{"$f":"Nebenanlagen!H72","v":0},null,null,"€"]
[null,null,{"$f":"IF(Nebenanlagen!Q64,\"Entsorgung vor mehr als 2 Monaten, deshalb Abzug  einer Entsorgung\",\" \")","v":" "}]
[null,null,"Summe Nebenanlagen",null,null,null,null,null,null,null,null,null,null,null,null,null,null,null,null,null,null,null,null,null,{"$f":"IF(NOT(Nebenanlagen!J86=0),Nebenanlagen!J86,\" \")","v":" "},null,null,null,"€"]
[]
[]
["Schätzung",null,null,{"$f":"$I$7","v":" "},null,null,null,null,null,null,null,null,null,null,null,"Nr.",{"$f":"$W$7","v":" "},null,"Datum",null,{"$f":"IF(Festwerte!$D$18<>\"\",Festwerte!$D$18,\" \")","v":" "},null,null,null,"Seite",null,5,"von",null,9]
["6.","Bemerkungen"]
[null,"lfd.\nNr.",null,null,null,null,null,null,null,null,null,null,null,null,null,null,null,null,null,null,null,null,null,null,null,"Kos-\nten **"]
[null,null,"Bezeichnung",null,null,null,null,null,null,null,null,null,null,null,null,null,null,null,null,null,null,null,null,"Std.",null,null,null,null,"€"]
[null,{"$f":"IF(NOT(Bemerkungen!A6=0),Bemerkungen!A6,\" \")","v":" "},{"$f":"IF(NOT(ISBLANK(Bemerkungen!B6)),Bemerkungen!B6,\" \")","v":" "},null,null,null,null,null,null,null,null,null,null,null,null,null,null,null,null,null,null,null,null,{"$f":"IF(NOT(Bemerkungen!G6=0),Bemerkungen!G6,\" \")","v":" "},null,{"$f":"IF(NOT(Bemerkungen!H6=0),Bemerkungen!H6,\" \")","v":" "},null,null,{"$f":"IF(Z281<>\" \",\"€\",\" \")","v":" "}]
[null,{"$f":"IF(NOT(Bemerkungen!A7=0),Bemerkungen!A7,\" \")","v":" "},{"$f":"IF(NOT(ISBLANK(Bemerkungen!B7)),Bemerkungen!B7,\" \")","v":" "},null,null,null,null,null,null,null,null,null,null,null,null,null,null,null,null,null,null,null,null,{"$f":"IF(NOT(Bemerkungen!G7=0),Bemerkungen!G7,\" \")","v":" "},null,{"$f":"IF(NOT(Bemerkungen!H7=0),Bemerkungen!H7,\" \")","v":" "},null,null,{"$f":"IF(Z282<>\" \",\"€\",\" \")","v":" "}]
[null,{"$f":"IF(NOT(Bemerkungen!A8=0),Bemerkungen!A8,\" \")","v":" "},{"$f":"IF(NOT(ISBLANK(Bemerkungen!B8)),Bemerkungen!B8,\" \")","v":" "},null,null,null,null,null,null,null,null,null,null,null,null,null,null,null,null,null,null,null,null,{"$f":"IF(NOT(Bemerkungen!G8=0),Bemerkungen!G8,\" \")","v":" "},null,{"$f":"IF(NOT(Bemerkungen!H8=0),Bemerkungen!H8,\" \")","v":" "},null,null,{"$f":"IF(Z283<>\" \",\"€\",\" \")","v":" "}]
[null,{"$f":"IF(NOT(Bemerkungen!A9=0),Bemerkungen!A9,\" \")","v":" "},{"$f":"IF(NOT(ISBLANK(Bemerkungen!B9)),Bemerkungen!B9,\" \")","v":" "},null,null,null,null,null,null,null,null,null,null,null,null,null,null,null,null,null,null,null,null,{"$f":"IF(NOT(Bemerkungen!G9=0),Bemerkungen!G9,\" \")","v":" "},null,{"$f":"IF(NOT(Bemerkungen!H9=0),Bemerkungen!H9,\" \")","v":" "},null,null," "]
[null,{"$f":"IF(NOT(Bemerkungen!A10=0),Bemerkungen!A10,\" \")","v":" "},{"$f":"IF(NOT(ISBLANK(Bemerkungen!B10)),Bemerkungen!B10,\" \")","v":" "},null,null,null,null,null,null,null,null,null,null,null,null,null,null,null,null,null,null,null,null,{"$f":"IF(NOT(Bemerkungen!G10=0),Bemerkungen!G10,\" \")","v":" "},null,{"$f":"IF(NOT(Bemerkungen!H10=0),Bemerkungen!H10,\" \")","v":" "},null,null," "]
[null,{"$f":"IF(NOT(Bemerkungen!A11=0),Bemerkungen!A11,\" \")","v":" "},{"$f":"IF(NOT(ISBLANK(Bemerkungen!B11)),Bemerkungen!B11,\" \")","v":" "},null,null,null,null,null,null,null,null,null,null,null,null,null,null,null,null,null,null,null,null,{"$f":"IF(NOT(Bemerkungen!G11=0),Bemerkungen!G11,\" \")","v":" "},null,{"$f":"IF(NOT(Bemerkungen!H11=0),Bemerkungen!H11,\" \")","v":" "},null,null," "]
[null,{"$f":"IF(NOT(Bemerkungen!A12=0),Bemerkungen!A12,\" \")","v":" "},{"$f":"IF(NOT(ISBLANK(Bemerkungen!B12)),Bemerkungen!B12,\" \")","v":" "},null,null,null,null,null,null,null,null,null,null,null,null,null,null,null,null,null,null,null,null,{"$f":"IF(NOT(Bemerkungen!G12=0),Bemerkungen!G12,\" \")","v":" "},null,{"$f":"IF(NOT(Bemerkungen!H12=0),Bemerkungen!H12,\" \")","v":" "},null,null," "]
[null,{"$f":"IF(NOT(Bemerkungen!A13=0),Bemerkungen!A13,\" \")","v":" "},{"$f":"IF(NOT(ISBLANK(Bemerkungen!B13)),Bemerkungen!B13,\" \")","v":" "},null,null,null,null,null,null,null,null,null,null,null,null,null,null,null,null,null,null,null,null,{"$f":"IF(NOT(Bemerkungen!G13=0),Bemerkungen!G13,\" \")","v":" "},null,{"$f":"IF(NOT(Bemerkungen!H13=0),Bemerkungen!H13,\" \")","v":" "},null,null," "]
[null,{"$f":"IF(NOT(Bemerkungen!A14=0),Bemerkungen!A14,\" \")","v":" "},{"$f":"IF(NOT(ISBLANK(Bemerkungen!B14)),Bemerkungen!B14,\" \")","v":" "},null,null,null,null,null,null,null,null,null,null,null,null,null,null,null,null,null,null,null,null,{"$f":"IF(NOT(Bemerkungen!G14=0),Bemerkungen!G14,\" \")","v":" "},null,{"$f":"IF(NOT(Bemerkungen!H14=0),Bemerkungen!H14,\" \")","v":" "},null,null," "]
[null,{"$f":"IF(NOT(Bemerkungen!A15=0),Bemerkungen!A15,\" \")","v":" "},{"$f":"IF(NOT(ISBLANK(Bemerkungen!B15)),Bemerkungen!B15,\" \")","v":" "},null,null,null,null,null,null,null,null,null,null,null,null,null,null,null,null,null,null,null,null,{"$f":"IF(NOT(Bemerkungen!G15=0),Bemerkungen!G15,\" \")","v":" "},null,{"$f":"IF(NOT(Bemerkungen!H15=0),Bemerkungen!H15,\" \")","v":" "},null,null," "]
[null,{"$f":"IF(NOT(Bemerkungen!A16=0),Bemerkungen!A16,\" \")","v":" "},{"$f":"IF(NOT(ISBLANK(Bemerkungen!B16)),Bemerkungen!B16,\" \")","v":" "},null,null,null,null,null,null,null,null,null,null,null,null,null,null,null,null,null,null,null,null,{"$f":"IF(NOT(Bemerkungen!G16=0),Bemerkungen!G16,\" \")","v":" "},null,{"$f":"IF(NOT(Bemerkungen!H16=0),Bemerkungen!H16,\" \")","v":" "},null,null," "]
[null,{"$f":"IF(NOT(Bemerkungen!A17=0),Bemerkungen!A17,\" \")","v":" "},{"$f":"IF(NOT(ISBLANK(Bemerkungen!B17)),Bemerkungen!B17,\" \")","v":" "},null,null,null,null,null,null,null,null,null,null,null,null,null,null,null,null,null,null,null,null,{"$f":"IF(NOT(Bemerkungen!G17=0),Bemerkungen!G17,\" \")","v":" "},null,{"$f":"IF(NOT(Bemerkungen!H17=0),Bemerkungen!H17,\" \")","v":" "},null,null," "]
[null,{"$f":"IF(NOT(Bemerkungen!A18=0),Bemerkungen!A18,\" \")","v":" "},{"$f":"IF(NOT(ISBLANK(Bemerkungen!B18)),Bemerkungen!B18,\" \")","v":" "},null,null,null,null,null,null,null,null,null,null,null,null,null,null,null,null,null,null,null,null,{"$f":"IF(NOT(Bemerkungen!G18=0),Bemerkungen!G18,\" \")","v":" "},null,{"$f":"IF(NOT(Bemerkungen!H18=0),Bemerkungen!H18,\" \")","v":" "},null,null," "]
[null,{"$f":"IF(NOT(Bemerkungen!A19=0),Bemerkungen!A19,\" \")","v":" "},{"$f":"IF(NOT(ISBLANK(Bemerkungen!B19)),Bemerkungen!B19,\" \")","v":" "},null,null,null,null,null,null,null,null,null,null,null,null,null,null,null,null,null,null,null,null,{"$f":"IF(NOT(Bemerkungen!G19=0),Bemerkungen!G19,\" \")","v":" "},null,{"$f":"IF(NOT(Bemerkungen!H19=0),Bemerkungen!H19,\" \")","v":" "},null,null," "]
[null,{"$f":"IF(NOT(Bemerkungen!A20=0),Bemerkungen!A20,\" \")","v":" "},{"$f":"IF(NOT(ISBLANK(Bemerkungen!B20)),Bemerkungen!B20,\" \")","v":" "},null,null,null,null,null,null,null,null,null,null,null,null,null,null,null,null,null,null,null,null,{"$f":"IF(NOT(Bemerkungen!G20=0),Bemerkungen!G20,\" \")","v":" "},null,{"$f":"IF(NOT(Bemerkungen!H20=0),Bemerkungen!H20,\" \")","v":" "},null,null," "]
[null,{"$f":"IF(NOT(Bemerkungen!A21=0),Bemerkungen!A21,\" \")","v":" "},{"$f":"IF(NOT(ISBLANK(Bemerkungen!B21)),Bemerkungen!B21,\" \")","v":" "},null,null,null,null,null,null,null,null,null,null,null,null,null,null,null,null,null,null,null,null,{"$f":"IF(NOT(Bemerkungen!G21=0),Bemerkungen!G21,\" \")","v":" "},null,{"$f":"IF(NOT(Bemerkungen!H21=0),Bemerkungen!H21,\" \")","v":" "},null,null," "]
[null,{"$f":"IF(NOT(Bemerkungen!A22=0),Bemerkungen!A22,\" \")","v":" "},{"$f":"IF(NOT(ISBLANK(Bemerkungen!B22)),Bemerkungen!B22,\" \")","v":" "},null,null,null,null,null,null,null,null,null,null,null,null,null,null,null,null,null,null,null,null,{"$f":"IF(NOT(Bemerkungen!G22=0),Bemerkungen!G22,\" \")","v":" "},null,{"$f":"IF(NOT(Bemerkungen!H22=0),Bemerkungen!H22,\" \")","v":" "},null,null," "]
[null,{"$f":"IF(NOT(Bemerkungen!A23=0),Bemerkungen!A23,\" \")","v":" "},{"$f":"IF(NOT(ISBLANK(Bemerkungen!B23)),Bemerkungen!B23,\" \")","v":" "},null,null,null,null,null,null,null,null,null,null,null,null,null,null,null,null,null,null,null,null,{"$f":"IF(NOT(Bemerkungen!G23=0),Bemerkungen!G23,\" \")","v":" "},null,{"$f":"IF(NOT(Bemerkungen!H23=0),Bemerkungen!H23,\" \")","v":" "},null,null," "]
[null,{"$f":"IF(NOT(Bemerkungen!A24=0),Bemerkungen!A24,\" \")","v":" "},{"$f":"IF(NOT(ISBLANK(Bemerkungen!B24)),Bemerkungen!B24,\" \")","v":" "},null,null,null,null,null,null,null,null,null,null,null,null,null,null,null,null,null,null,null,null,{"$f":"IF(NOT(Bemerkungen!G24=0),Bemerkungen!G24,\" \")","v":" "},null,{"$f":"IF(NOT(Bemerkungen!H24=0),Bemerkungen!H24,\" \")","v":" "},null,null," "]
[null,{"$f":"IF(NOT(Bemerkungen!A25=0),Bemerkungen!A25,\" \")","v":" "},{"$f":"IF(NOT(ISBLANK(Bemerkungen!B25)),Bemerkungen!B25,\" \")","v":" "},null,null,null,null,null,null,null,null,null,null,null,null,null,null,null,null,null,null,null,null,{"$f":"IF(NOT(Bemerkungen!G25=0),Bemerkungen!G25,\" \")","v":" "},null,{"$f":"IF(NOT(Bemerkungen!H25=0),Bemerkungen!H25,\" \")","v":" "},null,null," "]
[null,{"$f":"IF(NOT(Bemerkungen!A26=0),Bemerkungen!A26,\" \")","v":" "},{"$f":"IF(NOT(ISBLANK(Bemerkungen!B26)),Bemerkungen!B26,\" \")","v":" "},null,null,null,null,null,null,null,null,null,null,null,null,null,null,null,null,null,null,null,null,{"$f":"IF(NOT(Bemerkungen!G26=0),Bemerkungen!G26,\" \")","v":" "},null,{"$f":"IF(NOT(Bemerkungen!H26=0),Bemerkungen!H26,\" \")","v":" "},null,null," "]
[null,{"$f":"IF(NOT(Bemerkungen!A27=0),Bemerkungen!A27,\" \")","v":" "},{"$f":"IF(NOT(ISBLANK(Bemerkungen!B27)),Bemerkungen!B27,\" \")","v":" "},null,null,null,null,null,null,null,null,null,null,null,null,null,null,null,null,null,null,null,null,{"$f":"IF(NOT(Bemerkungen!G27=0),Bemerkungen!G27,\" \")","v":" "},null,{"$f":"IF(NOT(Bemerkungen!H27=0),Bemerkungen!H27,\" \")","v":" "},null,null," "]
[null,{"$f":"IF(NOT(Bemerkungen!A28=0),Bemerkungen!A28,\" \")","v":" "},{"$f":"IF(NOT(ISBLANK(Bemerkungen!B28)),Bemerkungen!B28,\" \")","v":" "},null,null,null,null,null,null,null,null,null,null,null,null,null,null,null,null,null,null,null,null,{"$f":"IF(NOT(Bemerkungen!G28=0),Bemerkungen!G28,\" \")","v":" "},null,{"$f":"IF(NOT(Bemerkungen!H28=0),Bemerkungen!H28,\" \")","v":" "},null,null," "]
[null,{"$f":"IF(NOT(Bemerkungen!A29=0),Bemerkungen!A29,\" \")","v":" "},{"$f":"IF(NOT(ISBLANK(Bemerkungen!B29)),Bemerkungen!B29,\" \")","v":" "},null,null,null,null,null,null,null,null,null,null,null,null,null,null,null,null,null,null,null,null,{"$f":"IF(NOT(Bemerkungen!G29=0),Bemerkungen!G29,\" \")","v":" "},null,{"$f":"IF(NOT(Bemerkungen!H29=0),Bemerkungen!H29,\" \")","v":" "},null,null," "]
[null,{"$f":"IF(NOT(Bemerkungen!A30=0),Bemerkungen!A30,\" \")","v":" "},{"$f":"IF(NOT(ISBLANK(Bemerkungen!B30)),Bemerkungen!B30,\" \")","v":" "},null,null,null,null,null,null,null,null,null,null,null,null,null,null,null,null,null,null,null,null,{"$f":"IF(NOT(Bemerkungen!G30=0),Bemerkungen!G30,\" \")","v":" "},null,{"$f":"IF(NOT(Bemerkungen!H30=0),Bemerkungen!H30,\" \")","v":" "},null,null," "]
[null,{"$f":"IF(NOT(Bemerkungen!A31=0),Bemerkungen!A31,\" \")","v":" "},{"$f":"IF(NOT(ISBLANK(Bemerkungen!B31)),Bemerkungen!B31,\" \")","v":" "},null,null,null,null,null,null,null,null,null,null,null,null,null,null,null,null,null,null,null,null,{"$f":"IF(NOT(Bemerkungen!G31=0),Bemerkungen!G31,\" \")","v":" "},null,{"$f":"IF(NOT(Bemerkungen!H31=0),Bemerkungen!H31,\" \")","v":" "},null,null," "]
[null,{"$f":"IF(NOT(Bemerkungen!A32=0),Bemerkungen!A32,\" \")","v":" "},{"$f":"IF(NOT(ISBLANK(Bemerkungen!B32)),Bemerkungen!B32,\" \")","v":" "},null,null,null,null,null,null,null,null,null,null,null,null,null,null,null,null,null,null,null,null,{"$f":"IF(NOT(Bemerkungen!G32=0),Bemerkungen!G32,\" \")","v":" "},null,{"$f":"IF(NOT(Bemerkungen!H32=0),Bemerkungen!H32,\" \")","v":" "},null,null," "]
[null,{"$f":"IF(NOT(Bemerkungen!A33=0),Bemerkungen!A33,\" \")","v":" "},{"$f":"IF(NOT(ISBLANK(Bemerkungen!B33)),Bemerkungen!B33,\" \")","v":" "},null,null,null,null,null,null,null,null,null,null,null,null,null,null,null,null,null,null,null,null,{"$f":"IF(NOT(Bemerkungen!G33=0),Bemerkungen!G33,\" \")","v":" "},null,{"$f":"IF(NOT(Bemerkungen!H33=0),Bemerkungen!H33,\" \")","v":" "},null,null," "]
[null,{"$f":"IF(NOT(Bemerkungen!A34=0),Bemerkungen!A34,\" \")","v":" "},{"$f":"IF(NOT(ISBLANK(Bemerkungen!B34)),Bemerkungen!B34,\" \")","v":" "},null,null,null,null,null,null,null,null,null,null,null,null,null,null,null,null,null,null,null,null,{"$f":"IF(NOT(Bemerkungen!G34=0),Bemerkungen!G34,\" \")","v":" "},null,{"$f":"IF(NOT(Bemerkungen!H34=0),Bemerkungen!H34,\" \")","v":" "},null,null," "]
[null,{"$f":"IF(NOT(Bemerkungen!A35=0),Bemerkungen!A35,\" \")","v":" "},{"$f":"IF(NOT(ISBLANK(Bemerkungen!B35)),Bemerkungen!B35,\" \")","v":" "},null,null,null,null,null,null,null,null,null,null,null,null,null,null,null,null,null,null,null,null,{"$f":"IF(NOT(Bemerkungen!G35=0),Bemerkungen!G35,\" \")","v":" "},null,{"$f":"IF(NOT(Bemerkungen!H35=0),Bemerkungen!H35,\" \")","v":" "},null,null," "]
[null,{"$f":"IF(NOT(Bemerkungen!A36=0),Bemerkungen!A36,\" \")","v":" "},{"$f":"IF(NOT(ISBLANK(Bemerkungen!B36)),Bemerkungen!B36,\" \")","v":" "},null,null,null,null,null,null,null,null,null,null,null,null,null,null,null,null,null,null,null,null,{"$f":"IF(NOT(Bemerkungen!G36=0),Bemerkungen!G36,\" \")","v":" "},null,{"$f":"IF(NOT(Bemerkungen!H36=0),Bemerkungen!H36,\" \")","v":" "},null,null," "]
[null,{"$f":"IF(NOT(Bemerkungen!A37=0),Bemerkungen!A37,\" \")","v":" "},{"$f":"IF(NOT(ISBLANK(Bemerkungen!B37)),Bemerkungen!B37,\" \")","v":" "},null,null,null,null,null,null,null,null,null,null,null,null,null,null,null,null,null,null,null,null,{"$f":"IF(NOT(Bemerkungen!G37=0),Bemerkungen!G37,\" \")","v":" "},null,{"$f":"IF(NOT(Bemerkungen!H37=0),Bemerkungen!H37,\" \")","v":" "},null,null," "]
[null,{"$f":"IF(NOT(Bemerkungen!A38=0),Bemerkungen!A38,\" \")","v":" "},{"$f":"IF(NOT(ISBLANK(Bemerkungen!B38)),Bemerkungen!B38,\" \")","v":" "},null,null,null,null,null,null,null,null,null,null,null,null,null,null,null,null,null,null,null,null,{"$f":"IF(NOT(Bemerkungen!G38=0),Bemerkungen!G38,\" \")","v":" "},null,{"$f":"IF(NOT(Bemerkungen!H38=0),Bemerkungen!H38,\" \")","v":" "},null,null," "]
[null,{"$f":"IF(NOT(Bemerkungen!A39=0),Bemerkungen!A39,\" \")","v":" "},{"$f":"IF(NOT(ISBLANK(Bemerkungen!B39)),Bemerkungen!B39,\" \")","v":" "},null,null,null,null,null,null,null,null,null,null,null,null,null,null,null,null,null,null,null,null,{"$f":"IF(NOT(Bemerkungen!G39=0),Bemerkungen!G39,\" \")","v":" "},null,{"$f":"IF(NOT(Bemerkungen!H39=0),Bemerkungen!H39,\" \")","v":" "},null,null," "]
[null,{"$f":"IF(NOT(Bemerkungen!A40=0),Bemerkungen!A40,\" \")","v":" "},{"$f":"IF(NOT(ISBLANK(Bemerkungen!B40)),Bemerkungen!B40,\" \")","v":" "},null,null,null,null,null,null,null,null,null,null,null,null,null,null,null,null,null,null,null,null,{"$f":"IF(NOT(Bemerkungen!G40=0),Bemerkungen!G40,\" \")","v":" "},null,{"$f":"IF(NOT(Bemerkungen!H40=0),Bemerkungen!H40,\" \")","v":" "},null,null," "]
[null,{"$f":"IF(NOT(Bemerkungen!A41=0),Bemerkungen!A41,\" \")","v":" "},{"$f":"IF(NOT(ISBLANK(Bemerkungen!B41)),Bemerkungen!B41,\" \")","v":" "},null,null,null,null,null,null,null,null,null,null,null,null,null,null,null,null,null,null,null,null,{"$f":"IF(NOT(Bemerkungen!G41=0),Bemerkungen!G41,\" \")","v":" "},null,{"$f":"IF(NOT(Bemerkungen!H41=0),Bemerkungen!H41,\" \")","v":" "},null,null," "]
[null,{"$f":"IF(NOT(Bemerkungen!A42=0),Bemerkungen!A42,\" \")","v":" "},{"$f":"IF(NOT(ISBLANK(Bemerkungen!B42)),Bemerkungen!B42,\" \")","v":" "},null,null,null,null,null,null,null,null,null,null,null,null,null,null,null,null,null,null,null,null,{"$f":"IF(NOT(Bemerkungen!G42=0),Bemerkungen!G42,\" \")","v":" "},null,{"$f":"IF(NOT(Bemerkungen!H42=0),Bemerkungen!H42,\" \")","v":" "},null,null," "]
[null,{"$f":"IF(NOT(Bemerkungen!A43=0),Bemerkungen!A43,\" \")","v":" "},{"$f":"IF(NOT(ISBLANK(Bemerkungen!B43)),Bemerkungen!B43,\" \")","v":" "},null,null,null,null,null,null,null,null,null,null,null,null,null,null,null,null,null,null,null,null,{"$f":"IF(NOT(Bemerkungen!G43=0),Bemerkungen!G43,\" \")","v":" "},null,{"$f":"IF(NOT(Bemerkungen!H43=0),Bemerkungen!H43,\" \")","v":" "},null,null," "]
[null,{"$f":"IF(NOT(Bemerkungen!A44=0),Bemerkungen!A44,\" \")","v":" "},{"$f":"IF(NOT(ISBLANK(Bemerkungen!B44)),Bemerkungen!B44,\" \")","v":" "},null,null,null,null,null,null,null,null,null,null,null,null,null,null,null,null,null,null,null,null,{"$f":"IF(NOT(Bemerkungen!G44=0),Bemerkungen!G44,\" \")","v":" "},null,{"$f":"IF(NOT(Bemerkungen!H44=0),Bemerkungen!H44,\" \")","v":" "},null,null," "]
[null,{"$f":"IF(NOT(Bemerkungen!A45=0),Bemerkungen!A45,\" \")","v":" "},{"$f":"IF(NOT(ISBLANK(Bemerkungen!B45)),Bemerkungen!B45,\" \")","v":" "},null,null,null,null,null,null,null,null,null,null,null,null,null,null,null,null,null,null,null,null,{"$f":"IF(NOT(Bemerkungen!G45=0),Bemerkungen!G45,\" \")","v":" "},null,{"$f":"IF(NOT(Bemerkungen!H45=0),Bemerkungen!H45,\" \")","v":" "},null,null," "]
[null,{"$f":"IF(NOT(Bemerkungen!A46=0),Bemerkungen!A46,\" \")","v":" "},{"$f":"IF(NOT(ISBLANK(Bemerkungen!B46)),Bemerkungen!B46,\" \")","v":" "},null,null,null,null,null,null,null,null,null,null,null,null,null,null,null,null,null,null,null,null,{"$f":"IF(NOT(Bemerkungen!G46=0),Bemerkungen!G46,\" \")","v":" "},null,{"$f":"IF(NOT(Bemerkungen!H46=0),Bemerkungen!H46,\" \")","v":" "},null,null," "]
[null,{"$f":"IF(NOT(Bemerkungen!A47=0),Bemerkungen!A47,\" \")","v":" "},{"$f":"IF(NOT(ISBLANK(Bemerkungen!B47)),Bemerkungen!B47,\" \")","v":" "},null,null,null,null,null,null,null,null,null,null,null,null,null,null,null,null,null,null,null,null,{"$f":"IF(NOT(Bemerkungen!G47=0),Bemerkungen!G47,\" \")","v":" "},null,{"$f":"IF(NOT(Bemerkungen!H47=0),Bemerkungen!H47,\" \")","v":" "},null,null," "]
[null,{"$f":"IF(NOT(Bemerkungen!A48=0),Bemerkungen!A48,\" \")","v":" "},{"$f":"IF(NOT(ISBLANK(Bemerkungen!B48)),Bemerkungen!B48,\" \")","v":" "},null,null,null,null,null,null,null,null,null,null,null,null,null,null,null,null,null,null,null,null,{"$f":"IF(NOT(Bemerkungen!G48=0),Bemerkungen!G48,\" \")","v":" "},null,{"$f":"IF(NOT(Bemerkungen!H48=0),Bemerkungen!H48,\" \")","v":" "},null,null," "]
[null,{"$f":"IF(NOT(Bemerkungen!A49=0),Bemerkungen!A49,\" \")","v":" "},{"$f":"IF(NOT(ISBLANK(Bemerkungen!B49)),Bemerkungen!B49,\" \")","v":" "},null,null,null,null,null,null,null,null,null,null,null,null,null,null,null,null,null,null,null,null,{"$f":"IF(NOT(Bemerkungen!G49=0),Bemerkungen!G49,\" \")","v":" "},null,{"$f":"IF(NOT(Bemerkungen!H49=0),Bemerkungen!H49,\" \")","v":" "},null,null," "]
[null,{"$f":"IF(NOT(Bemerkungen!A50=0),Bemerkungen!A50,\" \")","v":" "},{"$f":"IF(NOT(ISBLANK(Bemerkungen!B50)),Bemerkungen!B50,\" \")","v":" "},null,null,null,null,null,null,null,null,null,null,null,null,null,null,null,null,null,null,null,null,{"$f":"IF(NOT(Bemerkungen!G50=0),Bemerkungen!G50,\" \")","v":" "},null,{"$f":"IF(NOT(Bemerkungen!H50=0),Bemerkungen!H50,\" \")","v":" "},null,null," "]
[null,{"$f":"IF(NOT(Bemerkungen!A51=0),Bemerkungen!A51,\" \")","v":" "},{"$f":"IF(NOT(ISBLANK(Bemerkungen!B51)),Bemerkungen!B51,\" \")","v":" "},null,null,null,null,null,null,null,null,null,null,null,null,null,null,null,null,null,null,null,null,{"$f":"IF(NOT(Bemerkungen!G51=0),Bemerkungen!G51,\" \")","v":" "},null,{"$f":"IF(NOT(Bemerkungen!H51=0),Bemerkungen!H51,\" \")","v":" "},null,null," "]
[null,{"$f":"IF(NOT(Bemerkungen!A52=0),Bemerkungen!A52,\" \")","v":" "},{"$f":"IF(NOT(ISBLANK(Bemerkungen!B52)),Bemerkungen!B52,\" \")","v":" "},null,null,null,null,null,null,null,null,null,null,null,null,null,null,null,null,null,null,null,null,{"$f":"IF(NOT(Bemerkungen!G52=0),Bemerkungen!G52,\" \")","v":" "},null,{"$f":"IF(NOT(Bemerkungen!H52=0),Bemerkungen!H52,\" \")","v":" "},null,null," "]
[null,null,"**) Die Kosten errechnen sich aus Std. x Stundensatz (10,00 € pro Std.)"]
[null,null,{"$f":"IF(NOT('Zierpflanzen und Sträucher'!A160=0),'Zierpflanzen und Sträucher'!A160,\" \")","v":" "},null,{"$f":"IF(NOT(ISBLANK('Zierpflanzen und Sträucher'!C160)),'Zierpflanzen und Sträucher'!C160,\" \")","v":" "},null,null,null,null,null,null,null,null,null,null,null,null,null,null,null,{"$f":"IF(NOT('Zierpflanzen und Sträucher'!H160=0),'Zierpflanzen und Sträucher'!H160,\" \")","v":" "},null,null,null,{"$f":"IF(NOT('Zierpflanzen und Sträucher'!I160=0),'Zierpflanzen und Sträucher'!I160,\" \")","v":" "}]
[null,null,"Zwischensumme Bemerkungen (Übertrag)",null,null,null,null,null,null,null,null,null,null,null,null,null,null,null,null,null,null,{"$f":"IF(NOT(SUM(Bemerkungen!G6:G52)=0),SUM(Bemerkungen!G6:G52),\" \")","v":" "},null,null,null,{"$f":"IF(NOT(SUM(Bemerkungen!H6:H52)=0),SUM(Bemerkungen!H6:H52),\" \")","v":" "},null,null,"€"]
[]
[]
["Schätzung",null,null,{"$f":"$I$7","v":" "},null,null,null,null,null,null,null,null,null,null,null,"Nr.",{"$f":"$W$7","v":" "},null,"Datum",null,{"$f":"IF(Festwerte!$D$18<>\"\",Festwerte!$D$18,\" \")","v":" "},null,null,null,"Seite",null,6,"von",null,9]
[]
[null,"Bemerkungen (Fortsetzung)"]
[null,"lfd.Nr.",null,null,null,null,null,null,null,null,null,null,null,null,null,null,null,null,null,null,null,null,null,null,null,"Kos-\nten **"]
[null,null,"Bezeichnung",null,null,null,null,null,null,null,null,null,null,null,null,null,null,null,null,null,null,null,null,"Std.",null,null,null,null,"€"]
[null,"---","--- Ü b e r t r a g ---",null,null,null,null,null,null,null,null,null,null,null,null,null,null,null,null,null,null,null,null,{"$f":"IF(NOT(V330=0),V330,\"---\")","v":" "},null,{"$f":"IF(NOT(Z330=0),Z330,\" \")","v":" "},null,null,{"$f":"IF(Z338<>\" \",\"€\",\" \")","v":" "}]
[null,{"$f":"IF(NOT(Bemerkungen!A53=0),Bemerkungen!A53,\" \")","v":" "},{"$f":"IF(NOT(ISBLANK(Bemerkungen!B53)),Bemerkungen!B53,\" \")","v":" "},null,null,null,null,null,null,null,null,null,null,null,null,null,null,null,null,null,null,null,null,{"$f":"IF(NOT(Bemerkungen!G53=0),Bemerkungen!G53,\" \")","v":" "},null,{"$f":"IF(NOT(Bemerkungen!H53=0),Bemerkungen!H53,\" \")","v":" "},null,null," "]
[null,{"$f":"IF(NOT(Bemerkungen!A54=0),Bemerkungen!A54,\" \")","v":" "},{"$f":"IF(NOT(ISBLANK(Bemerkungen!B54)),Bemerkungen!B54,\" \")","v":" "},null,null,null,null,null,null,null,null,null,null,null,null,null,null,null,null,null,null,null,null,{"$f":"IF(NOT(Bemerkungen!G54=0),Bemerkungen!G54,\" \")","v":" "},null,{"$f":"IF(NOT(Bemerkungen!H54=0),Bemerkungen!H54,\" \")","v":" "},null,null," "]
[null,{"$f":"IF(NOT(Bemerkungen!A55=0),Bemerkungen!A55,\" \")","v":" "},{"$f":"IF(NOT(ISBLANK(Bemerkungen!B55)),Bemerkungen!B55,\" \")","v":" "},null,null,null,null,null,null,null,null,null,null,null,null,null,null,null,null,null,null,null,null,{"$f":"IF(NOT(Bemerkungen!G55=0),Bemerkungen!G55,\" \")","v":" "},null,{"$f":"IF(NOT(Bemerkungen!H55=0),Bemerkungen!H55,\" \")","v":" "},null,null," "]
[null,{"$f":"IF(NOT(Bemerkungen!A56=0),Bemerkungen!A56,\" \")","v":" "},{"$f":"IF(NOT(ISBLANK(Bemerkungen!B56)),Bemerkungen!B56,\" \")","v":" "},null,null,null,null,null,null,null,null,null,null,null,null,null,null,null,null,null,null,null,null,{"$f":"IF(NOT(Bemerkungen!G56=0),Bemerkungen!G56,\" \")","v":" "},null,{"$f":"IF(NOT(Bemerkungen!H56=0),Bemerkungen!H56,\" \")","v":" "},null,null," "]
[null,{"$f":"IF(NOT(Bemerkungen!A57=0),Bemerkungen!A57,\" \")","v":" "},{"$f":"IF(NOT(ISBLANK(Bemerkungen!B57)),Bemerkungen!B57,\" \")","v":" "},null,null,null,null,null,null,null,null,null,null,null,null,null,null,null,null,null,null,null,null,{"$f":"IF(NOT(Bemerkungen!G57=0),Bemerkungen!G57,\" \")","v":" "},null,{"$f":"IF(NOT(Bemerkungen!H57=0),Bemerkungen!H57,\" \")","v":" "},null,null," "]
[null,{"$f":"IF(NOT(Bemerkungen!A58=0),Bemerkungen!A58,\" \")","v":" "},{"$f":"IF(NOT(ISBLANK(Bemerkungen!B58)),Bemerkungen!B58,\" \")","v":" "},null,null,null,null,null,null,null,null,null,null,null,null,null,null,null,null,null,null,null,null,{"$f":"IF(NOT(Bemerkungen!G58=0),Bemerkungen!G58,\" \")","v":" "},null,{"$f":"IF(NOT(Bemerkungen!H58=0),Bemerkungen!H58,\" \")","v":" "},null,null," "]
[null,{"$f":"IF(NOT(Bemerkungen!A59=0),Bemerkungen!A59,\" \")","v":" "},{"$f":"IF(NOT(ISBLANK(Bemerkungen!B59)),Bemerkungen!B59,\" \")","v":" "},null,null,null,null,null,null,null,null,null,null,null,null,null,null,null,null,null,null,null,null,{"$f":"IF(NOT(Bemerkungen!G59=0),Bemerkungen!G59,\" \")","v":" "},null,{"$f":"IF(NOT(Bemerkungen!H59=0),Bemerkungen!H59,\" \")","v":" "},null,null," "]
[null,{"$f":"IF(NOT(Bemerkungen!A60=0),Bemerkungen!A60,\" \")","v":" "},{"$f":"IF(NOT(ISBLANK(Bemerkungen!B60)),Bemerkungen!B60,\" \")","v":" "},null,null,null,null,null,null,null,null,null,null,null,null,null,null,null,null,null,null,null,null,{"$f":"IF(NOT(Bemerkungen!G60=0),Bemerkungen!G60,\" \")","v":" "},null,{"$f":"IF(NOT(Bemerkungen!H60=0),Bemerkungen!H60,\" \")","v":" "},null,null," "]
[null,{"$f":"IF(NOT(Bemerkungen!A61=0),Bemerkungen!A61,\" \")","v":" "},{"$f":"IF(NOT(ISBLANK(Bemerkungen!B61)),Bemerkungen!B61,\" \")","v":" "},null,null,null,null,null,null,null,null,null,null,null,null,null,null,null,null,null,null,null,null,{"$f":"IF(NOT(Bemerkungen!G61=0),Bemerkungen!G61,\" \")","v":" "},null,{"$f":"IF(NOT(Bemerkungen!H61=0),Bemerkungen!H61,\" \")","v":" "},null,null," "]
[null,{"$f":"IF(NOT(Bemerkungen!A62=0),Bemerkungen!A62,\" \")","v":" "},{"$f":"IF(NOT(ISBLANK(Bemerkungen!B62)),Bemerkungen!B62,\" \")","v":" "},null,null,null,null,null,null,null,null,null,null,null,null,null,null,null,null,null,null,null,null,{"$f":"IF(NOT(Bemerkungen!G62=0),Bemerkungen!G62,\" \")","v":" "},null,{"$f":"IF(NOT(Bemerkungen!H62=0),Bemerkungen!H62,\" \")","v":" "},null,null," "]
[null,{"$f":"IF(NOT(Bemerkungen!A63=0),Bemerkungen!A63,\" \")","v":" "},{"$f":"IF(NOT(ISBLANK(Bemerkungen!B63)),Bemerkungen!B63,\" \")","v":" "},null,null,null,null,null,null,null,null,null,null,null,null,null,null,null,null,null,null,null,null,{"$f":"IF(NOT(Bemerkungen!G63=0),Bemerkungen!G63,\" \")","v":" "},null,{"$f":"IF(NOT(Bemerkungen!H63=0),Bemerkungen!H63,\" \")","v":" "},null,null," "]
[null,{"$f":"IF(NOT(Bemerkungen!A64=0),Bemerkungen!A64,\" \")","v":" "},{"$f":"IF(NOT(ISBLANK(Bemerkungen!B64)),Bemerkungen!B64,\" \")","v":" "},null,null,null,null,null,null,null,null,null,null,null,null,null,null,null,null,null,null,null,null,{"$f":"IF(NOT(Bemerkungen!G64=0),Bemerkungen!G64,\" \")","v":" "},null,{"$f":"IF(NOT(Bemerkungen!H64=0),Bemerkungen!H64,\" \")","v":" "},null,null," "]
[null,{"$f":"IF(NOT(Bemerkungen!A65=0),Bemerkungen!A65,\" \")","v":" "},{"$f":"IF(NOT(ISBLANK(Bemerkungen!B65)),Bemerkungen!B65,\" \")","v":" "},null,null,null,null,null,null,null,null,null,null,null,null,null,null,null,null,null,null,null,null,{"$f":"IF(NOT(Bemerkungen!G65=0),Bemerkungen!G65,\" \")","v":" "},null,{"$f":"IF(NOT(Bemerkungen!H65=0),Bemerkungen!H65,\" \")","v":" "},null,null," "]
[null,{"$f":"IF(NOT(Bemerkungen!A66=0),Bemerkungen!A66,\" \")","v":" "},{"$f":"IF(NOT(ISBLANK(Bemerkungen!B66)),Bemerkungen!B66,\" \")","v":" "},null,null,null,null,null,null,null,null,null,null,null,null,null,null,null,null,null,null,null,null,{"$f":"IF(NOT(Bemerkungen!G66=0),Bemerkungen!G66,\" \")","v":" "},null,{"$f":"IF(NOT(Bemerkungen!H66=0),Bemerkungen!H66,\" \")","v":" "},null,null," "]
[null,{"$f":"IF(NOT(Bemerkungen!A67=0),Bemerkungen!A67,\" \")","v":" "},{"$f":"IF(NOT(ISBLANK(Bemerkungen!B67)),Bemerkungen!B67,\" \")","v":" "},null,null,null,null,null,null,null,null,null,null,null,null,null,null,null,null,null,null,null,null,{"$f":"IF(NOT(Bemerkungen!G67=0),Bemerkungen!G67,\" \")","v":" "},null,{"$f":"IF(NOT(Bemerkungen!H67=0),Bemerkungen!H67,\" \")","v":" "},null,null," "]
[null,{"$f":"IF(NOT(Bemerkungen!A68=0),Bemerkungen!A68,\" \")","v":" "},{"$f":"IF(NOT(ISBLANK(Bemerkungen!B68)),Bemerkungen!B68,\" \")","v":" "},null,null,null,null,null,null,null,null,null,null,null,null,null,null,null,null,null,null,null,null,{"$f":"IF(NOT(Bemerkungen!G68=0),Bemerkungen!G68,\" \")","v":" "},null,{"$f":"IF(NOT(Bemerkungen!H68=0),Bemerkungen!H68,\" \")","v":" "},null,null," "]
[null,{"$f":"IF(NOT(Bemerkungen!A69=0),Bemerkungen!A69,\" \")","v":" "},{"$f":"IF(NOT(ISBLANK(Bemerkungen!B69)),Bemerkungen!B69,\" \")","v":" "},null,null,null,null,null,null,null,null,null,null,null,null,null,null,null,null,null,null,null,null,{"$f":"IF(NOT(Bemerkungen!G69=0),Bemerkungen!G69,\" \")","v":" "},null,{"$f":"IF(NOT(Bemerkungen!H69=0),Bemerkungen!H69,\" \")","v":" "},null,null," "]
[null,{"$f":"IF(NOT(Bemerkungen!A70=0),Bemerkungen!A70,\" \")","v":" "},{"$f":"IF(NOT(ISBLANK(Bemerkungen!B70)),Bemerkungen!B70,\" \")","v":" "},null,null,null,null,null,null,null,null,null,null,null,null,null,null,null,null,null,null,null,null,{"$f":"IF(NOT(Bemerkungen!G70=0),Bemerkungen!G70,\" \")","v":" "},null,{"$f":"IF(NOT(Bemerkungen!H70=0),Bemerkungen!H70,\" \")","v":" "},null,null," "]
[null,{"$f":"IF(NOT(Bemerkungen!A71=0),Bemerkungen!A71,\" \")","v":" "},{"$f":"IF(NOT(ISBLANK(Bemerkungen!B71)),Bemerkungen!B71,\" \")","v":" "},null,null,null,null,null,null,null,null,null,null,null,null,null,null,null,null,null,null,null,null,{"$f":"IF(NOT(Bemerkungen!G71=0),Bemerkungen!G71,\" \")","v":" "},null,{"$f":"IF(NOT(Bemerkungen!H71=0),Bemerkungen!H71,\" \")","v":" "},null,null," "]
[null,{"$f":"IF(NOT(Bemerkungen!A72=0),Bemerkungen!A72,\" \")","v":" "},{"$f":"IF(NOT(ISBLANK(Bemerkungen!B72)),Bemerkungen!B72,\" \")","v":" "},null,null,null,null,null,null,null,null,null,null,null,null,null,null,null,null,null,null,null,null,{"$f":"IF(NOT(Bemerkungen!G72=0),Bemerkungen!G72,\" \")","v":" "},null,{"$f":"IF(NOT(Bemerkungen!H72=0),Bemerkungen!H72,\" \")","v":" "},null,null," "]
[null,{"$f":"IF(NOT(Bemerkungen!A73=0),Bemerkungen!A73,\" \")","v":" "},{"$f":"IF(NOT(ISBLANK(Bemerkungen!B73)),Bemerkungen!B73,\" \")","v":" "},null,null,null,null,null,null,null,null,null,null,null,null,null,null,null,null,null,null,null,null,{"$f":"IF(NOT(Bemerkungen!G73=0),Bemerkungen!G73,\" \")","v":" "},null,{"$f":"IF(NOT(Bemerkungen!H73=0),Bemerkungen!H73,\" \")","v":" "},null,null," "]
[null,{"$f":"IF(NOT(Bemerkungen!A74=0),Bemerkungen!A74,\" \")","v":" "},{"$f":"IF(NOT(ISBLANK(Bemerkungen!B74)),Bemerkungen!B74,\" \")","v":" "},null,null,null,null,null,null,null,null,null,null,null,null,null,null,null,null,null,null,null,null,{"$f":"IF(NOT(Bemerkungen!G74=0),Bemerkungen!G74,\" \")","v":" "},null,{"$f":"IF(NOT(Bemerkungen!H74=0),Bemerkungen!H74,\" \")","v":" "},null,null," "]
[]
[null,null,"**) Die Kosten errechnen sich aus Std. x Stundensatz (10,00 € pro Std)"]
[]
[null,null,"Kosten für die Beseitigung der vorstehend aufgeführten Mängel",null,null,null,null,null,null,null,null,null,null,null,null,null,null,null,null,null,null,null,null,null,{"$f":"IF(NOT(Bemerkungen!H76=0),Bemerkungen!H76,\"---\")","v":"---"},null,null,null,"€"]
[]
[]
[null,null,"Entsorgungskosten"]
[]
[null,null,"Container",null,null,null,null,null,null,null,null,null,null,null,"Anzahl",null,null,{"$f":"IF(NOT(Bemerkungen!E80=0),Bemerkungen!E80,\" \")","v":" "},null,null,null,"Preis",null,null,{"$f":"IF(NOT(Bemerkungen!H80=0),Bemerkungen!H80,\" \")","v":" "},null,null,null,"€"]
[]
[null,null,"Deponiegebühren",null,null,null,null,null,null,"Bauschutt",null,null,null,null,null,null,null,null,null,null,null,null,null,null,{"$f":"IF(NOT(Bemerkungen!H82=0),Bemerkungen!H82,\" \")","v":" "},null,null,null,"€"]
[null,null,null,null,null,null,null,null,null,"Baustellenabfälle",null,null,null,null,null,null,null,null,null,null,null,null,null,null,{"$f":"IF(NOT(Bemerkungen!H83=0),Bemerkungen!H83,\" \")","v":" "},null,null,null,"€"]
[null,null,null,null,null,null,null,null,null,"Baumschnitt / Strauchwerk",null,null,null,null,null,null,null,null,null,null,null,null,null,null,{"$f":"IF(NOT(Bemerkungen!H84=0),Bemerkungen!H84,\" \")","v":" "},null,null,null,"€"]
[]
[null,null,"Sondermüll / Bemerkungen:"]
[]
[null,null,{"$f":"IF(Bemerkungen!B86=0,\"\",Bemerkungen!B86)","v":""}]
[null,null,{"$f":"IF(Bemerkungen!B87=0,\"\",Bemerkungen!B87)","v":""}]
[null,null,{"$f":"IF(Bemerkungen!B88=0,\"\",Bemerkungen!B88)","v":""}]
[null,null,{"$f":"IF(Bemerkungen!B89=0,\"\",Bemerkungen!B89)","v":""}]
[null,null,{"$f":"IF(Bemerkungen!B90=0,\"\",Bemerkungen!B90)","v":""}]
[null,null,{"$f":"IF(Bemerkungen!B91=0,\"\",Bemerkungen!B91)","v":""}]
[null,null,{"$f":"IF(Bemerkungen!B92=0,\"\",Bemerkungen!B92)","v":""}]
[]
[null,null,"Summe Entsorgungskosten",null,null,null,null,null,null,null,null,null,null,null,null,null,null,null,null,null,null,null,null,null,{"$f":"IF(NOT(Bemerkungen!H94=0),Bemerkungen!H94,\" \")","v":" "},null,null,null,"€"]
[]
[null,null,"Summe Bemerkungen",null,null,null,null,null,null,null,null,null,null,null,null,null,null,null,null,null,null,null,null,null,{"$f":"IF(NOT(Bemerkungen!H4=0),Bemerkungen!H4,\" \")","v":" "},null,null,null,"€"]
[]
[]
["Schätzung",null,null,{"$f":"$I$7","v":" "},null,null,null,null,null,null,null,null,null,null,null,"Nr.",{"$f":"$W$7","v":" "},null,"Datum",null,{"$f":"IF(Festwerte!$D$18<>\"\",Festwerte!$D$18,\" \")","v":" "},null,null,null,"Seite",null,7,"von",null,9]
["7.","Skizze (vertragswidrige Anpflanzungen / Bebauung) nicht maßstabsgerecht"]
[null,"Nachfolgende Zahlen beziehen sich auf die laufende Nummer in der ersten Spalte unter \"6. Bemerkungen\":"]
[]
[]
[]
[]
[]
[]
[]
[]
[]
[]
[]
[]
[]
[]
[]
[]
[]
[]
[]
[]
[]
[]
[]
[]
[]
[]
[]
[]
[]
[]
[]
[]
[]
[]
[]
[]
[]
[]
[]
[]
[]
[]
[]
[]
[]
[]
[]
[]
[]
[]
[]
[]
[]
["Schätzung",null,null,{"$f":"$I$7","v":" "},null,null,null,null,null,null,null,null,null,null,null,"Nr.",{"$f":"$W$7","v":" "},null,"Datum",null,{"$f":"IF(Festwerte!$D$18<>\"\",Festwerte!$D$18,\" \")","v":" "},null,null,null,"Seite",null,8,"von",null,9]
[]
["8.","Sonstiges"]
[]
[null,null,"Ein vorhandener Dachraum darf nicht als Schlafstätte benutzt werden."]
[]
[null,null,"Chemikalientoiletten sowie Abwasserablauf aus Spüle und Waschbecken ins Erdreich sind nicht zulässig."]
[]
[null,null,"Zu beseitigende Bäume und Sträucher sind einschließlich Wurzelwerk zu entfernen."]
[]
[null,null,"Gemäß Pachtvertrag muss der Garten bei der Beendigung des Pachtverhältnisses in dem Zustand zurückgegeben werden, der sich aus der fortlaufenden Bewirtschaftung im Sinne der Gartenordnung ergibt. Verfallene sowie das Landschaftsbild verunzierende Baulichkeiten, überzählige bzw. kranke Bäume, sind von dem abgehenden Pächter zu beseitigen."]
[]
[]
[null,null,{"$f":"IF(NOT(ISBLANK(Zusatztext!C5)),Zusatztext!C5,\" \")","v":"Hinweis zu den Entsorgungskosten:"}]
[null,null,{"$f":"IF(NOT(ISBLANK(Zusatztext!C6)),Zusatztext!C6,\" \")","v":"Werden die festgestellten Mängel  vom abgehenden Pächter nicht oder nicht vollständig beseitigt,"}]
[null,null,{"$f":"IF(NOT(ISBLANK(Zusatztext!C7)),Zusatztext!C7,\" \")","v":"werden die dafür in der Wertabschätzung aufgeführten Kosten von der Schätzsumme abgezogen."}]
[null,null,{"$f":"IF(NOT(ISBLANK(Zusatztext!C8)),Zusatztext!C8,\" \")","v":"Ein die Schätzsumme übersteigender Betrag ist beim Verpächter zu hinterlegen."}]
[null,null,{"$f":"IF(NOT(ISBLANK(Zusatztext!C9)),Zusatztext!C9,\" \")","v":"Bestandteil der Kosten sind Entsorgungskosten, in der Regel Kosten für Container oder"}]
[null,null,{"$f":"IF(NOT(ISBLANK(Zusatztext!C10)),Zusatztext!C10,\" \")","v":"BigBags und Deponiekosten. Diese können nur geschätzt werden."}]
[null,null,{"$f":"IF(NOT(ISBLANK(Zusatztext!C11)),Zusatztext!C11,\" \")","v":"Nur nachgewiesene Entsorgungskosten werden bis maximal dem auf Seite 7 dieser Wert-"}]
[null,null,{"$f":"IF(NOT(ISBLANK(Zusatztext!C12)),Zusatztext!C12,\" \")","v":"abschätzung unter Summe Entsorgungskosten genannten Betrag erstattet."}]
[null,null,{"$f":"IF(NOT(ISBLANK(Zusatztext!C13)),Zusatztext!C13,\" \")","v":"Die über diesen Betrag hinausgehenden Entsorgungskosten sind vom Nachpächter zu tragen."}]
[null,null,{"$f":"IF(NOT(ISBLANK(Zusatztext!C14)),Zusatztext!C14,\" \")","v":" "}]
[null,null,{"$f":"IF(NOT(ISBLANK(Zusatztext!C15)),Zusatztext!C15,\" \")","v":" "}]
[null,null,{"$f":"IF(NOT(ISBLANK(Zusatztext!C16)),Zusatztext!C16,\" \")","v":" "}]
[null,null,{"$f":"IF(NOT(ISBLANK(Zusatztext!C17)),Zusatztext!C17,\" \")","v":" "}]
[null,null,{"$f":"IF(NOT(ISBLANK(Zusatztext!C18)),Zusatztext!C18,\" \")","v":" "}]
[null,null,{"$f":"IF(NOT(ISBLANK(Zusatztext!C19)),Zusatztext!C19,\" \")","v":" "}]
[null,null,{"$f":"IF(NOT(ISBLANK(Zusatztext!C20)),Zusatztext!C20,\" \")","v":" "}]
[null,null,{"$f":"IF(NOT(ISBLANK(Zusatztext!C21)),Zusatztext!C21,\" \")","v":" "}]
[null,null,{"$f":"IF(NOT(ISBLANK(Zusatztext!C22)),Zusatztext!C22,\" \")","v":" "}]
[]
[null,null,"Wertabschätzung ausgehändigt / versandt am:"]
[]
[null,null,null,null,null,null,null,null,null,null,null,null,null,null,null,null,null,null,null,null,null,null,null,null,null,null,null,1]
[null,null,"Wertabschätzung durchgeführt",null,null,null,null,null,null,null,null,null,null,null,null,{"$f":"IF(Auftraggeber=2,\"Die Schätzung wurde beauftragt vom\",\"\")","v":""}]
[null,null,null,null,null,null,null,null,null,null,null,null,null,null,null,null,null,null,null,null,null,null,null,null,null,null,null,1]
[null,null,"am:",null,{"$f":"IF(Festwerte!$D$18<>\"\",Festwerte!$D$18,\" \")","v":" "}]
[]
[null,null,"Schätzkommission",null,null,null,null,null,null,null,null,null,null,null,null,{"$f":"IF(Auftraggeber=1,I4,\"Landesverband der Gartenfreunde\")","v":" "}]
[null,null,null,null,null,null,null,null,null,null,null,null,null,null,null,{"$f":"IF(Auftraggeber=1,I5,\"Bremen e. V.\")","v":" "}]
[]
[]
[]
[null,null,{"$f":"IF(Festwerte!D20=0,\"Schätzer/in 1\",Festwerte!D20)","v":"Schätzer/in 1"},null,null,null,null,null,null,null,null,null,null,null,null,null,null,{"$f":"IF(Auftraggeber=1,IF(Festwerte!D23=0,\"Vorsitzende / r\",Festwerte!D23),\"\")","v":"Vorsitzende / r"}]
[null,null,{"$f":"IF(C490=\"Schätzer/in 1\",\"\",\"(Schätzer/in 1)\")","v":""},null,null,null,null,null,null,null,null,null,null,null,null,null,null,{"$f":"IF(Auftraggeber=1,IF(R490=\"Vorsitzende / r\",\"\",\"(Vorsitzende / r)\"),\"\")","v":""}]
[]
[]
[null,null,{"$f":"IF(Festwerte!D21=0,\"Schätzer/in 2\",Festwerte!D21)","v":"Schätzer/in 2"},null,null,null,null,null,null,null,null,null,null,null,null,null,null,{"$f":"IF(Auftraggeber=1,IF(Festwerte!D24=0,\"Kassierer / in\",Festwerte!D24),\"\")","v":"Kassierer / in"}]
[null,null,{"$f":"IF(C494=\"Schätzer/in 2\",\"\",\"(Schätzer/in 2)\")","v":""},null,null,null,null,null,null,null,null,null,null,null,null,null,null,{"$f":"IF(Auftraggeber=1,IF(R494=\"Kassierer / in\",\"\",\"(Kassierer / in)\"),\"\")","v":""}]
[]
[]
["Schätzung",null,null,{"$f":"$I$7","v":" "},null,null,null,null,null,null,null,null,null,null,null,"Nr.",{"$f":"$W$7","v":" "},null,"Datum",null,{"$f":"IF(Festwerte!$D$18<>\"\",Festwerte!$D$18,\" \")","v":" "},null,null,null,"Seite",null,9,"von",null,9]

{"sheet":"Mängelliste","index":13,"n_rows":210,"n_cols":31,"rows_kept":210,"cut":false,"hidden":false,"merged":[[143,18,143,20],[143,25,143,28],[145,25,145,28],[147,25,147,28],[149,25,149,28],[138,3,138,23],[140,3,140,29],[132,18,132,20],[132,25,132,28],[135,25,135,28],[136,10,136,24],[105,26,105,28],[106,26,106,28],[107,26,107,28],[108,26,108,28],[111,26,111,28],[109,26,109,28],[110,26,110,28],[111,24,111,25],[138,25,138,28],[136,25,136,28],[125,24,125,25],[122,26,122,28],[123,26,123,28],[127,2,127,30],[129,3,129,29],[125,3,125,23],[124,3,124,23],[124,24,124,25],[125,26,125,28],[122,24,122,25],[74,24,74,25],[72,26,72,28],[72,24,72,25],[71,26,71,28],[71,3,71,23],[71,24,71,25],[87,26,87,28],[121,3,121,23],[98,1,98,30],[99,17,99,18],[95,3,95,29],[115,24,115,25],[117,24,117,25],[118,24,118,25],[119,24,119,25],[120,24,120,25],[96,3,96,20],[94,3,94,23],[94,24,94,25],[100,2,100,30],[116,26,116,28],[113,26,113,28],[112,26,112,28],[114,26,114,28],[99,28,99,29],[99,19,99,20],[91,26,91,28],[91,3,91,23],[94,26,94,28],[92,26,92,28],[93,24,93,25],[91,24,91,25],[93,3,93,23],[90,26,90,28],[88,26,88,28],[93,26,93,28],[86,26,86,28],[86,3,86,23],[86,24,86,25],[85,26,85,28],[85,3,85,23],[85,24,85,25],[88,3,88,23],[88,24,88,25],[90,3,90,23],[90,24,90,25],[89,26,89,28],[89,3,89,23],[89,24,89,25],[84,3,84,23],[84,24,84,25],[83,26,83,28],[83,3,83,23],[83,24,83,25],[81,26,81,28],[82,26,82,28],[82,3,82,23],[82,24,82,25],[84,26,84,28],[79,26,79,28],[76,26,76,28],[76,3,76,23],[70,26,70,28],[70,3,70,23],[70,24,70,25],[76,24,76,25],[78,26,78,28],[77,26,77,28],[77,24,77,25],[73,26,73,28],[73,3,73,23],[73,24,73,25],[78,3,78,23],[78,24,78,25],[79,3,79,23],[79,24,79,25],[72,3,72,23],[77,3,77,23],[75,26,75,28],[75,3,75,23],[75,24,75,25],[74,26,74,28],[74,3,74,23],[67,26,67,28],[67,3,67,23],[67,24,67,25],[66,26,66,28],[66,3,66,23],[66,24,66,25],[69,26,69,28],[69,3,69,23],[69,24,69,25],[68,26,68,28],[68,3,68,23],[68,24,68,25],[63,26,63,28],[63,3,63,23],[63,24,63,25],[62,26,62,28],[62,3,62,23],[62,24,62,25],[65,26,65,28],[65,3,65,23],[65,24,65,25],[64,26,64,28],[64,3,64,23],[64,24,64,25],[59,26,59,28],[59,3,59,23],[59,24,59,25],[58,26,58,28],[58,3,58,23],[58,24,58,25],[61,26,61,28],[61,3,61,23],[61,24,61,25],[60,26,60,28],[60,3,60,23],[60,24,60,25],[57,26,57,28],[57,24,57,25],[57,3,57,23],[55,26,55,28],[55,24,55,25],[53,3,53,23],[54,3,54,23],[56,26,56,28],[45,2,45,30],[52,24,52,25],[51,26,51,28],[50,26,50,28],[54,26,54,28],[55,3,55,23],[56,24,56,25],[49,24,49,25],[3,2,3,8],[6,2,6,8],[3,9,3,30],[4,9,4,30],[6,9,6,21],[6,23,6,24],[6,27,6,29],[53,26,53,28],[53,24,53,25],[8,2,8,8],[10,2,10,8],[6,25,6,26],[10,10,10,29],[27,24,27,28],[40,1,40,30],[39,1,39,30],[49,26,49,28],[48,26,48,28],[11,9,11,30],[15,24,15,28],[17,24,17,28],[24,24,24,28],[13,2,13,29],[15,3,15,16],[209,25,209,26],[209,28,209,29],[153,1,153,30],[154,17,154,18],[154,21,154,24],[154,1,154,3],[209,1,209,3],[113,24,113,25],[115,26,115,28],[121,24,121,25],[116,24,116,25],[154,25,154,26],[154,28,154,29],[154,19,154,20],[154,4,154,15],[114,24,114,25],[123,24,123,25],[124,26,124,28],[122,3,122,23],[123,3,123,23],[121,26,121,28],[118,3,118,23],[117,3,117,23],[151,25,151,28],[17,3,17,16],[112,3,112,23],[119,26,119,28],[54,24,54,25],[115,3,115,23],[120,26,120,28],[101,26,102,28],[56,3,56,23],[80,24,80,25],[87,24,87,25],[87,3,87,23],[51,3,51,23],[92,24,92,25],[104,26,104,28],[105,24,105,25],[99,21,99,24],[103,26,103,28],[109,3,109,23],[110,3,110,23],[110,24,110,25],[104,24,104,25],[104,3,104,23],[117,26,117,28],[118,26,118,28],[103,24,103,25],[0,1,1,30],[47,24,47,25],[119,3,119,23],[120,3,120,23],[12,2,12,8],[12,9,12,30],[105,3,105,23],[106,3,106,23],[112,24,112,25],[113,3,113,23],[43,1,43,30],[46,2,47,2],[47,3,47,23],[52,3,52,23],[48,3,48,23],[50,3,50,23],[50,24,50,25],[46,26,47,28],[51,24,51,25],[52,26,52,28],[107,3,107,23],[48,24,48,25],[49,3,49,23],[80,3,80,23],[209,17,209,18],[209,21,209,24],[209,4,209,15],[209,19,209,20],[155,2,155,30],[134,25,134,28],[114,3,114,23],[108,3,108,23],[116,3,116,23],[92,3,92,23],[101,2,102,2],[106,24,106,25],[107,24,107,25],[108,24,108,25],[99,4,99,15],[111,3,111,23],[102,3,102,23],[99,1,99,3],[109,24,109,25],[99,25,99,26],[80,26,80,28],[81,3,81,23],[81,24,81,25]]}
[null,"Kontrolle der Mängelbeseitigung und des Pflegezustands"]
[]
[]
[null,null,"Kleingärtnerverein:",null,null,null,null,null,null,{"$f":"IF(NOT(ISBLANK(Festwerte!D6)),Festwerte!D6,\" \")","v":" "}]
[null,null,null,null,null,null,null,null,null,{"$f":"IF(NOT(ISBLANK(Festwerte!D7)),Festwerte!D7,\" \")","v":" "}]
[]
[null,null,"Kleingarten, Weg:",null,null,null,null,null,null,{"$f":"IF(NOT(ISBLANK(Festwerte!D9)),Festwerte!D9,\" \")","v":" "},null,null,null,null,null,null,null,null,null,null,null,null,"Nr.",{"$f":"IF(NOT(ISBLANK(Festwerte!I9)),Festwerte!I9,\" \")","v":" "}]
[]
[null,null,"Pächter:"]
[]
[null,null,"Anschrift:"]
[]
[null,null,"Datum der Schätzung:",null,null,null,null,null,null,{"$f":"Schätzdatum","v":0}]
[]
[]
[]
[null,null,"Ergebnis der Kontrolle:"]
[]
[]
[null,null,"Alle Mängelpunkte erledigt",null,null,null,null,null,null,null,null,null,null,null,null,"ja",null,null,null,null,"nein"]
[]
[]
[null,null,"Anzahl der verbleibenden Mängelpunkte"]
[]
[null,null,"Verbleibende Rest-Stunden"]
[]
[]
[]
[null,null,"Auszahlung Mängelhinterlegung?",null,null,null,null,null,null,null,null,null,null,null,null,"ja",null,null,null,"teilweise",null,null,null,null,null,"nein"]
[]
[]
[null,null,"Pflegezustand in Ordnung?",null,null,null,null,null,null,null,null,null,null,null,null,"ja",null,null,null,null,"nein"]
[]
[null,null,"Grundstücksgrenzen sauber?",null,null,null,null,null,null,null,null,null,null,null,null,"ja",null,null,null,null,"nein"]
[]
[null,null,"Hecke geschnitten?",null,null,null,null,null,null,null,null,null,null,null,null,"ja",null,null,null,null,"nein"]
[]
[null,null,"Name/Gartennummer vorhanden?",null,null,null,null,null,null,null,null,null,null,null,null,"ja",null,null,null,null,"nein"]
[]
[]
[]
[null,null,"Datum:",null,null,null,null,null,null,null,null,null,null,null,"Unterschrift:"]
[]
[]
[]
[null,null,"Liste der vorhandenen Mängel"]
[null,null,"lfd.\nNr.",null,null,null,null,null,null,null,null,null,null,null,null,null,null,null,null,null,null,null,null,null,null,null,"Rest\nStd.",null,null,"erle-"]
[null,null,null,"Bezeichnung",null,null,null,null,null,null,null,null,null,null,null,null,null,null,null,null,null,null,null,null,"Std.",null,null,null,null,"digt"]
[null,null,{"$f":"IF(NOT(Bemerkungen!A6=0),Bemerkungen!A6,\" \")","v":" "},{"$f":"IF(NOT(ISBLANK(Bemerkungen!B6)),Bemerkungen!B6,\" \")","v":" "},null,null,null,null,null,null,null,null,null,null,null,null,null,null,null,null,null,null,null,null,{"$f":"IF(NOT(Bemerkungen!G6=0),Bemerkungen!G6,\" \")","v":" "}]
[null,null,{"$f":"IF(NOT(Bemerkungen!A7=0),Bemerkungen!A7,\" \")","v":" "},{"$f":"IF(NOT(ISBLANK(Bemerkungen!B7)),Bemerkungen!B7,\" \")","v":" "},null,null,null,null,null,null,null,null,null,null,null,null,null,null,null,null,null,null,null,null,{"$f":"IF(NOT(Bemerkungen!G7=0),Bemerkungen!G7,\" \")","v":" "}]
[null,null,{"$f":"IF(NOT(Bemerkungen!A8=0),Bemerkungen!A8,\" \")","v":" "},{"$f":"IF(NOT(ISBLANK(Bemerkungen!B8)),Bemerkungen!B8,\" \")","v":" "},null,null,null,null,null,null,null,null,null,null,null,null,null,null,null,null,null,null,null,null,{"$f":"IF(NOT(Bemerkungen!G8=0),Bemerkungen!G8,\" \")","v":" "}]
[null,null,{"$f":"IF(NOT(Bemerkungen!A9=0),Bemerkungen!A9,\" \")","v":" "},{"$f":"IF(NOT(ISBLANK(Bemerkungen!B9)),Bemerkungen!B9,\" \")","v":" "},null,null,null,null,null,null,null,null,null,null,null,null,null,null,null,null,null,null,null,null,{"$f":"IF(NOT(Bemerkungen!G9=0),Bemerkungen!G9,\" \")","v":" "}]
[null,null,{"$f":"IF(NOT(Bemerkungen!A10=0),Bemerkungen!A10,\" \")","v":" "},{"$f":"IF(NOT(ISBLANK(Bemerkungen!B10)),Bemerkungen!B10,\" \")","v":" "},null,null,null,null,null,null,null,null,null,null,null,null,null,null,null,null,null,null,null,null,{"$f":"IF(NOT(Bemerkungen!G10=0),Bemerkungen!G10,\" \")","v":" "}]
[null,null,{"$f":"IF(NOT(Bemerkungen!A11=0),Bemerkungen!A11,\" \")","v":" "},{"$f":"IF(NOT(ISBLANK(Bemerkungen!B11)),Bemerkungen!B11,\" \")","v":" "},null,null,null,null,null,null,null,null,null,null,null,null,null,null,null,null,null,null,null,null,{"$f":"IF(NOT(Bemerkungen!G11=0),Bemerkungen!G11,\" \")","v":" "}]
[null,null,{"$f":"IF(NOT(Bemerkungen!A12=0),Bemerkungen!A12,\" \")","v":" "},{"$f":"IF(NOT(ISBLANK(Bemerkungen!B12)),Bemerkungen!B12,\" \")","v":" "},null,null,null,null,null,null,null,null,null,null,null,null,null,null,null,null,null,null,null,null,{"$f":"IF(NOT(Bemerkungen!G12=0),Bemerkungen!G12,\" \")","v":" "}]
[null,null,{"$f":"IF(NOT(Bemerkungen!A13=0),Bemerkungen!A13,\" \")","v":" "},{"$f":"IF(NOT(ISBLANK(Bemerkungen!B13)),Bemerkungen!B13,\" \")","v":" "},null,null,null,null,null,null,null,null,null,null,null,null,null,null,null,null,null,null,null,null,{"$f":"IF(NOT(Bemerkungen!G13=0),Bemerkungen!G13,\" \")","v":" "}]
[null,null,{"$f":"IF(NOT(Bemerkungen!A14=0),Bemerkungen!A14,\" \")","v":" "},{"$f":"IF(NOT(ISBLANK(Bemerkungen!B14)),Bemerkungen!B14,\" \")","v":" "},null,null,null,null,null,null,null,null,null,null,null,null,null,null,null,null,null,null,null,null,{"$f":"IF(NOT(Bemerkungen!G14=0),Bemerkungen!G14,\" \")","v":" "}]
[null,null,{"$f":"IF(NOT(Bemerkungen!A15=0),Bemerkungen!A15,\" \")","v":" "},{"$f":"IF(NOT(ISBLANK(Bemerkungen!B15)),Bemerkungen!B15,\" \")","v":" "},null,null,null,null,null,null,null,null,null,null,null,null,null,null,null,null,null,null,null,null,{"$f":"IF(NOT(Bemerkungen!G15=0),Bemerkungen!G15,\" \")","v":" "}]
[null,null,{"$f":"IF(NOT(Bemerkungen!A16=0),Bemerkungen!A16,\" \")","v":" "},{"$f":"IF(NOT(ISBLANK(Bemerkungen!B16)),Bemerkungen!B16,\" \")","v":" "},null,null,null,null,null,null,null,null,null,null,null,null,null,null,null,null,null,null,null,null,{"$f":"IF(NOT(Bemerkungen!G16=0),Bemerkungen!G16,\" \")","v":" "}]
[null,null,{"$f":"IF(NOT(Bemerkungen!A17=0),Bemerkungen!A17,\" \")","v":" "},{"$f":"IF(NOT(ISBLANK(Bemerkungen!B17)),Bemerkungen!B17,\" \")","v":" "},null,null,null,null,null,null,null,null,null,null,null,null,null,null,null,null,null,null,null,null,{"$f":"IF(NOT(Bemerkungen!G17=0),Bemerkungen!G17,\" \")","v":" "}]
[null,null,{"$f":"IF(NOT(Bemerkungen!A18=0),Bemerkungen!A18,\" \")","v":" "},{"$f":"IF(NOT(ISBLANK(Bemerkungen!B18)),Bemerkungen!B18,\" \")","v":" "},null,null,null,null,null,null,null,null,null,null,null,null,null,null,null,null,null,null,null,null,{"$f":"IF(NOT(Bemerkungen!G18=0),Bemerkungen!G18,\" \")","v":" "}]
[null,null,{"$f":"IF(NOT(Bemerkungen!A19=0),Bemerkungen!A19,\" \")","v":" "},{"$f":"IF(NOT(ISBLANK(Bemerkungen!B19)),Bemerkungen!B19,\" \")","v":" "},null,null,null,null,null,null,null,null,null,null,null,null,null,null,null,null,null,null,null,null,{"$f":"IF(NOT(Bemerkungen!G19=0),Bemerkungen!G19,\" \")","v":" "}]
[null,null,{"$f":"IF(NOT(Bemerkungen!A20=0),Bemerkungen!A20,\" \")","v":" "},{"$f":"IF(NOT(ISBLANK(Bemerkungen!B20)),Bemerkungen!B20,\" \")","v":" "},null,null,null,null,null,null,null,null,null,null,null,null,null,null,null,null,null,null,null,null,{"$f":"IF(NOT(Bemerkungen!G20=0),Bemerkungen!G20,\" \")","v":" "}]
[null,null,{"$f":"IF(NOT(Bemerkungen!A21=0),Bemerkungen!A21,\" \")","v":" "},{"$f":"IF(NOT(ISBLANK(Bemerkungen!B21)),Bemerkungen!B21,\" \")","v":" "},null,null,null,null,null,null,null,null,null,null,null,null,null,null,null,null,null,null,null,null,{"$f":"IF(NOT(Bemerkungen!G21=0),Bemerkungen!G21,\" \")","v":" "}]
[null,null,{"$f":"IF(NOT(Bemerkungen!A22=0),Bemerkungen!A22,\" \")","v":" "},{"$f":"IF(NOT(ISBLANK(Bemerkungen!B22)),Bemerkungen!B22,\" \")","v":" "},null,null,null,null,null,null,null,null,null,null,null,null,null,null,null,null,null,null,null,null,{"$f":"IF(NOT(Bemerkungen!G22=0),Bemerkungen!G22,\" \")","v":" "}]
[null,null,{"$f":"IF(NOT(Bemerkungen!A23=0),Bemerkungen!A23,\" \")","v":" "},{"$f":"IF(NOT(ISBLANK(Bemerkungen!B23)),Bemerkungen!B23,\" \")","v":" "},null,null,null,null,null,null,null,null,null,null,null,null,null,null,null,null,null,null,null,null,{"$f":"IF(NOT(Bemerkungen!G23=0),Bemerkungen!G23,\" \")","v":" "}]
[null,null,{"$f":"IF(NOT(Bemerkungen!A24=0),Bemerkungen!A24,\" \")","v":" "},{"$f":"IF(NOT(ISBLANK(Bemerkungen!B24)),Bemerkungen!B24,\" \")","v":" "},null,null,null,null,null,null,null,null,null,null,null,null,null,null,null,null,null,null,null,null,{"$f":"IF(NOT(Bemerkungen!G24=0),Bemerkungen!G24,\" \")","v":" "}]
[null,null,{"$f":"IF(NOT(Bemerkungen!A25=0),Bemerkungen!A25,\" \")","v":" "},{"$f":"IF(NOT(ISBLANK(Bemerkungen!B25)),Bemerkungen!B25,\" \")","v":" "},null,null,null,null,null,null,null,null,null,null,null,null,null,null,null,null,null,null,null,null,{"$f":"IF(NOT(Bemerkungen!G25=0),Bemerkungen!G25,\" \")","v":" "}]
[null,null,{"$f":"IF(NOT(Bemerkungen!A26=0),Bemerkungen!A26,\" \")","v":" "},{"$f":"IF(NOT(ISBLANK(Bemerkungen!B26)),Bemerkungen!B26,\" \")","v":" "},null,null,null,null,null,null,null,null,null,null,null,null,null,null,null,null,null,null,null,null,{"$f":"IF(NOT(Bemerkungen!G26=0),Bemerkungen!G26,\" \")","v":" "}]
[null,null,{"$f":"IF(NOT(Bemerkungen!A27=0),Bemerkungen!A27,\" \")","v":" "},{"$f":"IF(NOT(ISBLANK(Bemerkungen!B27)),Bemerkungen!B27,\" \")","v":" "},null,null,null,null,null,null,null,null,null,null,null,null,null,null,null,null,null,null,null,null,{"$f":"IF(NOT(Bemerkungen!G27=0),Bemerkungen!G27,\" \")","v":" "}]
[null,null,{"$f":"IF(NOT(Bemerkungen!A28=0),Bemerkungen!A28,\" \")","v":" "},{"$f":"IF(NOT(ISBLANK(Bemerkungen!B28)),Bemerkungen!B28,\" \")","v":" "},null,null,null,null,null,null,null,null,null,null,null,null,null,null,null,null,null,null,null,null,{"$f":"IF(NOT(Bemerkungen!G28=0),Bemerkungen!G28,\" \")","v":" "}]
[null,null,{"$f":"IF(NOT(Bemerkungen!A29=0),Bemerkungen!A29,\" \")","v":" "},{"$f":"IF(NOT(ISBLANK(Bemerkungen!B29)),Bemerkungen!B29,\" \")","v":" "},null,null,null,null,null,null,null,null,null,null,null,null,null,null,null,null,null,null,null,null,{"$f":"IF(NOT(Bemerkungen!G29=0),Bemerkungen!G29,\" \")","v":" "}]
[null,null,{"$f":"IF(NOT(Bemerkungen!A30=0),Bemerkungen!A30,\" \")","v":" "},{"$f":"IF(NOT(ISBLANK(Bemerkungen!B30)),Bemerkungen!B30,\" \")","v":" "},null,null,null,null,null,null,null,null,null,null,null,null,null,null,null,null,null,null,null,null,{"$f":"IF(NOT(Bemerkungen!G30=0),Bemerkungen!G30,\" \")","v":" "}]
[null,null,{"$f":"IF(NOT(Bemerkungen!A31=0),Bemerkungen!A31,\" \")","v":" "},{"$f":"IF(NOT(ISBLANK(Bemerkungen!B31)),Bemerkungen!B31,\" \")","v":" "},null,null,null,null,null,null,null,null,null,null,null,null,null,null,null,null,null,null,null,null,{"$f":"IF(NOT(Bemerkungen!G31=0),Bemerkungen!G31,\" \")","v":" "}]
[null,null,{"$f":"IF(NOT(Bemerkungen!A32=0),Bemerkungen!A32,\" \")","v":" "},{"$f":"IF(NOT(ISBLANK(Bemerkungen!B32)),Bemerkungen!B32,\" \")","v":" "},null,null,null,null,null,null,null,null,null,null,null,null,null,null,null,null,null,null,null,null,{"$f":"IF(NOT(Bemerkungen!G32=0),Bemerkungen!G32,\" \")","v":" "}]
[null,null,{"$f":"IF(NOT(Bemerkungen!A33=0),Bemerkungen!A33,\" \")","v":" "},{"$f":"IF(NOT(ISBLANK(Bemerkungen!B33)),Bemerkungen!B33,\" \")","v":" "},null,null,null,null,null,null,null,null,null,null,null,null,null,null,null,null,null,null,null,null,{"$f":"IF(NOT(Bemerkungen!G33=0),Bemerkungen!G33,\" \")","v":" "}]
[null,null,{"$f":"IF(NOT(Bemerkungen!A34=0),Bemerkungen!A34,\" \")","v":" "},{"$f":"IF(NOT(ISBLANK(Bemerkungen!B34)),Bemerkungen!B34,\" \")","v":" "},null,null,null,null,null,null,null,null,null,null,null,null,null,null,null,null,null,null,null,null,{"$f":"IF(NOT(Bemerkungen!G34=0),Bemerkungen!G34,\" \")","v":" "}]
[null,null,{"$f":"IF(NOT(Bemerkungen!A35=0),Bemerkungen!A35,\" \")","v":" "},{"$f":"IF(NOT(ISBLANK(Bemerkungen!B35)),Bemerkungen!B35,\" \")","v":" "},null,null,null,null,null,null,null,null,null,null,null,null,null,null,null,null,null,null,null,null,{"$f":"IF(NOT(Bemerkungen!G35=0),Bemerkungen!G35,\" \")","v":" "}]
[null,null,{"$f":"IF(NOT(Bemerkungen!A36=0),Bemerkungen!A36,\" \")","v":" "},{"$f":"IF(NOT(ISBLANK(Bemerkungen!B36)),Bemerkungen!B36,\" \")","v":" "},null,null,null,null,null,null,null,null,null,null,null,null,null,null,null,null,null,null,null,null,{"$f":"IF(NOT(Bemerkungen!G36=0),Bemerkungen!G36,\" \")","v":" "}]
[null,null,{"$f":"IF(NOT(Bemerkungen!A37=0),Bemerkungen!A37,\" \")","v":" "},{"$f":"IF(NOT(ISBLANK(Bemerkungen!B37)),Bemerkungen!B37,\" \")","v":" "},null,null,null,null,null,null,null,null,null,null,null,null,null,null,null,null,null,null,null,null,{"$f":"IF(NOT(Bemerkungen!G37=0),Bemerkungen!G37,\" \")","v":" "}]
[null,null,{"$f":"IF(NOT(Bemerkungen!A38=0),Bemerkungen!A38,\" \")","v":" "},{"$f":"IF(NOT(ISBLANK(Bemerkungen!B38)),Bemerkungen!B38,\" \")","v":" "},null,null,null,null,null,null,null,null,null,null,null,null,null,null,null,null,null,null,null,null,{"$f":"IF(NOT(Bemerkungen!G38=0),Bemerkungen!G38,\" \")","v":" "}]
[null,null,{"$f":"IF(NOT(Bemerkungen!A39=0),Bemerkungen!A39,\" \")","v":" "},{"$f":"IF(NOT(ISBLANK(Bemerkungen!B39)),Bemerkungen!B39,\" \")","v":" "},null,null,null,null,null,null,null,null,null,null,null,null,null,null,null,null,null,null,null,null,{"$f":"IF(NOT(Bemerkungen!G39=0),Bemerkungen!G39,\" \")","v":" "}]
[null,null,{"$f":"IF(NOT(Bemerkungen!A40=0),Bemerkungen!A40,\" \")","v":" "},{"$f":"IF(NOT(ISBLANK(Bemerkungen!B40)),Bemerkungen!B40,\" \")","v":" "},null,null,null,null,null,null,null,null,null,null,null,null,null,null,null,null,null,null,null,null,{"$f":"IF(NOT(Bemerkungen!G40=0),Bemerkungen!G40,\" \")","v":" "}]
[null,null,{"$f":"IF(NOT(Bemerkungen!A41=0),Bemerkungen!A41,\" \")","v":" "},{"$f":"IF(NOT(ISBLANK(Bemerkungen!B41)),Bemerkungen!B41,\" \")","v":" "},null,null,null,null,null,null,null,null,null,null,null,null,null,null,null,null,null,null,null,null,{"$f":"IF(NOT(Bemerkungen!G41=0),Bemerkungen!G41,\" \")","v":" "}]
[null,null,{"$f":"IF(NOT(Bemerkungen!A42=0),Bemerkungen!A42,\" \")","v":" "},{"$f":"IF(NOT(ISBLANK(Bemerkungen!B42)),Bemerkungen!B42,\" \")","v":" "},null,null,null,null,null,null,null,null,null,null,null,null,null,null,null,null,null,null,null,null,{"$f":"IF(NOT(Bemerkungen!G42=0),Bemerkungen!G42,\" \")","v":" "}]
[null,null,{"$f":"IF(NOT(Bemerkungen!A43=0),Bemerkungen!A43,\" \")","v":" "},{"$f":"IF(NOT(ISBLANK(Bemerkungen!B43)),Bemerkungen!B43,\" \")","v":" "},null,null,null,null,null,null,null,null,null,null,null,null,null,null,null,null,null,null,null,null,{"$f":"IF(NOT(Bemerkungen!G43=0),Bemerkungen!G43,\" \")","v":" "}]
[null,null,{"$f":"IF(NOT(Bemerkungen!A44=0),Bemerkungen!A44,\" \")","v":" "},{"$f":"IF(NOT(ISBLANK(Bemerkungen!B44)),Bemerkungen!B44,\" \")","v":" "},null,null,null,null,null,null,null,null,null,null,null,null,null,null,null,null,null,null,null,null,{"$f":"IF(NOT(Bemerkungen!G44=0),Bemerkungen!G44,\" \")","v":" "}]
[null,null,{"$f":"IF(NOT(Bemerkungen!A45=0),Bemerkungen!A45,\" \")","v":" "},{"$f":"IF(NOT(ISBLANK(Bemerkungen!B45)),Bemerkungen!B45,\" \")","v":" "},null,null,null,null,null,null,null,null,null,null,null,null,null,null,null,null,null,null,null,null,{"$f":"IF(NOT(Bemerkungen!G45=0),Bemerkungen!G45,\" \")","v":" "}]
[null,null,{"$f":"IF(NOT(Bemerkungen!A46=0),Bemerkungen!A46,\" \")","v":" "},{"$f":"IF(NOT(ISBLANK(Bemerkungen!B46)),Bemerkungen!B46,\" \")","v":" "},null,null,null,null,null,null,null,null,null,null,null,null,null,null,null,null,null,null,null,null,{"$f":"IF(NOT(Bemerkungen!G46=0),Bemerkungen!G46,\" \")","v":" "}]
[null,null,{"$f":"IF(NOT(Bemerkungen!A47=0),Bemerkungen!A47,\" \")","v":" "},{"$f":"IF(NOT(ISBLANK(Bemerkungen!B47)),Bemerkungen!B47,\" \")","v":" "},null,null,null,null,null,null,null,null,null,null,null,null,null,null,null,null,null,null,null,null,{"$f":"IF(NOT(Bemerkungen!G47=0),Bemerkungen!G47,\" \")","v":" "}]
[null,null,{"$f":"IF(NOT(Bemerkungen!A48=0),Bemerkungen!A48,\" \")","v":" "},{"$f":"IF(NOT(ISBLANK(Bemerkungen!B48)),Bemerkungen!B48,\" \")","v":" "},null,null,null,null,null,null,null,null,null,null,null,null,null,null,null,null,null,null,null,null,{"$f":"IF(NOT(Bemerkungen!G48=0),Bemerkungen!G48,\" \")","v":" "}]
[null,null,{"$f":"IF(NOT(Bemerkungen!A49=0),Bemerkungen!A49,\" \")","v":" "},{"$f":"IF(NOT(ISBLANK(Bemerkungen!B49)),Bemerkungen!B49,\" \")","v":" "},null,null,null,null,null,null,null,null,null,null,null,null,null,null,null,null,null,null,null,null,{"$f":"IF(NOT(Bemerkungen!G49=0),Bemerkungen!G49,\" \")","v":" "}]
[null,null,{"$f":"IF(NOT(Bemerkungen!A50=0),Bemerkungen!A50,\" \")","v":" "},{"$f":"IF(NOT(ISBLANK(Bemerkungen!B50)),Bemerkungen!B50,\" \")","v":" "},null,null,null,null,null,null,null,null,null,null,null,null,null,null,null,null,null,null,null,null,{"$f":"IF(NOT(Bemerkungen!G50=0),Bemerkungen!G50,\" \")","v":" "}]
[null,null,{"$f":"IF(NOT(Bemerkungen!A51=0),Bemerkungen!A51,\" \")","v":" "},{"$f":"IF(NOT(ISBLANK(Bemerkungen!B51)),Bemerkungen!B51,\" \")","v":" "},null,null,null,null,null,null,null,null,null,null,null,null,null,null,null,null,null,null,null,null,{"$f":"IF(NOT(Bemerkungen!G51=0),Bemerkungen!G51,\" \")","v":" "}]
[null,null,{"$f":"IF(NOT(Bemerkungen!A52=0),Bemerkungen!A52,\" \")","v":" "},{"$f":"IF(NOT(ISBLANK(Bemerkungen!B52)),Bemerkungen!B52,\" \")","v":" "},null,null,null,null,null,null,null,null,null,null,null,null,null,null,null,null,null,null,null,null,{"$f":"IF(NOT(Bemerkungen!G52=0),Bemerkungen!G52,\" \")","v":" "}]
[]
[]
[]
[]
[null,null,null,null,null,null,null,null,null,null,null,null,null,null,null,null,null,null,null,null,null,null,null,null,null,"Seite",null,2,"von",null,4]
[null,null,"Liste der vorhandenen Mängel (Fortsetzung)"]
[null,null,"lfd.\nNr.",null,null,null,null,null,null,null,null,null,null,null,null,null,null,null,null,null,null,null,null,null,null,null,"Rest\nStd.",null,null,"erle-"]
[null,null,null,"Bezeichnung",null,null,null,null,null,null,null,null,null,null,null,null,null,null,null,null,null,null,null,null,"Std.",null,null,null,null,"digt"]
[null,null,null,null,null,null,null,null,null,null,null,null,null,null,null,null,null,null,null,null,null,null,null,null,{"$f":"IF(NOT(Bemerkungen!G52=0),Bemerkungen!G52,\" \")","v":" "}]
[null,null,{"$f":"IF(NOT(Bemerkungen!A53=0),Bemerkungen!A53,\" \")","v":" "},{"$f":"IF(NOT(ISBLANK(Bemerkungen!B53)),Bemerkungen!B53,\" \")","v":" "},null,null,null,null,null,null,null,null,null,null,null,null,null,null,null,null,null,null,null,null,{"$f":"IF(NOT(Bemerkungen!G53=0),Bemerkungen!G53,\" \")","v":" "}]
[null,null,{"$f":"IF(NOT(Bemerkungen!A54=0),Bemerkungen!A54,\" \")","v":" "},{"$f":"IF(NOT(ISBLANK(Bemerkungen!B54)),Bemerkungen!B54,\" \")","v":" "},null,null,null,null,null,null,null,null,null,null,null,null,null,null,null,null,null,null,null,null,{"$f":"IF(NOT(Bemerkungen!G54=0),Bemerkungen!G54,\" \")","v":" "}]
[null,null,{"$f":"IF(NOT(Bemerkungen!A55=0),Bemerkungen!A55,\" \")","v":" "},{"$f":"IF(NOT(ISBLANK(Bemerkungen!B55)),Bemerkungen!B55,\" \")","v":" "},null,null,null,null,null,null,null,null,null,null,null,null,null,null,null,null,null,null,null,null,{"$f":"IF(NOT(Bemerkungen!G55=0),Bemerkungen!G55,\" \")","v":" "}]
[null,null,{"$f":"IF(NOT(Bemerkungen!A56=0),Bemerkungen!A56,\" \")","v":" "},{"$f":"IF(NOT(ISBLANK(Bemerkungen!B56)),Bemerkungen!B56,\" \")","v":" "},null,null,null,null,null,null,null,null,null,null,null,null,null,null,null,null,null,null,null,null,{"$f":"IF(NOT(Bemerkungen!G56=0),Bemerkungen!G56,\" \")","v":" "}]
[null,null,{"$f":"IF(NOT(Bemerkungen!A57=0),Bemerkungen!A57,\" \")","v":" "},{"$f":"IF(NOT(ISBLANK(Bemerkungen!B57)),Bemerkungen!B57,\" \")","v":" "},null,null,null,null,null,null,null,null,null,null,null,null,null,null,null,null,null,null,null,null,{"$f":"IF(NOT(Bemerkungen!G57=0),Bemerkungen!G57,\" \")","v":" "}]
[null,null,{"$f":"IF(NOT(Bemerkungen!A58=0),Bemerkungen!A58,\" \")","v":" "},{"$f":"IF(NOT(ISBLANK(Bemerkungen!B58)),Bemerkungen!B58,\" \")","v":" "},null,null,null,null,null,null,null,null,null,null,null,null,null,null,null,null,null,null,null,null,{"$f":"IF(NOT(Bemerkungen!G58=0),Bemerkungen!G58,\" \")","v":" "}]
[null,null,{"$f":"IF(NOT(Bemerkungen!A59=0),Bemerkungen!A59,\" \")","v":" "},{"$f":"IF(NOT(ISBLANK(Bemerkungen!B59)),Bemerkungen!B59,\" \")","v":" "},null,null,null,null,null,null,null,null,null,null,null,null,null,null,null,null,null,null,null,null,{"$f":"IF(NOT(Bemerkungen!G59=0),Bemerkungen!G59,\" \")","v":" "}]
[null,null,{"$f":"IF(NOT(Bemerkungen!A60=0),Bemerkungen!A60,\" \")","v":" "},{"$f":"IF(NOT(ISBLANK(Bemerkungen!B60)),Bemerkungen!B60,\" \")","v":" "},null,null,null,null,null,null,null,null,null,null,null,null,null,null,null,null,null,null,null,null,{"$f":"IF(NOT(Bemerkungen!G60=0),Bemerkungen!G60,\" \")","v":" "}]
[null,null,{"$f":"IF(NOT(Bemerkungen!A61=0),Bemerkungen!A61,\" \")","v":" "},{"$f":"IF(NOT(ISBLANK(Bemerkungen!B61)),Bemerkungen!B61,\" \")","v":" "},null,null,null,null,null,null,null,null,null,null,null,null,null,null,null,null,null,null,null,null,{"$f":"IF(NOT(Bemerkungen!G61=0),Bemerkungen!G61,\" \")","v":" "}]
[null,null,{"$f":"IF(NOT(Bemerkungen!A62=0),Bemerkungen!A62,\" \")","v":" "},{"$f":"IF(NOT(ISBLANK(Bemerkungen!B62)),Bemerkungen!B62,\" \")","v":" "},null,null,null,null,null,null,null,null,null,null,null,null,null,null,null,null,null,null,null,null,{"$f":"IF(NOT(Bemerkungen!G62=0),Bemerkungen!G62,\" \")","v":" "}]
[null,null,{"$f":"IF(NOT(Bemerkungen!A63=0),Bemerkungen!A63,\" \")","v":" "},{"$f":"IF(NOT(ISBLANK(Bemerkungen!B63)),Bemerkungen!B63,\" \")","v":" "},null,null,null,null,null,null,null,null,null,null,null,null,null,null,null,null,null,null,null,null,{"$f":"IF(NOT(Bemerkungen!G63=0),Bemerkungen!G63,\" \")","v":" "}]
[null,null,{"$f":"IF(NOT(Bemerkungen!A64=0),Bemerkungen!A64,\" \")","v":" "},{"$f":"IF(NOT(ISBLANK(Bemerkungen!B64)),Bemerkungen!B64,\" \")","v":" "},null,null,null,null,null,null,null,null,null,null,null,null,null,null,null,null,null,null,null,null,{"$f":"IF(NOT(Bemerkungen!G64=0),Bemerkungen!G64,\" \")","v":" "}]
[null,null,{"$f":"IF(NOT(Bemerkungen!A65=0),Bemerkungen!A65,\" \")","v":" "},{"$f":"IF(NOT(ISBLANK(Bemerkungen!B65)),Bemerkungen!B65,\" \")","v":" "},null,null,null,null,null,null,null,null,null,null,null,null,null,null,null,null,null,null,null,null,{"$f":"IF(NOT(Bemerkungen!G65=0),Bemerkungen!G65,\" \")","v":" "}]
[null,null,{"$f":"IF(NOT(Bemerkungen!A66=0),Bemerkungen!A66,\" \")","v":" "},{"$f":"IF(NOT(ISBLANK(Bemerkungen!B66)),Bemerkungen!B66,\" \")","v":" "},null,null,null,null,null,null,null,null,null,null,null,null,null,null,null,null,null,null,null,null,{"$f":"IF(NOT(Bemerkungen!G66=0),Bemerkungen!G66,\" \")","v":" "}]
[null,null,{"$f":"IF(NOT(Bemerkungen!A67=0),Bemerkungen!A67,\" \")","v":" "},{"$f":"IF(NOT(ISBLANK(Bemerkungen!B67)),Bemerkungen!B67,\" \")","v":" "},null,null,null,null,null,null,null,null,null,null,null,null,null,null,null,null,null,null,null,null,{"$f":"IF(NOT(Bemerkungen!G67=0),Bemerkungen!G67,\" \")","v":" "}]
[null,null,{"$f":"IF(NOT(Bemerkungen!A68=0),Bemerkungen!A68,\" \")","v":" "},{"$f":"IF(NOT(ISBLANK(Bemerkungen!B68)),Bemerkungen!B68,\" \")","v":" "},null,null,null,null,null,null,null,null,null,null,null,null,null,null,null,null,null,null,null,null,{"$f":"IF(NOT(Bemerkungen!G68=0),Bemerkungen!G68,\" \")","v":" "}]
[null,null,{"$f":"IF(NOT(Bemerkungen!A69=0),Bemerkungen!A69,\" \")","v":" "},{"$f":"IF(NOT(ISBLANK(Bemerkungen!B69)),Bemerkungen!B69,\" \")","v":" "},null,null,null,null,null,null,null,null,null,null,null,null,null,null,null,null,null,null,null,null,{"$f":"IF(NOT(Bemerkungen!G69=0),Bemerkungen!G69,\" \")","v":" "}]
[null,null,{"$f":"IF(NOT(Bemerkungen!A70=0),Bemerkungen!A70,\" \")","v":" "},{"$f":"IF(NOT(ISBLANK(Bemerkungen!B70)),Bemerkungen!B70,\" \")","v":" "},null,null,null,null,null,null,null,null,null,null,null,null,null,null,null,null,null,null,null,null,{"$f":"IF(NOT(Bemerkungen!G70=0),Bemerkungen!G70,\" \")","v":" "}]
[null,null,{"$f":"IF(NOT(Bemerkungen!A71=0),Bemerkungen!A71,\" \")","v":" "},{"$f":"IF(NOT(ISBLANK(Bemerkungen!B71)),Bemerkungen!B71,\" \")","v":" "},null,null,null,null,null,null,null,null,null,null,null,null,null,null,null,null,null,null,null,null,{"$f":"IF(NOT(Bemerkungen!G71=0),Bemerkungen!G71,\" \")","v":" "}]
[null,null,{"$f":"IF(NOT(Bemerkungen!A72=0),Bemerkungen!A72,\" \")","v":" "},{"$f":"IF(NOT(ISBLANK(Bemerkungen!B72)),Bemerkungen!B72,\" \")","v":" "},null,null,null,null,null,null,null,null,null,null,null,null,null,null,null,null,null,null,null,null,{"$f":"IF(NOT(Bemerkungen!G72=0),Bemerkungen!G72,\" \")","v":" "}]
[null,null,{"$f":"IF(NOT(Bemerkungen!A73=0),Bemerkungen!A73,\" \")","v":" "},{"$f":"IF(NOT(ISBLANK(Bemerkungen!B73)),Bemerkungen!B73,\" \")","v":" "},null,null,null,null,null,null,null,null,null,null,null,null,null,null,null,null,null,null,null,null,{"$f":"IF(NOT(Bemerkungen!G73=0),Bemerkungen!G73,\" \")","v":" "}]
[null,null,{"$f":"IF(NOT(Bemerkungen!A74=0),Bemerkungen!A74,\" \")","v":" "},{"$f":"IF(NOT(ISBLANK(Bemerkungen!B74)),Bemerkungen!B74,\" \")","v":" "},null,null,null,null,null,null,null,null,null,null,null,null,null,null,null,null,null,null,null,null,{"$f":"IF(NOT(Bemerkungen!G74=0),Bemerkungen!G74,\" \")","v":" "}]
[]
[null,null,"Entsorgungskosten / Nachweis der Entsorgung"]
[]
[]
[null,null,null,"Entsorgungskosten (aus Schätzung übernommen)"]
[]
[null,null,null,"Container",null,null,null,null,null,null,null,null,null,null,null,"Anzahl",null,null,{"$f":"IF(NOT(Bemerkungen!E80=0),Bemerkungen!E80,\" \")","v":" "},null,null,null,"Preis",null,null,{"$f":"IF(NOT(Bemerkungen!H80=0),Bemerkungen!H80,\" \")","v":" "},null,null,null,"€"]
[]
[null,null,null,"Deponiegebühren",null,null,null,null,null,null,"Bauschutt",null,null,null,null,null,null,null,null,null,null,null,null,null,null,{"$f":"IF(NOT(Bemerkungen!H82=0),Bemerkungen!H82,\" \")","v":" "},null,null,null,"€"]
[null,null,null,null,null,null,null,null,null,null,"Baustellenabfälle",null,null,null,null,null,null,null,null,null,null,null,null,null,null,{"$f":"IF(NOT(Bemerkungen!H83=0),Bemerkungen!H83,\" \")","v":" "},null,null,null,"€"]
[null,null,null,null,null,null,null,null,null,null,"Baumschnitt / Strauchwerk",null,null,null,null,null,null,null,null,null,null,null,null,null,null,{"$f":"IF(NOT(Bemerkungen!H84=0),Bemerkungen!H84,\" \")","v":" "},null,null,null,"€"]
[]
[null,null,null,"Summe Entsorgungskosten",null,null,null,null,null,null,null,null,null,null,null,null,null,null,null,null,null,null,null,null,null,{"$f":"IF(NOT(Bemerkungen!H94=0),Bemerkungen!H94,\" \")","v":" "},null,null,null,"€"]
[]
[]
[null,null,null,"Nachgewiesene Entsorgungskosten"]
[]
[null,null,null,"Container",null,null,null,null,null,null,null,null,null,null,null,"Anzahl",null,null,null,null,null,null,"Preis"]
[]
[null,null,null,"Deponiegebühren",null,null,null,null,null,null,"Bauschutt"]
[]
[null,null,null,null,null,null,null,null,null,null,"Baustellenabfälle"]
[]
[null,null,null,null,null,null,null,null,null,null,"Baumschnitt / Strauchwerk"]
[]
[null,null,null,"Sonstige Entsorgungskosten"]
[]
[]
[null,null,null,null,null,null,null,null,null,null,null,null,null,null,null,null,null,null,null,null,null,null,null,null,null,"Seite",null,3,"von",null,4]
[null,null,"Skizze (aus der Schätzung übernommen)"]
[]
[]
[]
[]
[]
[]
[]
[]
[]
[]
[]
[]
[]
[]
[]
[]
[]
[]
[]
[]
[]
[]
[]
[]
[]
[]
[]
[]
[]
[]
[]
[]
[]
[]
[]
[]
[]
[]
[]
[]
[]
[]
[]
[]
[]
[]
[]
[]
[]
[]
[]
[]
[]
[null,null,null,null,null,null,null,null,null,null,null,null,null,null,null,null,null,null,null,null,null,null,null,null,null,"Seite",null,4,"von",null,4]

{"sheet":"Raster","index":14,"n_rows":0,"n_cols":0,"rows_kept":0,"cut":false,"hidden":true,"merged":[]}